{"text_format":"1","workbook":"xlsx","n_sheets":25,"sheets":["INDEX","Model Specs","1. Information Sheet","2. Current Tariff Schedule","3. Continuity Schedule","4. Billing Det. for Def-Var","5. Allocating Def-Var Balances","6. GA Calculation","6A. GA Allocation_Class A","7. Calculation of Def-Var RR","8. STS-Tax Change","9. Shared Tax - RR","10. RTSR - Current Rates","11. RTSR-UTRs & Sub-Tx","12. RTSR-Historic Wholesale","13. RTSR-Current Wholesale","14. RTSR-Forecast Wholesale","15. RTSR-Rates to Forecast","16. Rev2Cost-GDPIPI","17. Regulatory Charges","18. Additional Rates","19. Final Tariff Schedule","CBR 1580 Sub-Account","Horizon Utilities Rate Zone","Final Tariff Schedule"],"not_rendered":{"charts":0,"images":0,"macros":1,"external_links":44,"defined_names":856,"comments":3,"pivot_tables":0},"unopened":[],"bounds":{"document_bytes":16777216,"sheet_cells":100000,"rows_first":2000,"rows_last":500,"rows_between":2000,"halvings":0,"cell_chars":16384,"cell_head_chars":4096},"cells_cut":0,"cells_raw":0,"read":"whole","date_system":"1900"}

{"sheet":"INDEX","index":0,"n_rows":26,"n_cols":2,"rows_kept":26,"cut":false,"hidden":true,"merged":[]}
["INDEX","Required updates (if not specifically stated, no input required)"]
["Model Specs"]
["1. Information Sheet","update"]
["2. Current Tariff Schedule"]
["3. Continuity Schedule"]
["4. Billing Det. for Def-Var","column T - Account 1568 balances by rate class"]
["5. Allocating Def-Var Balances"]
["6. GA Calculation","columns  E & G - 2016 Class A data"]
["6A. GA Allocation_Class A","Table \"Allocation of GA Balances to Former Class B Customers\" - Class A data"]
["7. Calculation of Def-Var RR","update recovery period, if different from the default \"12\""]
["8. STS-Tax Change"]
["9. Shared Tax - RR"]
["10. RTSR - Current Rates"]
["11. RTSR-UTRs & Sub-Tx","Update wholesale rates, if required"]
["12. RTSR-Historic Wholesale"]
["13. RTSR-Current Wholesale"]
["14. RTSR-Forecast Wholesale"]
["15. RTSR-Rates to Forecast","Need to adjust TN/TC Emb. Distributor rate class"]
["16. Rev2Cost-GDPIPI"]
["17. Regulatory Charges"]
["18. Additional Rates","Input additional rates with a full description: ICM, LRAMVA, DVAs, CBR, etc."]
["19. Final Tariff Schedule"]
["CBR 1580 Sub-Account"]
["Horizon Utilities Rate Zone"]
["Final Tariff Schedule","Input all new rate riders "]
[null,"columns G & I - 2016 kW for Class A"]

{"sheet":"Model Specs","index":1,"n_rows":34,"n_cols":12,"rows_kept":34,"cut":false,"hidden":true,"merged":[]}
["Back to Index",null,null,null,null,null,null,null,null,null,"Lists:"]
[null,"Model Specifications"]
[null,null,null,null,null,null,null,null,null,null,"Yes"]
[null,"Utility","Alectra - Horizon Utilites",null,null,null,null,null,null,null,"No"]
[]
[null,"Applying for Rates Effective","2018-01-01",null,null,null,null,null,null,null,"kWh"]
[null,null,null,null,null,null,null,null,null,null,"kW"]
[null,null,null,null,null,null,null,null,null,null,"kVA"]
[null,"Line Loss Factor",1.0379]
[null,null,null,null,null,null,null,null,null,null,"Alectra - PowerStream"]
[null,null,null,null,null,null,null,null,null,null,"Alectra - Enersource"]
[null,null,null,null,null,null,null,null,null,null,"Alectra - Horizon Utilites"]
[null,null,null,null,null,null,null,null,null,null,"Alectra - Hydro One Brampton"]
[null,null,"Rate Classes (select from the List)"]
[null,{"$f":"IFERROR(VLOOKUP(C15,$K$16:$L$30,2,FALSE),\"\")","v":"RES"},"RESIDENTIAL SERVICE CLASSIFICATION"]
[null,{"$f":"IFERROR(VLOOKUP(C16,$K$16:$L$30,2,FALSE),\"\")","v":"GSL"},"GENERAL SERVICE LESS THAN 50 kW SERVICE CLASSIFICATION",null,null,null,null,null,null,null,"RESIDENTIAL SERVICE CLASSIFICATION","RES"]
[null,"GSG","GENERAL SERVICE 50 to 4,999 kW SERVICE CLASSIFICATION",null,null,null,null,null,null,null,"GENERAL SERVICE LESS THAN 50 kW SERVICE CLASSIFICATION","GSL"]
[null,"LU","LARGE USE SERVICE CLASSIFICATION",null,null,null,null,null,null,null,"GENERAL SERVICE 50 to 499 kW SERVICE CLASSIFICATION","GS50_499"]
[null,"USL","UNMETERED SCATTERED LOAD SERVICE CLASSIFICATION",null,null,null,null,null,null,null,"GENERAL SERVICE 50 to 699 KW SERVICE CLASSIFICATION","GS50_699"]
[null,"SEN","SENTINEL LIGHTING SERVICE CLASSIFICATION",null,null,null,null,null,null,null,"GENERAL SERVICE 500 to 4,999 kW SERVICE CLASSIFICATION","GS500"]
[null,"SL","STREET LIGHTING SERVICE CLASSIFICATION",null,null,null,null,null,null,null,"GENERAL SERVICE 700 to 4,999 KW SERVICE CLASSIFICATION","GS700"]
[null,"",null,null,null,null,null,null,null,null,"LARGE USE SERVICE CLASSIFICATION","LU"]
[null,"",null,null,null,null,null,null,null,null,"UNMETERED SCATTERED LOAD SERVICE CLASSIFICATION","USL"]
[null,"",null,null,null,null,null,null,null,null,"STREET LIGHTING SERVICE CLASSIFICATION","SL"]
[null,"",null,null,null,null,null,null,null,null,"STANDBY POWER SERVICE CLASSIFICATION ","SB"]
[null,"",null,null,null,null,null,null,null,null,"SENTINEL LIGHTING SERVICE CLASSIFICATION","SEN"]
[null,"",null,null,null,null,null,null,null,null,"EMBEDDED DISTRIBUTOR SERVICE CLASSIFICATION","EMB"]
[null,"",null,null,null,null,null,null,null,null,"DISTRIBUTED GENERATION [DGEN] SERVICE CLASSIFICATION","DG"]
[null,"",null,null,null,null,null,null,null,null,"ENERGY FROM WASTE SERVICE CLASSIFICATION","WST"]
[null,"",null,null,null,null,null,null,null,null,"GENERAL SERVICE 50 to 4,999 kW SERVICE CLASSIFICATION","GSG"]
[null,""]
[]
[]
[null,"Have one or more Class A customers","Yes"]

{"sheet":"1. Information Sheet","index":2,"n_rows":44,"n_cols":22,"rows_kept":44,"cut":false,"hidden":true,"merged":[[1,1,8,14],[23,6,23,10],[13,6,13,12],[15,6,15,10],[17,6,17,8],[19,6,19,11],[21,6,21,8],[43,1,43,7],[25,6,25,8],[27,6,27,8],[29,1,29,5],[29,6,29,8],[31,1,31,5],[31,6,31,8],[36,3,36,12],[38,3,38,14],[40,3,40,13]]}
["Back to Index",null,null,null,null,null,null,null,null,null,null,null,null,null,null,null,null,null,null,null,null,"a"]
[null,"INCENTIVE REGULATION MODEL FOR 2018 FILERS"]
[]
[]
[]
[]
[]
[]
[]
[]
[]
[null,null,null,null,null,null,null,null,null,null,null,null,null,"Version",1]
[]
[null,null,null,null,null,"Utility Name   ","Alectra - Horizon Utilites"]
[]
[null,null,null,null,null,"Service Territory"]
[]
[null,null,null,null,null,"Assigned EB Number","EB-2017-0024"]
[]
[null,null,null,null,null,"Name of Contact and Title","Indy J. Butany-DeSouza, Vice-President, Regulatory Affairs"]
[]
[null,null,null,null,null,"Phone Number   ","905-821-5727"]
[]
[null,null,null,null,null,"Email Address   ","indy.butany@alectrautilities.com"]
[]
[null,null,null,null,null,"We are applying for rates effective   ","2018-01-01"]
[]
[null,null,null,null,null,"Rate-Setting Method","Price Cap IR"]
[]
[null,"Please indicate in which Rate Year the Group 1 accounts were last cleared1",null,null,null,null,2017]
[]
[null,"Please indicate the last Cost of Service \nRe-Basing Year",null,null,null,null,2015]
[]
[]
[null,null,"Notes"]
[]
[null,null,null,"Pale gray cells represent input cells."]
[]
[null,null,null,"Pale blue cells represent drop-down lists.  "]
[]
[null,null,null,"White cells contain fixed values, automatically generated values or formulae. "]
[]
[]
[null,"Note:  \n1.  Rate year of application"]

{"sheet":"2. Current Tariff Schedule","index":3,"n_rows":18,"n_cols":2,"rows_kept":18,"cut":false,"hidden":true,"merged":[[1,1,8,3],[17,1,17,3],[13,1,13,2],[15,1,15,2],[16,1,16,2],[10,1,10,2],[11,1,11,2],[12,1,12,2]]}
["Back to Index"]
[null,"INCENTIVE REGULATION MODEL FOR 2018 FILERS"]
[]
[]
[]
[]
[]
[]
[]
[]
[null,{"$f":"'Model Specs'!C4","v":"Alectra - Horizon Utilites"}]
[null,"TARIFF OF RATES AND CHARGES"]
[null,"Effective Date January 1, 2017"]
[null,"Implementation Date January 1, 2017"]
[]
[null,"This schedule supersedes and replaces all previously "]
[null,"approved schedules of Rates, Charges and Loss Factors"]
[null,"EB-2016-0080"]

{"sheet":"3. Continuity Schedule","index":4,"n_rows":55,"n_cols":89,"rows_kept":55,"cut":false,"hidden":true,"merged":[[16,63,18,63],[16,70,18,70],[16,71,18,71],[16,72,18,72],[16,51,18,51],[16,52,18,52],[16,56,18,56],[16,55,18,55],[16,66,18,66],[15,74,15,77],[16,74,18,74],[16,75,18,75],[16,76,18,76],[16,77,18,77],[16,79,18,79],[16,80,18,80],[16,81,18,81],[16,82,18,82],[16,83,18,83],[16,45,18,45],[16,46,18,46],[16,47,18,47],[16,48,18,48],[16,49,18,49],[16,50,18,50],[16,42,18,42],[16,43,18,43],[16,73,18,73],[16,78,18,78],[16,57,18,57],[16,58,18,58],[16,59,18,59],[16,60,18,60],[16,61,18,61],[16,62,18,62],[16,67,18,67],[16,68,18,68],[16,69,18,69],[16,53,18,53],[16,54,18,54],[16,44,18,44],[16,38,18,38],[16,27,18,27],[16,28,18,28],[16,29,18,29],[16,30,18,30],[16,31,18,31],[16,32,18,32],[16,33,18,33],[16,34,18,34],[16,35,18,35],[16,36,18,36],[16,37,18,37],[16,39,18,39],[16,40,18,40],[16,41,18,41],[16,18,18,18],[16,19,18,19],[16,20,18,20],[16,21,18,21],[16,22,18,22],[1,2,8,16],[15,34,15,43],[16,14,18,14],[15,54,15,63],[15,78,15,81],[16,2,18,2],[16,3,18,3],[16,4,18,4],[16,5,18,5],[16,6,18,6],[16,7,18,7],[16,8,18,8],[15,44,15,53],[15,64,15,73],[16,64,18,64],[16,65,18,65],[51,2,51,3],[52,2,52,3],[53,2,53,3],[54,2,54,3],[48,2,49,3],[11,2,14,3],[15,4,15,13],[15,14,15,23],[15,24,15,33],[16,24,18,24],[16,25,18,25],[16,26,18,26],[16,15,18,15],[16,16,18,16],[16,17,18,17],[16,23,18,23],[16,9,18,9],[16,10,18,10],[16,11,18,11],[16,12,18,12],[16,13,18,13]]}
["Back to Index","Back to Index",null,null,null,null,null,null,null,null,null,null,null,null,null,null,null,null,null,null,null,null,null,null,null,null,null,null,null,null,null,null,null,null,null,null,null,null,null,null,null,null,null,null,null,null,null,null,null,null,null,null,null,null,null,null,null,null,null,null,null,null,null,null,null,null,null,null,null,null,null,null,null,null,null,null,null,null,null,null,null,null,null,null,null,null,null,null,false]
[null,null,"INCENTIVE REGULATION MODEL FOR 2018 FILERS",null,null,null,null,null,null,null,null,null,null,null,null,null,null,null,null,null,null,null,null,null,null,null,null,null,null,null,null,null,null,null,null,null,null,null,null,null,null,null,null,null,null,null,null,null,null,null,null,null,null,null,null,null,null,null,null,null,null,null,null,null,null,null,null,null,null,null,null,null,null,null,null,null,null,null,null,null,null,null,null,null,null,null,null,null,false]
[null,null,null,null,null,null,null,null,null,null,null,null,null,null,null,null,null,null,null,null,null,null,null,null,null,null,null,null,null,null,null,null,null,null,null,null,null,null,null,null,null,null,null,null,null,null,null,null,null,null,null,null,null,null,null,null,null,null,null,null,null,null,null,null,null,null,null,null,null,null,null,null,null,null,null,null,null,null,null,null,null,null,null,null,null,null,null,null,false]
[null,null,null,null,null,null,null,null,null,null,null,null,null,null,null,null,null,null,null,null,null,null,null,null,null,null,null,null,null,null,null,null,null,null,null,null,null,null,null,null,null,null,null,null,null,null,null,null,null,null,null,null,null,null,null,null,null,null,null,null,null,null,null,null,null,null,null,null,null,null,null,null,null,null,null,null,null,null,null,null,null,null,null,null,null,null,null,null,false]
[null,null,null,null,null,null,null,null,null,null,null,null,null,null,null,null,null,null,null,null,null,null,null,null,null,null,null,null,null,null,null,null,null,null,null,null,null,null,null,null,null,null,null,null,null,null,null,null,null,null,null,null,null,null,null,null,null,null,null,null,null,null,null,null,null,null,null,null,null,null,null,null,null,null,null,null,null,null,null,null,null,null,null,null,null,null,null,null,false]
[null,null,null,null,null,null,null,null,null,null,null,null,null,null,null,null,null,null,null,null,null,null,null,null,null,null,null,null,null,null,null,null,null,null,null,null,null,null,null,null,null,null,null,null,null,null,null,null,null,null,null,null,null,null,null,null,null,null,null,null,null,null,null,null,null,null,null,null,null,null,null,null,null,null,null,null,null,null,null,null,null,null,null,null,null,null,null,null,false]
[null,null,null,null,null,null,null,null,null,null,null,null,null,null,null,null,null,null,null,null,null,null,null,null,null,null,null,null,null,null,null,null,null,null,null,null,null,null,null,null,null,null,null,null,null,null,null,null,null,null,null,null,null,null,null,null,null,null,null,null,null,null,null,null,null,null,null,null,null,null,null,null,null,null,null,null,null,null,null,null,null,null,null,null,null,null,null,null,false]
[null,null,null,null,null,null,null,null,null,null,null,null,null,null,null,null,null,null,null,null,null,null,null,null,null,null,null,null,null,null,null,null,null,null,null,null,null,null,null,null,null,null,null,null,null,null,null,null,null,null,null,null,null,null,null,null,null,null,null,null,null,null,null,null,null,null,null,null,null,null,null,null,null,null,null,null,null,null,null,null,null,null,null,null,null,null,null,null,false]
[null,null,null,null,null,null,null,null,null,null,null,null,null,null,null,null,null,null,null,null,null,null,null,null,null,null,null,null,null,null,null,null,null,null,null,null,null,null,null,null,null,null,null,null,null,null,null,null,null,null,null,null,null,null,null,null,null,null,null,null,null,null,null,null,null,null,null,null,null,null,null,null,null,null,null,null,null,null,null,null,null,null,null,null,null,null,null,null,false]
[null,null,null,null,null,null,null,null,null,null,null,null,null,null,null,null,null,null,null,null,null,null,null,null,null,null,null,null,null,null,null,null,null,null,null,null,null,null,null,null,null,null,null,null,null,null,null,null,null,null,null,null,null,null,null,null,null,null,null,null,null,null,null,null,null,null,null,null,null,null,null,null,null,null,null,null,null,null,null,null,null,null,null,null,null,null,null,null,true]
[null,null,null,null,null,null,null,null,null,null,null,null,null,null,null,null,null,null,null,null,null,null,null,null,null,null,null,null,null,null,null,null,null,null,null,null,null,null,null,null,null,null,null,null,null,null,null,null,null,null,null,null,null,null,null,null,null,null,null,null,null,null,null,null,null,null,null,null,null,null,null,null,null,null,null,null,null,null,null,null,null,null,null,null,null,null,null,null,true]
[null,null,"Please complete the following continuity schedule for the following Deferral/Variance Accounts.  Enter information into green cells only. Column CE shoudl match the latest 2.1.7 RRR filing.\n\nWhen inputting balances in the continuity schedule, Account 1580 RSVA - Wholesale Market Service Charge is to exclude any amounts relating to CBR. The CBR amounts are to be entered separately in the Class A and Class B 1580 sub-accounts. Only Class B amounts are to be disposed. Class A amounts are not to be disposed.\n\nIf you have received approval to dispose of balances from prior years, the starting point for entries in the schedule below will be the balance sheet date as per your general ledger for which you received approval.  For example, if in the 2016 EDR process (CoS or IRM) you received approval for the December 31, 2014 balances, the starting point for your entries below should be the 2013 year. This will allow for the correct starting point for the 2014 opening balance columns for both principal and interest.\n\nPlease refer to the footnotes for further instructions."]
[]
[]
[]
[null,null,null,null,2010,null,null,null,null,null,null,null,null,null,2011,null,null,null,null,null,null,null,null,null,2012,null,null,null,null,null,null,null,null,null,2013,null,null,null,null,null,null,null,null,null,2014,null,null,null,null,null,null,null,null,null,2015,null,null,null,null,null,null,null,null,null,2016,null,null,null,null,null,null,null,null,null,2017,null,null,null,"Projected Interest on Dec-31-16 Balances",null,null,null,"2.1.7 RRR"]
[null,null,"Account Descriptions","Account Number","Opening Principal Amounts as of Jan 1, 2010","Transactions2 Debit / (Credit) during 2010","OEB-Approved Disposition during 2010","Principal Adjustments1 during 2010","Closing Principal Balance as of Dec 31, 2010","Opening Interest Amounts as of Jan 1, 2010","Interest Jan 1 to Dec 31, 2010","OEB-Approved Disposition during 2010","Interest Adjustments1 during 2010","Closing Interest Amounts as of Dec 31, 2010","Opening Principal Amounts as of Jan 1, 2011","Transactions2 Debit / (Credit) during 2011 ","OEB-Approved Disposition during 2011","Principal Adjustments1 during 2011 ","Closing Principal Balance as of Dec 31, 2011","Opening Interest Amounts as of Jan 1, 2011","Interest Jan 1 to Dec 31, 2011","OEB-Approved Disposition during 2011","Interest Adjustments1 during 2011","Closing Interest Amounts as of Dec 31, 2011","Opening Principal Amounts as of Jan 1, 2012","Transactions2 Debit / (Credit) during 2012","OEB-Approved Disposition during 2012","Principal Adjustments1 during 2012","Closing Principal Balance as of Dec 31, 2012","Opening Interest Amounts as of Jan 1, 2012","Interest Jan 1 to Dec 31, 2012","OEB-Approved Disposition during 2012","Interest Adjustments1 during 2012","Closing Interest Amounts as of Dec 31, 2012","Opening Principal Amounts as of Jan 1, 2013","Transactions2 Debit / (Credit) during 2013","OEB-Approved Disposition during 2013","Principal Adjustments1 during 2013","Closing Principal Balance as of Dec 31, 2013","Opening Interest Amounts as of Jan 1, 2013","Interest Jan 1 to Dec 31, 2013","OEB-Approved Disposition during 2013","Interest Adjustments1 during 2013","Closing Interest Amounts as of Dec 31, 2013","Opening Principal Amounts as of Jan 1, 2014","Transactions2 Debit / (Credit) during 2014","OEB-Approved Disposition during 2014","Principal Adjustments1 during 2014","Closing Principal Balance as of Dec 31, 2014","Opening Interest Amounts as of Jan 1, 2014","Interest Jan 1 to Dec 31. 2014","OEB-Approved Disposition during 2014","Interest Adjustments1 during 2014","Closing Interest Amounts as of Dec 31, 2014","Opening Principal Amounts as of Jan 1, 2015","Transactions2 Debit / (Credit) during 2015","OEB-Approved Disposition during 2015","Principal Adjustments1 during 2015 ","Closing Principal Balance as of Dec 31, 15","Opening Interest Amounts as of Jan 1, 15","Interest Jan 1 to Dec 31, 15","OEB-Approved Disposition during 2015","Interest Adjustments1 during 2015","Closing Interest Amounts as of Dec 31, 15","Opening Principal Amounts as of Jan 1, 2016","Transactions2 Debit / (Credit) during 2016","OEB-Approved Disposition during 2016","Principal Adjustments1 during 2016","Closing Principal Balance as of Dec 31, 16","Opening Interest Amounts as of Jan 1, 16","Interest Jan 1 to Dec 31, 16","OEB-Approved Disposition during 2016","Interest Adjustments1 during 2016","Closing Interest Amounts as of Dec 31, 16","Principal Disposition during 2017 - instructed by OEB","Interest Disposition during 2017 - instructed by OEB","Closing Principal Balances as of Dec 31, 2017 Adjusted for Dispositions during 2017","Closing Interest Balances as of Dec 31, 16 Adjusted for Disposition in 2017","Projected Interest from Jan 1, 2016 to December 31, 2016 on Dec 31 -16 balance adjusted for disposition during 2017 3","Projected Interest from January 1, 2018 to April 30, 2018 on Dec 31 -16 balance adjusted for disposition during 2017  3","Total Interest","Total Claim","As of Dec 31-16","Variance                           RRR vs. 2016 Balance                        (Principal + Interest)"]
[]
[null,null,null,null,null,null,null,null,null,null,null,null,null,null,null,null,null,null,null,null,null,null,null,null,null,null,null,null,null,null,null,null,null,null,null,null,null,null,null,null,null,null,null,null,null,null,null,null,null,null,null,null,null,null,null,null,null,null,null,null,null,null,null,null,null,null,null,null,null,null,null,null,null,null,null,null,null,null,null,null,null,"Claim before Forecasted Transactions"]
[null,null,"Group 1 Accounts"]
[null,null,"LV Variance Account",1550,null,null,null,null,{"$f":"E21+F21-G21+H21","v":0},null,null,null,null,{"$f":"J21+K21-L21+M21","v":0},{"$f":"I21","v":0},null,null,null,{"$f":"O21+P21-Q21+SUM(R21:R21)","v":0},{"$f":"N21","v":0},null,null,null,{"$f":"T21+U21-V21+W21","v":0},{"$f":"S21","v":0},null,null,null,{"$f":"Y21+Z21-AA21+SUM(AB21:AB21)","v":0},{"$f":"X21","v":0},null,null,null,{"$f":"AD21+AE21-AF21+AG21","v":0},{"$f":"AC21","v":0},null,null,null,{"$f":"AI21+AJ21-AK21+SUM(AL21:AL21)","v":0},{"$f":"AH21","v":0},null,null,null,{"$f":"AN21+AO21-AP21+AQ21","v":0},{"$f":"AM21","v":0},null,null,null,{"$f":"AS21+AT21-AU21+SUM(AV21:AV21)","v":0},{"$f":"AR21","v":0},null,null,null,{"$f":"AX21+AY21-AZ21+BA21","v":0},{"$f":"AW21","v":0},null,null,null,{"$f":"BC21+BD21-BE21+SUM(BF21:BF21)","v":0},{"$f":"BB21","v":0},null,null,null,{"$f":"BH21+BI21-BJ21+BK21","v":0},{"$f":"BG21","v":0},null,null,null,{"$f":"BM21+BN21-BO21+SUM(BP21:BP21)","v":0},{"$f":"BL21","v":0},null,null,null,{"$f":"BR21+BS21-BT21+BU21","v":0},null,null,{"$f":"BQ21-BW21","v":0},{"$f":"BV21-BX21","v":0},{"$f":"+BY21*1.1%","v":0},null,{"$f":"BZ21+CA21+CB21","v":0},{"$f":"SUM(BY21:CB21)","v":0},null,{"$f":"CE21-SUM(BQ21,BV21)","v":0}]
[null,null,"Smart Metering Entity Charge Variance Account",1551,null,null,null,null,{"$f":"E22+F22-G22+H22","v":0},null,null,null,null,{"$f":"J22+K22-L22+M22","v":0},{"$f":"I22","v":0},null,null,null,0,0,null,null,null,{"$f":"T22+U22-V22+W22","v":0},0,null,null,null,{"$f":"Y22+Z22-AA22+SUM(AB22:AB22)","v":0},{"$f":"X22","v":0},null,null,null,{"$f":"AD22+AE22-AF22+AG22","v":0},0,null,null,null,0,0,null,null,null,{"$f":"AN22+AO22-AP22+AQ22","v":0},0,null,null,null,0,0,null,null,null,{"$f":"AX22+AY22-AZ22+BA22","v":0},0,null,null,null,0,0,null,null,null,{"$f":"BH22+BI22-BJ22+BK22","v":0},{"$f":"BG22","v":0},null,null,null,{"$f":"BM22+BN22-BO22+SUM(BP22:BP22)","v":0},0,null,null,null,{"$f":"BR22+BS22-BT22+BU22","v":0},null,null,{"$f":"BQ22-BW22","v":0},{"$f":"BV22-BX22","v":0},{"$f":"+BY22*1.1%","v":0},null,{"$f":"BZ22+CA22+CB22","v":0},{"$f":"SUM(BY22:CB22)","v":0},null,{"$f":"CE22-SUM(BQ22,BV22)","v":0}]
[null,null,"RSVA - Wholesale Market Service Charge",1580,null,null,null,null,{"$f":"E23+F23-G23+H23","v":0},null,null,null,null,{"$f":"J23+K23-L23+M23","v":0},{"$f":"I23","v":0},null,null,null,{"$f":"O23+P23-Q23+SUM(R23:R23)","v":0},0,null,null,null,{"$f":"T23+U23-V23+W23","v":0},0,null,null,null,{"$f":"Y23+Z23-AA23+SUM(AB23:AB23)","v":0},0,null,null,null,{"$f":"AD23+AE23-AF23+AG23","v":0},0,null,null,null,0,0,null,null,null,{"$f":"AN23+AO23-AP23+AQ23","v":0},0,null,null,null,0,0,null,null,null,{"$f":"AX23+AY23-AZ23+BA23","v":0},0,null,null,null,0,0,null,null,null,{"$f":"BH23+BI23-BJ23+BK23","v":0},0,null,null,null,{"$f":"BM23+BN23-BO23+SUM(BP23:BP23)","v":0},0,null,null,null,{"$f":"BR23+BS23-BT23+BU23","v":0},null,null,0,0,0,null,0,{"$f":"SUM(BY23:CB23)","v":0},null,{"$f":"CE23-SUM(BQ23,BV23)","v":0}]
[null,null,"Variance WMS – Sub-account CBR Class A",1580,null,null,null,null,0,null,null,null,null,0,0,null,null,null,0,0,null,null,null,0,0,null,null,null,0,0,null,null,null,0,0,null,null,null,0,0,null,null,null,0,0,null,null,null,0,0,null,null,null,0,0,null,null,null,{"$f":"BC24+BD24-BE24+SUM(BF24:BF24)","v":0},0,null,null,null,0,0,null,null,null,{"$f":"BM24+BN24-BO24+SUM(BP24:BP24)","v":0},0,null,null,null,0,null,null,0,0,0,null,0,0,null,{"$f":"CE24-SUM(BQ24,BV24)","v":0}]
[null,null,"Variance WMS – Sub-account CBR Class B",1580,null,null,null,null,0,null,null,null,null,0,0,null,null,null,0,0,null,null,null,0,0,null,null,null,0,0,null,null,null,0,0,null,null,null,0,0,null,null,null,0,0,null,null,null,0,0,null,null,null,0,0,null,null,null,0,0,null,null,null,0,0,null,null,null,{"$f":"BM25+BN25-BO25+SUM(BP25:BP25)","v":0},0,null,null,null,0,null,null,0,0,0,null,0,0,null,{"$f":"CE25-SUM(BQ25,BV25)","v":0}]
[null,null,"RSVA - Retail Transmission Network Charge",1584,null,null,null,null,0,null,null,null,null,0,{"$f":"I26","v":0},null,null,null,0,0,null,null,null,{"$f":"T26+U26-V26+W26","v":0},0,null,null,null,0,0,null,null,null,{"$f":"AD26+AE26-AF26+AG26","v":0},0,null,null,null,0,0,null,null,null,{"$f":"AN26+AO26-AP26+AQ26","v":0},0,null,null,null,0,0,null,null,null,{"$f":"AX26+AY26-AZ26+BA26","v":0},0,null,null,null,0,0,null,null,null,{"$f":"BH26+BI26-BJ26+BK26","v":0},0,null,null,null,0,0,null,null,null,{"$f":"BR26+BS26-BT26+BU26","v":0},null,null,0,0,0,null,0,0,null,{"$f":"CE26-SUM(BQ26,BV26)","v":0}]
[null,null,"RSVA - Retail Transmission Connection Charge",1586,null,null,null,null,0,null,null,null,null,0,0,null,null,null,0,0,null,null,null,0,0,null,null,null,0,0,null,null,null,0,0,null,null,null,0,0,null,null,null,0,0,null,null,null,0,0,null,null,null,0,0,null,null,null,0,0,null,null,null,0,0,null,null,null,0,0,null,null,null,0,null,null,0,0,0,null,0,0,null,0]
[null,null,"RSVA - Power",1588,null,null,null,null,0,null,null,null,null,0,0,null,null,null,0,0,null,null,null,0,0,null,null,null,0,0,null,null,null,0,0,null,null,null,0,0,null,null,null,0,0,null,null,null,0,0,null,null,null,0,0,null,null,null,0,0,null,null,null,0,0,null,null,null,0,0,null,null,null,0,null,null,0,0,0,null,0,0,null,0]
[null,null,"RSVA - Global Adjustment",1589,null,null,null,null,0,null,null,null,null,0,0,null,null,null,0,0,null,null,null,0,0,null,null,null,0,0,null,null,null,0,0,null,null,null,0,0,null,null,null,0,0,null,null,null,0,0,null,null,null,0,0,null,null,null,0,0,null,null,null,0,0,null,null,null,0,0,null,null,null,0,null,null,0,0,0,null,0,0,null,0]
[null,null,"Disposition and Recovery/Refund of Regulatory Balances (2009)4",1595,null,null,null,null,0,null,null,null,null,0,0,null,null,null,0,0,null,null,null,0,0,null,null,null,0,0,null,null,null,0,0,null,null,null,0,0,null,null,null,0,0,null,null,null,0,0,null,null,null,0,0,null,null,null,0,0,null,null,null,0,0,null,null,null,0,0,null,null,null,0,null,null,0,0,0,null,0,0,null,0]
[null,null,"Disposition and Recovery/Refund of Regulatory Balances (2010)4",1595,null,null,null,null,0,null,null,null,null,0,0,null,null,null,0,0,null,null,null,0,0,null,null,null,0,0,null,null,null,0,0,null,null,null,0,0,null,null,null,0,0,null,null,null,0,0,null,null,null,0,0,null,null,null,0,0,null,null,null,0,0,null,null,null,0,0,null,null,null,0,null,null,0,0,0,null,0,0,null,0]
[null,null,"Disposition and Recovery/Refund of Regulatory Balances (2011)4",1595,null,null,null,null,0,null,null,null,null,0,0,null,null,null,{"$f":"O32+P32-Q32+SUM(R32:R32)","v":0},0,null,null,null,0,0,null,null,null,0,0,null,null,null,0,0,null,null,null,0,0,null,null,null,0,0,null,null,null,0,0,null,null,null,0,0,null,null,null,0,0,null,null,null,0,0,null,null,null,0,0,null,null,null,0,null,null,0,0,0,null,0,0,null,0]
[null,null,"Disposition and Recovery/Refund of Regulatory Balances (2012)4",1595,null,null,null,null,0,null,null,null,null,0,0,null,null,null,0,0,null,null,null,0,0,null,null,null,0,0,null,null,null,0,0,null,null,null,0,0,null,null,null,0,0,null,null,null,0,0,null,null,null,0,0,null,null,null,0,0,null,null,null,0,0,null,null,null,0,0,null,null,null,0,null,null,0,0,0,null,0,0,null,0]
[null,null,"Disposition and Recovery/Refund of Regulatory Balances (2013)4",1595,null,null,null,null,0,null,null,null,null,0,0,null,null,null,0,0,null,null,null,0,0,null,null,null,0,0,null,null,null,0,0,null,null,null,0,0,null,null,null,0,0,null,null,null,0,0,null,null,null,0,0,null,null,null,0,0,null,null,null,0,0,null,null,null,0,0,null,null,null,0,null,null,0,0,0,null,0,0,null,0]
[null,null,"Disposition and Recovery/Refund of Regulatory Balances (2014)4",1595,null,null,null,null,0,null,null,null,null,0,0,null,null,null,0,0,null,null,null,0,0,null,null,null,0,0,null,null,null,0,0,null,null,null,0,0,null,null,null,0,0,null,null,null,0,0,null,null,null,0,0,null,null,null,{"$f":"BC35+BD35-BE35+SUM(BF35:BF35)","v":0},0,null,null,null,0,0,null,null,null,{"$f":"BM35+BN35-BO35+SUM(BP35:BP35)","v":0},{"$f":"BL35","v":0},null,null,null,0,null,null,0,0,{"$f":"+BY35*1.1%","v":0},null,{"$f":"BZ35+CA35+CB35","v":0},{"$f":"SUM(BY35:CB35)","v":0},null,0]
[null,null,"Disposition and Recovery/Refund of Regulatory Balances (2015)4",1595,null,null,null,null,0,null,null,null,null,0,0,null,null,null,0,0,null,null,null,0,0,null,null,null,0,0,null,null,null,0,0,null,null,null,0,0,null,null,null,0,0,null,null,null,0,0,null,null,null,0,0,null,null,null,0,0,null,null,null,0,0,null,null,null,0,0,null,null,null,0,null,null,0,0,{"$f":"+BY36*1.1%","v":0},null,0,0,null,0]
[null,null,"Disposition and Recovery/Refund of Regulatory Balances (2016)4\nNot to be disposed of unless rate rider has expired and balance has been audited",1595,null,null,null,null,0,null,null,null,null,0,0,null,null,null,0,0,null,null,null,0,0,null,null,null,0,0,null,null,null,0,0,null,null,null,0,0,null,null,null,0,0,null,null,null,0,0,null,null,null,0,0,null,null,null,0,0,null,null,null,0,0,null,null,null,0,0,null,null,null,0,null,null,0,0,{"$f":"+BY37*1.1%","v":0},null,0,0,null,0]
[]
[]
[null,null,{"$f":"C29","v":"RSVA - Global Adjustment"},1589,{"$f":"E29","v":0},0,0,0,0,0,0,0,0,0,0,0,0,0,0,0,0,0,0,0,0,0,0,0,0,0,0,0,0,0,0,0,0,0,0,0,0,0,0,0,0,0,0,0,0,0,0,0,0,0,0,0,0,0,0,0,0,0,0,0,0,0,0,0,{"$f":"BQ29","v":0},0,0,0,0,0,0,0,0,0,{"$f":"CA29","v":0},{"$f":"CB29","v":0},{"$f":"CC29","v":0},{"$f":"CD29","v":0},{"$f":"CE29","v":0},{"$f":"CE40-SUM(BQ40,BV40)","v":0}]
[null,null,"Total Group 1 Balance excluding Account 1589 - Global Adjustment",null,{"$f":"SUM(E21:E37)-E29","v":0},{"$f":"SUM(F21:F37)-F29","v":0},0,0,0,0,0,0,0,0,0,{"$f":"SUM(P21:P38)-P29","v":0},{"$f":"SUM(Q21:Q38)-Q29","v":0},0,0,0,0,0,0,0,0,0,0,0,0,0,0,0,0,0,0,0,0,0,0,0,0,0,0,0,0,0,0,0,0,0,0,0,0,0,0,0,0,0,0,0,0,0,0,0,0,0,0,0,0,0,0,0,0,{"$f":"SUM(BV21:BV38)-BV29","v":0},0,0,0,0,0,{"$f":"SUM(CB21:CB37)-CB29","v":0},{"$f":"SUM(CC21:CC38)-CC29","v":0},{"$f":"SUM(CD21:CD38)-CD29","v":0},{"$f":"SUM(CE21:CE38)-CE29-CE24-CE25","v":0},{"$f":"CE41-SUM(BQ41,BV41)","v":0}]
[null,null,"Total Group 1 Balance",null,{"$f":"SUM(E40,E41)","v":0},{"$f":"SUM(F40,F41)","v":0},0,0,0,0,0,0,0,0,0,{"$f":"SUM(P40,P41)","v":0},{"$f":"SUM(Q40,Q41)","v":0},0,0,0,0,0,0,0,0,0,0,0,0,0,0,0,0,0,0,0,0,0,0,0,0,0,0,0,0,0,0,0,0,0,0,0,0,0,0,0,0,0,0,0,0,0,0,0,0,0,0,0,0,0,0,0,0,0,0,0,0,0,0,0,0,{"$f":"SUM(CD40,CD41)","v":0},{"$f":"SUM(CE40,CE41)","v":0},{"$f":"CE42-SUM(BQ42,BV42)","v":0}]
[]
[29,null,"LRAM Variance Account (only input amounts if applying for disposition of this account)",1568,null,null,null,null,null,null,null,null,null,null,null,null,null,null,{"$f":"O44+P44-Q44+SUM(R44:R44)","v":0},null,null,null,null,{"$f":"T44+U44-V44+W44","v":0},{"$f":"S44","v":0},null,null,null,{"$f":"Y44+Z44-AA44+SUM(AB44:AB44)","v":0},{"$f":"X44","v":0},null,null,null,{"$f":"AD44+AE44-AF44+AG44","v":0},{"$f":"AC44","v":0},null,null,null,{"$f":"AI44+AJ44-AK44+SUM(AL44:AL44)","v":0},{"$f":"AH44","v":0},null,null,null,{"$f":"AN44+AO44-AP44+AQ44","v":0},{"$f":"AM44","v":0},null,null,null,{"$f":"AS44+AT44-AU44+SUM(AV44:AV44)","v":0},{"$f":"AR44","v":0},null,null,null,{"$f":"AX44+AY44-AZ44+BA44","v":0},{"$f":"AW44","v":0},null,0,null,{"$f":"BC44+BD44-BE44+SUM(BF44:BF44)","v":0},{"$f":"BB44","v":0},null,null,null,{"$f":"BH44+BI44-BJ44+BK44","v":0},{"$f":"BG44","v":0},null,null,null,{"$f":"BM44+BN44-BO44+SUM(BP44:BP44)","v":0},{"$f":"BL44","v":0},null,null,null,{"$f":"BR44+BS44-BT44+BU44","v":0},null,null,{"$f":"BQ44-BW44","v":0},{"$f":"BV44-BX44","v":0},{"$f":"+BY44*1.1%","v":0},null,{"$f":"BZ44+CA44+CB44","v":0},{"$f":"SUM(BU44:CB44)","v":0},null,{"$f":"CE44-SUM(BQ44,BV44)","v":0}]
[]
[null,null,"Total including Account 1568",null,{"$f":"SUM(E42,E44)","v":0},{"$f":"SUM(F42,F44)","v":0},0,0,0,0,0,0,0,0,0,0,0,0,0,0,0,0,0,0,0,0,0,0,0,0,0,0,0,0,0,0,0,0,0,0,0,0,0,0,0,0,0,0,0,0,0,0,0,0,0,0,0,0,0,0,0,0,0,0,0,0,0,0,0,0,0,0,0,0,0,0,0,0,0,{"$f":"SUM(CB42,CB44)","v":0},{"$f":"SUM(CC42,CC44)","v":0},{"$f":"SUM(CD42,CD44)","v":0},{"$f":"SUM(CE42,CE44)","v":0},{"$f":"SUM(CF42,CF44)","v":0}]
[]
[]
[null,null,"For all OEB-Approved dispositions, please ensure that the disposition amount has the same sign (e.g: debit balances are to have a positive figure and credit balance are to have a negative figure) as per the related OEB decision."]
[]
[]
[null,1,"Please provide explanations for the nature of the adjustments.  If the adjustment relates to previously OEB-Approved disposed balances, please provide amounts for adjustments and include supporting documentations."]
[null,2,"For RSVA accounts only, report the net variance to the account during the year.  For all other accounts, record the transactions during the year."]
[null,3,"If the LDC’s rate year begins on January 1, 2017, the projected interest is recorded from January 1, 2016 to December 31, 2016 on the December 31, 2015 balances adjusted for the disposed balances approved by the OEB in the 2016 rate decision.  If the LDC’s rate year begins on May 1, 2017, the projected interest is recorded from January 1, 2016 to April 30, 2017 on the December 31, 2015 balances adjusted for the disposed interest balances approved by the OEB in the 2016 rate decision."]
[null,4,"Include Account 1595 as part of Group 1 accounts (lines 30-36) for review and disposition if the recovery (or refund) period has been completed. If the recovery (or refund) period has not been completed, do not include the respective balance in Account 1595 for disposition at this time."]

{"sheet":"4. Billing Det. for Def-Var","index":5,"n_rows":61,"n_cols":21,"rows_kept":61,"cut":false,"hidden":true,"merged":[[46,9,47,9],[46,10,47,10],[44,1,44,7],[45,3,45,8],[46,3,47,3],[46,4,47,4],[46,5,47,5],[46,6,47,6],[46,7,47,7],[46,8,47,8],[1,1,8,9],[14,20,15,20],[14,10,15,10],[14,11,15,11],[14,12,15,12],[14,13,15,13],[14,14,15,14],[14,15,15,15],[12,1,12,7],[13,3,13,8],[14,3,15,3],[14,4,15,4],[14,5,15,5],[14,6,15,6],[14,7,15,7],[13,11,13,18],[31,17,31,19],[32,17,32,20],[14,8,15,8],[14,9,15,9],[14,16,15,16],[14,17,15,17],[14,19,15,19],[14,18,15,18]]}
["Back to Index",null,null,null,null,null,null,null,null,null,"Yes",null,null,null,null,null,null,null,null,{"$f":"IF(D18=\"YES\", \"YES\", \"NO\")","v":"NO"}]
[null,"INCENTIVE REGULATION MODEL FOR 2018 FILERS"]
[]
[]
[]
[]
[]
[]
[]
[]
[]
[]
[null,"Information from the most recent RRR (2016 for 2018 IRM)"]
[null,null,null,null,null,null,null,null,null,null,null,"Approved Recoveries (class allocation %)"]
[null,null,null,"Total Metered kWh","Total Metered kW","Metered kWh for Non-RPP Customers","Metered kW for Non-RPP Customers","Metered kWh for Wholesale Market Participants (WMP)","Metered kW for Wholesale Market Participants (WMP)","Total Metered kWh less WMP consumption\n(if applicable)","Total Metered kW less WMP consumption \n(if applicable)","1595 Recovery Proportion (2009) 1","1595 Recovery Proportion (2010) 1","1595 Recovery Proportion (2011) 1","1595 Recovery Proportion (2012) 1","1595 Recovery Proportion (2013) 1","1595 Recovery Proportion (2014) 1","1595 Recovery Proportion (2015) 1","1595 Recovery Proportion (2016) 1","1568 LRAM Variance Account Class Allocation                           ($ amounts)","Number of Customers for Residential and GS<50 classes3"]
[null,"Rate Class","Unit"]
[null,{"$f":"'Model Specs'!C15","v":"RESIDENTIAL SERVICE CLASSIFICATION"},"kWh",null,null,null,null,null,null,{"$f":"D17-H17","v":0},{"$f":"E17-I17","v":0}]
[null,{"$f":"'Model Specs'!C16","v":"GENERAL SERVICE LESS THAN 50 kW SERVICE CLASSIFICATION"},"kWh",null,null,null,null,null,null,{"$f":"D18-H18","v":0},{"$f":"E18-I18","v":0}]
[null,{"$f":"'Model Specs'!C17","v":"GENERAL SERVICE 50 to 4,999 kW SERVICE CLASSIFICATION"},"kW",null,null,null,null,null,null,0,{"$f":"E19-I19","v":0}]
[null,{"$f":"'Model Specs'!C18","v":"LARGE USE SERVICE CLASSIFICATION"},"kW",null,null,null,null,null,null,0,0]
[null,{"$f":"'Model Specs'!C19","v":"UNMETERED SCATTERED LOAD SERVICE CLASSIFICATION"},"kW",null,null,null,null,null,null,0,0]
[null,{"$f":"'Model Specs'!C20","v":"SENTINEL LIGHTING SERVICE CLASSIFICATION"},"kW",null,null,null,null,null,null,0,0]
[null,{"$f":"'Model Specs'!C21","v":"STREET LIGHTING SERVICE CLASSIFICATION"},"kWh",null,null,null,null,null,null,0,0]
[]
[]
[]
[]
[]
[null,null,"Total",{"$f":"SUM(D17:D28)","v":0},{"$f":"SUM(E17:E28)","v":0},0,0,0,0,0,0,0,0,0,0,0,0,0,0,0,0]
[]
[]
[null,"Threshold Test",null,null,null,null,null,null,null,null,null,null,null,null,null,null,null,"1568 Account Balance from Continuity Schedule",null,null,{"$f":"'3. Continuity Schedule'!CD44","v":0}]
[null,"Total Claim (including Account 1568)",null,{"$f":"'3. Continuity Schedule'!CD46-'3. Continuity Schedule'!CD38","v":0},null,null,null,null,null,null,null,null,null,null,null,null,null,{"$f":"IF(U32=T29,\"Total Balance of Account 1568 in Column R matches the amount entered on the Continuity Schedule\",\"Total Balance of Account 1568 in Column T DOES NOT MATCH the amount entered on the Continuity Schedule\")","v":"Total Balance of Account 1568 in Column R matches the amount entered on the Continuity Schedule"}]
[null,"Total Claim for Threshold Test (All Group 1 Accounts)",null,{"$f":"'3. Continuity Schedule'!CD42-'3. Continuity Schedule'!CD38","v":0}]
[null,"Threshold Test (Total claim per kWh) 2",null,{"$f":"IFERROR(D34/D29,\"\")","v":""}]
[null,"Exceeds Threshold?",null,{"$f":"IF(D35=\"\",\"\",IF(OR(D35>0.001,D35<-0.001),\"Yes\",\"No\"))","v":""}]
[null,"ELECT TO DISPOSE of the Group 1 Account Balances?",null,"Yes"]
[]
[]
[null,"As per Section 3.2.5 of the 2017 Filing Requirements for Electricity Distribution Rate Applications, an applicant may elect to dispose of the Group 1 account balances below the threshold. "]
[null,"1 Residual Account balance to be allocated to rate classes in proportion to the recovery share as established when rate riders were implemented."]
[null,"2 The Threshold Test does not include the amount in 1568."]
[null,"3 The proportion of customers for the Residential and GS<50 Classes will be used to allocate Account 1551."]
[]
[null,"Information from the 2015 RRR"]
[]
[null,null,null,"Total Metered kWh","Total Metered kW","Metered kWh for Non-RPP Customers","Metered kW for Non-RPP Customers","Metered kWh for Wholesale Market Participants (WMP)","Metered kW for Wholesale Market Participants (WMP)","Total Metered kWh less WMP consumption\n(if applicable)","Total Metered kW less WMP consumption \n(if applicable)"]
[null,"Rate Class","Unit"]
[null,{"$f":"B17","v":"RESIDENTIAL SERVICE CLASSIFICATION"},"kWh",null,null,null,null,null,null,{"$f":"D49-H49","v":0},{"$f":"E49-I49","v":0}]
[null,{"$f":"B18","v":"GENERAL SERVICE LESS THAN 50 kW SERVICE CLASSIFICATION"},"kWh",null,null,null,null,null,null,{"$f":"D50-H50","v":0},{"$f":"E50-I50","v":0}]
[null,"GENERAL SERVICE 50 to 4,999 kW SERVICE CLASSIFICATION","kW",null,null,null,null,null,null,0,{"$f":"E51-I51","v":0}]
[null,"LARGE USE SERVICE CLASSIFICATION","kW",null,null,null,null,null,null,0,{"$f":"E52-I52","v":0}]
[null,"UNMETERED SCATTERED LOAD SERVICE CLASSIFICATION","kWh",null,null,null,null,null,null,0,0]
[null,"SENTINEL LIGHTING SERVICE CLASSIFICATION","kW",null,null,null,null,null,null,0,0]
[null,"STREET LIGHTING SERVICE CLASSIFICATION","kW",null,null,null,null,null,null,0,0]
[null,0,"kW",null,null,null,null,null,null,0,0]
[null,0,"kWh",null,null,null,null,null,null,0,0]
[null,0,"kWh",null,null,null,null,null,null,0,0]
[null,0,"kW",null,null,null,null,null,null,0,0]
[null,null,null,null,null,null,null,null,null,0,0]
[null,null,"Total",{"$f":"SUM(D49:D60)","v":0},{"$f":"SUM(E49:E60)","v":0},0,0,0,0,0,0]

{"sheet":"5. Allocating Def-Var Balances","index":6,"n_rows":35,"n_cols":24,"rows_kept":35,"cut":false,"hidden":true,"merged":[[1,1,8,7],[13,23,14,23],[13,15,14,15],[13,16,14,16],[13,17,14,17],[13,18,14,18],[13,19,14,19],[13,20,14,20],[13,14,14,14],[10,1,11,11],[13,2,14,2],[13,3,14,3],[13,4,14,4],[13,5,14,5],[13,21,14,21],[13,22,14,22]]}
["Back to Index"]
[null,"INCENTIVE REGULATION MODEL FOR 2018 FILERS"]
[]
[]
[]
[]
[]
[]
[]
[]
[null,"No input required.  This workshseet allocates the deferral/variance account balances (Group 1 and 1568) to the appropriate classes as per EDDVAR dated July 31, 2009"]
[]
[null,"Allocation of Group 1 Accounts (including Account 1568)"]
[null,null,"% of  Total kWh","% of  Total non-RPP kWh","% of Customer Numbers **","% of  Total kWh adjusted for WMP",null,null,"allocated based on Total less WMP",null,null,null,null,"allocated based on Total less WMP","1595_(2009)","1595_(2010)","1595_(2011)","1595_(2012)","1595_(2013)","1595_(2014)","1595_(2015)","1595_(2016)","1595_(2017)",1568]
[null,"Rate Class",null,null,null,null,1550,1551,1580,"1580 (Class A)","1580 (Class B)",1584,1586,1588]
[null,{"$f":"'4. Billing Det. for Def-Var'!B17","v":"RESIDENTIAL SERVICE CLASSIFICATION"},{"$f":"IFERROR('4. Billing Det. for Def-Var'!D17/'4. Billing Det. for Def-Var'!D$29,\"\")","v":""},{"$f":"IFERROR('4. Billing Det. for Def-Var'!F17/'4. Billing Det. for Def-Var'!F$29,\"\")","v":""},{"$f":"IFERROR('4. Billing Det. for Def-Var'!U17/'4. Billing Det. for Def-Var'!U$29,\"\")","v":""},{"$f":"IFERROR('4. Billing Det. for Def-Var'!J17/'4. Billing Det. for Def-Var'!J$29,\"\")","v":""},{"$f":"IFERROR(G$28*C16,\"\")","v":""},{"$f":"IFERROR(H$28*E16,\"\")","v":""},{"$f":"IFERROR(I$28*F16,\"\")","v":""},null,null,{"$f":"IFERROR(L$28*$C16,\"\")","v":""},{"$f":"IFERROR(M$28*$C16,\"\")","v":""},{"$f":"IFERROR(N$28*$F16,\"\")","v":""},{"$f":"'4. Billing Det. for Def-Var'!L17*O$28","v":0},{"$f":"'4. Billing Det. for Def-Var'!M17*P$28","v":0},{"$f":"'4. Billing Det. for Def-Var'!N17*Q$28","v":0},{"$f":"'4. Billing Det. for Def-Var'!O17*R$28","v":0},{"$f":"'4. Billing Det. for Def-Var'!P17*S$28","v":0},{"$f":"'4. Billing Det. for Def-Var'!Q17*T$28","v":0},{"$f":"'4. Billing Det. for Def-Var'!R17*U$28","v":0},{"$f":"'4. Billing Det. for Def-Var'!S17*V$28","v":0},{"$f":"'4. Billing Det. for Def-Var'!T17*W$28","v":0},{"$f":"'4. Billing Det. for Def-Var'!T17","v":0}]
[null,{"$f":"'4. Billing Det. for Def-Var'!B18","v":"GENERAL SERVICE LESS THAN 50 kW SERVICE CLASSIFICATION"},{"$f":"IFERROR('4. Billing Det. for Def-Var'!D18/'4. Billing Det. for Def-Var'!D$29,\"\")","v":""},{"$f":"IFERROR('4. Billing Det. for Def-Var'!F18/'4. Billing Det. for Def-Var'!F$29,\"\")","v":""},{"$f":"IFERROR('4. Billing Det. for Def-Var'!U18/'4. Billing Det. for Def-Var'!U$29,\"\")","v":""},{"$f":"IFERROR('4. Billing Det. for Def-Var'!J18/'4. Billing Det. for Def-Var'!J$29,\"\")","v":""},{"$f":"IFERROR(G$28*C17,\"\")","v":""},{"$f":"IFERROR(H$28*E17,\"\")","v":""},{"$f":"IFERROR(I$28*F17,\"\")","v":""},null,null,{"$f":"IFERROR(L$28*$C17,\"\")","v":""},"",{"$f":"IFERROR(N$28*$F17,\"\")","v":""},{"$f":"'4. Billing Det. for Def-Var'!L18*O$28","v":0},{"$f":"'4. Billing Det. for Def-Var'!M18*P$28","v":0},{"$f":"'4. Billing Det. for Def-Var'!N18*Q$28","v":0},{"$f":"'4. Billing Det. for Def-Var'!O18*R$28","v":0},{"$f":"'4. Billing Det. for Def-Var'!P18*S$28","v":0},{"$f":"'4. Billing Det. for Def-Var'!Q18*T$28","v":0},{"$f":"'4. Billing Det. for Def-Var'!R18*U$28","v":0},{"$f":"'4. Billing Det. for Def-Var'!S18*V$28","v":0},{"$f":"'4. Billing Det. for Def-Var'!T18*W$28","v":0},{"$f":"'4. Billing Det. for Def-Var'!T18","v":0}]
[null,{"$f":"'4. Billing Det. for Def-Var'!B19","v":"GENERAL SERVICE 50 to 4,999 kW SERVICE CLASSIFICATION"},{"$f":"IFERROR('4. Billing Det. for Def-Var'!D19/'4. Billing Det. for Def-Var'!D$29,\"\")","v":""},{"$f":"IFERROR('4. Billing Det. for Def-Var'!F19/'4. Billing Det. for Def-Var'!F$29,\"\")","v":""},{"$f":"IFERROR('4. Billing Det. for Def-Var'!U19/'4. Billing Det. for Def-Var'!U$29,\"\")","v":""},{"$f":"IFERROR('4. Billing Det. for Def-Var'!J19/'4. Billing Det. for Def-Var'!J$29,\"\")","v":""},{"$f":"IFERROR(G$28*C18,\"\")","v":""},{"$f":"IFERROR(H$28*E18,\"\")","v":""},{"$f":"IFERROR(I$28*F18,\"\")","v":""},null,null,"","",{"$f":"IFERROR(N$28*$F18,\"\")","v":""},{"$f":"'4. Billing Det. for Def-Var'!L19*O$28","v":0},{"$f":"'4. Billing Det. for Def-Var'!M19*P$28","v":0},{"$f":"'4. Billing Det. for Def-Var'!N19*Q$28","v":0},{"$f":"'4. Billing Det. for Def-Var'!O19*R$28","v":0},{"$f":"'4. Billing Det. for Def-Var'!P19*S$28","v":0},{"$f":"'4. Billing Det. for Def-Var'!Q19*T$28","v":0},{"$f":"'4. Billing Det. for Def-Var'!R19*U$28","v":0},{"$f":"'4. Billing Det. for Def-Var'!S19*V$28","v":0},{"$f":"'4. Billing Det. for Def-Var'!T19*W$28","v":0},{"$f":"'4. Billing Det. for Def-Var'!T19","v":0}]
[null,{"$f":"'4. Billing Det. for Def-Var'!B20","v":"LARGE USE SERVICE CLASSIFICATION"},{"$f":"IFERROR('4. Billing Det. for Def-Var'!D20/'4. Billing Det. for Def-Var'!D$29,\"\")","v":""},{"$f":"IFERROR('4. Billing Det. for Def-Var'!F20/'4. Billing Det. for Def-Var'!F$29,\"\")","v":""},{"$f":"IFERROR('4. Billing Det. for Def-Var'!U20/'4. Billing Det. for Def-Var'!U$29,\"\")","v":""},{"$f":"IFERROR('4. Billing Det. for Def-Var'!J20/'4. Billing Det. for Def-Var'!J$29,\"\")","v":""},"","","",null,null,"","","",{"$f":"'4. Billing Det. for Def-Var'!L20*O$28","v":0},{"$f":"'4. Billing Det. for Def-Var'!M20*P$28","v":0},{"$f":"'4. Billing Det. for Def-Var'!N20*Q$28","v":0},{"$f":"'4. Billing Det. for Def-Var'!O20*R$28","v":0},{"$f":"'4. Billing Det. for Def-Var'!P20*S$28","v":0},{"$f":"'4. Billing Det. for Def-Var'!Q20*T$28","v":0},{"$f":"'4. Billing Det. for Def-Var'!R20*U$28","v":0},{"$f":"'4. Billing Det. for Def-Var'!S20*V$28","v":0},{"$f":"'4. Billing Det. for Def-Var'!T20*W$28","v":0},{"$f":"'4. Billing Det. for Def-Var'!T20","v":0}]
[null,{"$f":"'4. Billing Det. for Def-Var'!B21","v":"UNMETERED SCATTERED LOAD SERVICE CLASSIFICATION"},{"$f":"IFERROR('4. Billing Det. for Def-Var'!D21/'4. Billing Det. for Def-Var'!D$29,\"\")","v":""},{"$f":"IFERROR('4. Billing Det. for Def-Var'!F21/'4. Billing Det. for Def-Var'!F$29,\"\")","v":""},{"$f":"IFERROR('4. Billing Det. for Def-Var'!U21/'4. Billing Det. for Def-Var'!U$29,\"\")","v":""},{"$f":"IFERROR('4. Billing Det. for Def-Var'!J21/'4. Billing Det. for Def-Var'!J$29,\"\")","v":""},"","","",null,null,"","","",{"$f":"'4. Billing Det. for Def-Var'!L21*O$28","v":0},{"$f":"'4. Billing Det. for Def-Var'!M21*P$28","v":0},{"$f":"'4. Billing Det. for Def-Var'!N21*Q$28","v":0},{"$f":"'4. Billing Det. for Def-Var'!O21*R$28","v":0},{"$f":"'4. Billing Det. for Def-Var'!P21*S$28","v":0},{"$f":"'4. Billing Det. for Def-Var'!Q21*T$28","v":0},{"$f":"'4. Billing Det. for Def-Var'!R21*U$28","v":0},{"$f":"'4. Billing Det. for Def-Var'!S21*V$28","v":0},{"$f":"'4. Billing Det. for Def-Var'!T21*W$28","v":0},{"$f":"'4. Billing Det. for Def-Var'!T21","v":0}]
[null,{"$f":"'4. Billing Det. for Def-Var'!B22","v":"SENTINEL LIGHTING SERVICE CLASSIFICATION"},{"$f":"IFERROR('4. Billing Det. for Def-Var'!D22/'4. Billing Det. for Def-Var'!D$29,\"\")","v":""},{"$f":"IFERROR('4. Billing Det. for Def-Var'!F22/'4. Billing Det. for Def-Var'!F$29,\"\")","v":""},{"$f":"IFERROR('4. Billing Det. for Def-Var'!U22/'4. Billing Det. for Def-Var'!U$29,\"\")","v":""},{"$f":"IFERROR('4. Billing Det. for Def-Var'!J22/'4. Billing Det. for Def-Var'!J$29,\"\")","v":""},"","","",null,null,"","","",{"$f":"'4. Billing Det. for Def-Var'!L22*O$28","v":0},{"$f":"'4. Billing Det. for Def-Var'!M22*P$28","v":0},{"$f":"'4. Billing Det. for Def-Var'!N22*Q$28","v":0},{"$f":"'4. Billing Det. for Def-Var'!O22*R$28","v":0},{"$f":"'4. Billing Det. for Def-Var'!P22*S$28","v":0},{"$f":"'4. Billing Det. for Def-Var'!Q22*T$28","v":0},{"$f":"'4. Billing Det. for Def-Var'!R22*U$28","v":0},{"$f":"'4. Billing Det. for Def-Var'!S22*V$28","v":0},{"$f":"'4. Billing Det. for Def-Var'!T22*W$28","v":0},{"$f":"'4. Billing Det. for Def-Var'!T22","v":0}]
[null,{"$f":"'4. Billing Det. for Def-Var'!B23","v":"STREET LIGHTING SERVICE CLASSIFICATION"},{"$f":"IFERROR('4. Billing Det. for Def-Var'!D23/'4. Billing Det. for Def-Var'!D$29,\"\")","v":""},{"$f":"IFERROR('4. Billing Det. for Def-Var'!F23/'4. Billing Det. for Def-Var'!F$29,\"\")","v":""},{"$f":"IFERROR('4. Billing Det. for Def-Var'!U23/'4. Billing Det. for Def-Var'!U$29,\"\")","v":""},{"$f":"IFERROR('4. Billing Det. for Def-Var'!J23/'4. Billing Det. for Def-Var'!J$29,\"\")","v":""},"","","",null,null,"","","",{"$f":"'4. Billing Det. for Def-Var'!L23*O$28","v":0},{"$f":"'4. Billing Det. for Def-Var'!M23*P$28","v":0},{"$f":"'4. Billing Det. for Def-Var'!N23*Q$28","v":0},{"$f":"'4. Billing Det. for Def-Var'!O23*R$28","v":0},{"$f":"'4. Billing Det. for Def-Var'!P23*S$28","v":0},{"$f":"'4. Billing Det. for Def-Var'!Q23*T$28","v":0},{"$f":"'4. Billing Det. for Def-Var'!R23*U$28","v":0},{"$f":"'4. Billing Det. for Def-Var'!S23*V$28","v":0},{"$f":"'4. Billing Det. for Def-Var'!T23*W$28","v":0},{"$f":"'4. Billing Det. for Def-Var'!T23","v":0}]
[null,{"$f":"'4. Billing Det. for Def-Var'!B24","v":0},{"$f":"IFERROR('4. Billing Det. for Def-Var'!D24/'4. Billing Det. for Def-Var'!D$29,\"\")","v":""},{"$f":"IFERROR('4. Billing Det. for Def-Var'!F24/'4. Billing Det. for Def-Var'!F$29,\"\")","v":""},{"$f":"IFERROR('4. Billing Det. for Def-Var'!U24/'4. Billing Det. for Def-Var'!U$29,\"\")","v":""},{"$f":"IFERROR('4. Billing Det. for Def-Var'!J24/'4. Billing Det. for Def-Var'!J$29,\"\")","v":""},"","","",null,null,"","","",{"$f":"'4. Billing Det. for Def-Var'!L24*O$28","v":0},{"$f":"'4. Billing Det. for Def-Var'!M24*P$28","v":0},{"$f":"'4. Billing Det. for Def-Var'!N24*Q$28","v":0},{"$f":"'4. Billing Det. for Def-Var'!O24*R$28","v":0},{"$f":"'4. Billing Det. for Def-Var'!P24*S$28","v":0},{"$f":"'4. Billing Det. for Def-Var'!Q24*T$28","v":0},{"$f":"'4. Billing Det. for Def-Var'!R24*U$28","v":0},{"$f":"'4. Billing Det. for Def-Var'!S24*V$28","v":0},{"$f":"'4. Billing Det. for Def-Var'!T24*W$28","v":0},{"$f":"'4. Billing Det. for Def-Var'!T24","v":0}]
[null,{"$f":"'4. Billing Det. for Def-Var'!B25","v":0},{"$f":"IFERROR('4. Billing Det. for Def-Var'!D25/'4. Billing Det. for Def-Var'!D$29,\"\")","v":""},{"$f":"IFERROR('4. Billing Det. for Def-Var'!F25/'4. Billing Det. for Def-Var'!F$29,\"\")","v":""},{"$f":"IFERROR('4. Billing Det. for Def-Var'!U25/'4. Billing Det. for Def-Var'!U$29,\"\")","v":""},{"$f":"IFERROR('4. Billing Det. for Def-Var'!J25/'4. Billing Det. for Def-Var'!J$29,\"\")","v":""},{"$f":"IFERROR(G$28*C24,\"\")","v":""},{"$f":"IFERROR(H$28*E24,\"\")","v":""},{"$f":"IFERROR(I$28*F24,\"\")","v":""},null,null,"","","",{"$f":"'4. Billing Det. for Def-Var'!L25*O$28","v":0},{"$f":"'4. Billing Det. for Def-Var'!M25*P$28","v":0},{"$f":"'4. Billing Det. for Def-Var'!N25*Q$28","v":0},{"$f":"'4. Billing Det. for Def-Var'!O25*R$28","v":0},{"$f":"'4. Billing Det. for Def-Var'!P25*S$28","v":0},{"$f":"'4. Billing Det. for Def-Var'!Q25*T$28","v":0},{"$f":"'4. Billing Det. for Def-Var'!R25*U$28","v":0},{"$f":"'4. Billing Det. for Def-Var'!S25*V$28","v":0},{"$f":"'4. Billing Det. for Def-Var'!T25*W$28","v":0},{"$f":"'4. Billing Det. for Def-Var'!T25","v":0}]
[null,{"$f":"'4. Billing Det. for Def-Var'!B26","v":0},{"$f":"IFERROR('4. Billing Det. for Def-Var'!D26/'4. Billing Det. for Def-Var'!D$29,\"\")","v":""},{"$f":"IFERROR('4. Billing Det. for Def-Var'!F26/'4. Billing Det. for Def-Var'!F$29,\"\")","v":""},{"$f":"IFERROR('4. Billing Det. for Def-Var'!U26/'4. Billing Det. for Def-Var'!U$29,\"\")","v":""},{"$f":"IFERROR('4. Billing Det. for Def-Var'!J26/'4. Billing Det. for Def-Var'!J$29,\"\")","v":""},"","","",null,null,"","","",{"$f":"'4. Billing Det. for Def-Var'!L26*O$28","v":0},{"$f":"'4. Billing Det. for Def-Var'!M26*P$28","v":0},{"$f":"'4. Billing Det. for Def-Var'!N26*Q$28","v":0},{"$f":"'4. Billing Det. for Def-Var'!O26*R$28","v":0},{"$f":"'4. Billing Det. for Def-Var'!P26*S$28","v":0},{"$f":"'4. Billing Det. for Def-Var'!Q26*T$28","v":0},{"$f":"'4. Billing Det. for Def-Var'!R26*U$28","v":0},{"$f":"'4. Billing Det. for Def-Var'!S26*V$28","v":0},{"$f":"'4. Billing Det. for Def-Var'!T26*W$28","v":0},{"$f":"'4. Billing Det. for Def-Var'!T26","v":0}]
[null,{"$f":"'4. Billing Det. for Def-Var'!B27","v":0},{"$f":"IFERROR('4. Billing Det. for Def-Var'!D27/'4. Billing Det. for Def-Var'!D$29,\"\")","v":""},{"$f":"IFERROR('4. Billing Det. for Def-Var'!F27/'4. Billing Det. for Def-Var'!F$29,\"\")","v":""},{"$f":"IFERROR('4. Billing Det. for Def-Var'!U27/'4. Billing Det. for Def-Var'!U$29,\"\")","v":""},{"$f":"IFERROR('4. Billing Det. for Def-Var'!J27/'4. Billing Det. for Def-Var'!J$29,\"\")","v":""},{"$f":"IFERROR(G$28*C26,\"\")","v":""},{"$f":"IFERROR(H$28*E26,\"\")","v":""},{"$f":"IFERROR(I$28*F26,\"\")","v":""},null,null,"","","",{"$f":"'4. Billing Det. for Def-Var'!L27*O$28","v":0},{"$f":"'4. Billing Det. for Def-Var'!M27*P$28","v":0},{"$f":"'4. Billing Det. for Def-Var'!N27*Q$28","v":0},{"$f":"'4. Billing Det. for Def-Var'!O27*R$28","v":0},{"$f":"'4. Billing Det. for Def-Var'!P27*S$28","v":0},{"$f":"'4. Billing Det. for Def-Var'!Q27*T$28","v":0},{"$f":"'4. Billing Det. for Def-Var'!R27*U$28","v":0},{"$f":"'4. Billing Det. for Def-Var'!S27*V$28","v":0},{"$f":"'4. Billing Det. for Def-Var'!T27*W$28","v":0},{"$f":"'4. Billing Det. for Def-Var'!T27","v":0}]
[]
[null,null,{"$f":"SUM(C16:C27)","v":0},{"$f":"SUM(D16:D27)","v":0},{"$f":"SUM(E16:E27)","v":0},{"$f":"SUM(F16:F27)","v":0},{"$f":"'3. Continuity Schedule'!CD21","v":0},{"$f":"'3. Continuity Schedule'!CD22","v":0},{"$f":"'3. Continuity Schedule'!CD23","v":0},null,null,{"$f":"'3. Continuity Schedule'!CD26","v":0},{"$f":"'3. Continuity Schedule'!CD27","v":0},{"$f":"'3. Continuity Schedule'!CD28","v":0},{"$f":"TRANSPOSE('3. Continuity Schedule'!CD30:CD36)","v":0},0,0,0,0,0,0,0,0,{"$f":"SUM(X16:X26)","v":0}]
[null,null,null,null,null,null,{"$f":"SUM(G16:G27)-G28","v":0},{"$f":"SUM(H16:H27)-H28","v":0},0,0,0,0,0,0,0,0,0,0,0,0,0,0,null,0]
[]
[]
[null,"** Used to allocate Account 1551 as this account records the variances arising from the Smart Metering Entity Charges to Residential and GS<50 customers."]
[]
[null,"TO DO:"]
[null,"Hid columns"]

{"sheet":"6. GA Calculation","index":7,"n_rows":51,"n_cols":14,"rows_kept":51,"cut":false,"hidden":true,"merged":[[12,1,12,11],[1,1,8,6]]}
["Back to Index"]
[null,"INCENTIVE REGULATION MODEL FOR 2018 FILERS"]
[]
[]
[]
[]
[]
[]
[]
[]
[]
[]
[null,"The purpose of this tab is to calculate the GA rate riders for all current Class B customers of the distributor.\nIdentify the total billed consumption for former Class B customers prior to becoming Class A customers in  Column G.\nEffective January 2017, the billing determinant and all rate riders for the disposition of GA balances will be calculated on an energy basis (kWhs) regardless of the billing determinant used for distribution rates for the particular class (see Chapter 3, Filing Requirements, section 3.2.5.2)"]
[null,null,"Total Metered Non-RPP consumption minus WMP",null,"Total  Metered Class A Consumption in 2016 (partial and/or full year Class A customers)*",null,"Total Metered Consumption for New Class A customer(s) in the period prior to becoming Class A (i.e. Jan. 1 - June 30, 2016) ",null,"Metered Consumption for Current Class B Customers (Non-RPP consumption LESS WMP, Class A and new Class A's former Class B consumption if applicable)",null,"% of total kWh","Total GA $ allocated to Current Class B Customers","GA Rate Rider"]
[null,null,"kWh","kW","kWh","kW","kWh","kW","kWh","kW"]
[]
[null,{"$f":"'4. Billing Det. for Def-Var'!B17","v":"RESIDENTIAL SERVICE CLASSIFICATION"},{"$f":"'4. Billing Det. for Def-Var'!F17-'4. Billing Det. for Def-Var'!H17","v":0},null,null,null,null,null,{"$f":"C17-E17-G17","v":0},null,{"$f":"IFERROR(I17/I$29,\"\")","v":""},{"$f":"IFERROR(L$29*K17,\"\")","v":""},{"$f":"IFERROR(L17/I17,\"\")","v":""},"kwh"]
[null,{"$f":"'4. Billing Det. for Def-Var'!B18","v":"GENERAL SERVICE LESS THAN 50 kW SERVICE CLASSIFICATION"},{"$f":"'4. Billing Det. for Def-Var'!F18-'4. Billing Det. for Def-Var'!H18","v":0},null,null,null,null,null,{"$f":"C18-E18-G18","v":0},null,{"$f":"IFERROR(I18/I$29,\"\")","v":""},{"$f":"IFERROR(L$29*K18,\"\")","v":""},{"$f":"IFERROR(L18/I18,\"\")","v":""},"kwh"]
[null,{"$f":"'4. Billing Det. for Def-Var'!B19","v":"GENERAL SERVICE 50 to 4,999 kW SERVICE CLASSIFICATION"},{"$f":"'4. Billing Det. for Def-Var'!F19-'4. Billing Det. for Def-Var'!H19","v":0},null,null,null,null,null,0,null,"","",{"$f":"IFERROR(L19/I19,\"\")","v":""},"kwh"]
[null,{"$f":"'4. Billing Det. for Def-Var'!B20","v":"LARGE USE SERVICE CLASSIFICATION"},{"$f":"'4. Billing Det. for Def-Var'!F20-'4. Billing Det. for Def-Var'!H20","v":0},null,null,null,null,null,0,null,"","","","kwh"]
[null,{"$f":"'4. Billing Det. for Def-Var'!B21","v":"UNMETERED SCATTERED LOAD SERVICE CLASSIFICATION"},{"$f":"'4. Billing Det. for Def-Var'!F21-'4. Billing Det. for Def-Var'!H21","v":0},null,null,null,null,null,0,null,"","","","kwh"]
[null,{"$f":"'4. Billing Det. for Def-Var'!B22","v":"SENTINEL LIGHTING SERVICE CLASSIFICATION"},{"$f":"'4. Billing Det. for Def-Var'!F22-'4. Billing Det. for Def-Var'!H22","v":0},null,null,null,null,null,0,null,"","","","kwh"]
[null,{"$f":"'4. Billing Det. for Def-Var'!B23","v":"STREET LIGHTING SERVICE CLASSIFICATION"},{"$f":"'4. Billing Det. for Def-Var'!F23-'4. Billing Det. for Def-Var'!H23","v":0},null,null,null,null,null,0,null,"","","","kwh"]
[null,{"$f":"'4. Billing Det. for Def-Var'!B24","v":0},{"$f":"'4. Billing Det. for Def-Var'!F24-'4. Billing Det. for Def-Var'!H24","v":0},null,null,null,null,null,0,null,"","","","kwh"]
[null,{"$f":"'4. Billing Det. for Def-Var'!B25","v":0},{"$f":"'4. Billing Det. for Def-Var'!F25-'4. Billing Det. for Def-Var'!H25","v":0},null,null,null,null,null,0,null,"","","","kwh"]
[null,{"$f":"'4. Billing Det. for Def-Var'!B26","v":0},{"$f":"'4. Billing Det. for Def-Var'!F26-'4. Billing Det. for Def-Var'!H26","v":0},null,null,null,null,null,0,null,"","","","kwh"]
[null,{"$f":"'4. Billing Det. for Def-Var'!B27","v":0},{"$f":"'4. Billing Det. for Def-Var'!F27-'4. Billing Det. for Def-Var'!H27","v":0}]
[]
[null,null,{"$f":"SUM(C17:C28)","v":0},{"$f":"SUM(D17:D28)","v":0},0,0,0,0,0,0,0,{"$f":"'6A. GA Allocation_Class A'!D27","v":0}]
[]
[]
[null,"*For new Class A customers (who became Class A in 2016), add their consumption only related to July to December period."]
[]
[]
[]
[null,"2015 DATA","Total Metered Non-RPP consumption minus WMP",null,"Total  Metered Class A Consumption in 2015 (partial and/or full year Class A customers)*",null,"Total Metered Consumption for New Class A customer(s) in the period prior to becoming Class A (i.e. Jan. 1 - June 30, 2015) "]
[null,null,"kWh","kW","kWh","kW","kWh"]
[]
[null,{"$f":"B17","v":"RESIDENTIAL SERVICE CLASSIFICATION"},{"$f":"'4. Billing Det. for Def-Var'!F49-'4. Billing Det. for Def-Var'!H49","v":0}]
[null,{"$f":"B18","v":"GENERAL SERVICE LESS THAN 50 kW SERVICE CLASSIFICATION"},{"$f":"'4. Billing Det. for Def-Var'!F50-'4. Billing Det. for Def-Var'!H50","v":0}]
[null,"GENERAL SERVICE 50 to 4,999 kW SERVICE CLASSIFICATION",{"$f":"'4. Billing Det. for Def-Var'!F51-'4. Billing Det. for Def-Var'!H51","v":0}]
[null,"LARGE USE SERVICE CLASSIFICATION",{"$f":"'4. Billing Det. for Def-Var'!F52-'4. Billing Det. for Def-Var'!H52","v":0}]
[null,"UNMETERED SCATTERED LOAD SERVICE CLASSIFICATION",{"$f":"'4. Billing Det. for Def-Var'!F53-'4. Billing Det. for Def-Var'!H53","v":0}]
[null,"SENTINEL LIGHTING SERVICE CLASSIFICATION",{"$f":"'4. Billing Det. for Def-Var'!F54-'4. Billing Det. for Def-Var'!H54","v":0}]
[null,"STREET LIGHTING SERVICE CLASSIFICATION",{"$f":"'4. Billing Det. for Def-Var'!F55-'4. Billing Det. for Def-Var'!H55","v":0}]
[null,0,{"$f":"'4. Billing Det. for Def-Var'!F56-'4. Billing Det. for Def-Var'!H56","v":0}]
[null,0,{"$f":"'4. Billing Det. for Def-Var'!F57-'4. Billing Det. for Def-Var'!H57","v":0}]
[null,0,{"$f":"'4. Billing Det. for Def-Var'!F58-'4. Billing Det. for Def-Var'!H58","v":0}]
[null,0,{"$f":"'4. Billing Det. for Def-Var'!F59-'4. Billing Det. for Def-Var'!H59","v":0}]
[]
[null,null,{"$f":"SUM(C39:C50)","v":0},{"$f":"SUM(D39:D50)","v":0},0,0,0]

{"sheet":"6A. GA Allocation_Class A","index":8,"n_rows":43,"n_cols":15,"rows_kept":43,"cut":false,"hidden":true,"merged":[[29,1,29,3],[1,1,8,6],[28,1,28,4],[11,1,11,5],[13,3,13,9],[15,1,15,5],[22,1,22,3]]}
["Back to Index"]
[null,"INCENTIVE REGULATION MODEL FOR 2018 FILERS"]
[]
[]
[]
[]
[]
[]
[]
[]
[]
[null,"This tab allocates the GA balance to former Class B customers who contributed to the current GA balance but are now Class A customers. The tables below calculate specific amounts for each customer who made the change. Consistent with both decisions for 2016 rates and EDDVAR, distributors are generally expected to settle the amount through 12 equal adjustments to bills. A one-time settlement is acceptable if the affected customer has expressed a clear preference for this approach. (see Filing Requirements section 3.2.5.2)"]
[]
[null,"Year of Group 1 Account Balance Last Disposed",2015,"(e.g. If in the 2017 EDR process, you received approval to dispose the GA variance account balance as of December 31, 2014, please enter 2014 in cell C16.)"]
[]
[null,"Allocation of total Non-RPP consumption (kWh) between Class B and New Class A (Former Class B) customers"]
[null,null,null,"Total",2016,2015,2014,2013,2012]
[null,"Total Class B Consumption for Years Since Last Disposition (Non-RPP consumption LESS WMP and Class A)","A",{"$f":"SUM(E18:I18)","v":0},{"$f":"'6. GA Calculation'!C29-'6. GA Calculation'!E29","v":0}]
[null,"New Class A Customer(s)' Former Class B Consumption","B",{"$f":"SUM(E19:I19)","v":0},{"$f":"E43","v":0},{"$f":"F43","v":0},{"$f":"G43","v":0},{"$f":"H43","v":0},{"$f":"I43","v":0}]
[null,"Portion of Consumption of Former Class B Customers","C=B/A",{"$f":"IFERROR(+D19/D18,0)","v":0}]
[]
[]
[null,"Allocation of Total GA Balance $"]
[]
[null,"Total GA Balance","D",{"$f":"'3. Continuity Schedule'!CD29","v":0}]
[null,"New Class A Customer(s)' Former Class B Portion of GA Balance","E=C*D",{"$f":"+D20*D25","v":0}]
[null,"GA Balance to be disposed to Current Class B Customers","F=D-E",{"$f":"+D25-D26","v":0},null,null,null,null,null,null,null,null,null,null,"s"]
[]
[null,"Allocation of GA Balances to Former Class B Customers"]
[null,"# of Former Class B customer(s)"]
[null,"Customer",null,"Total Metered kWh Consumption for each new Class A customer for the period prior to becoming Class A","Metered kWh Consumption for each new Class A customer for the period prior to becoming Class A in 2016","Metered kWh Consumption for each new Class A customer for the period prior to becoming Class A in 2015","Metered kWh Consumption for each new Class A customer for the period prior to becoming Class A in 2014","Metered kWh Consumption for each new Class A customer for the period prior to becoming Class A in 2013","Metered kWh Consumption for each new Class A customer for the period prior to becoming Class A in 2012","% of kWh","Customer specific GA allocation for the period prior to becoming Class A","Monthly Equal Payments"]
[null,"Customer 1",null,{"$f":"SUM(E32:I32)","v":0},null,null,null,null,null,{"$f":"IFERROR(+D32/$D$43,0)","v":0},{"$f":"+J32*$D$26","v":0},{"$f":"+K32/12","v":0}]
[null,"Customer 2",null,0,null,null,null,null,null,0,{"$f":"+J33*$D$26","v":0},{"$f":"+K33/12","v":0}]
[null,"Customer 3",null,0,null,null,null,null,null,0,0,0]
[null,"Customer 4",null,0,null,null,null,null,null,0,0,0]
[null,"Customer 5",null,0,null,null,null,null,null,0,0,0]
[null,"Customer 6",null,0,null,null,null,null,null,0,0,0]
[null,"Customer 7",null,0,null,null,null,null,null,0,0,0]
[null,"Customer 8",null,0,null,null,null,null,null,0,{"$f":"+J39*$D$26","v":0},{"$f":"+K39/12","v":0}]
[null,"Customer 9",null,0,null,null,null,null,null,0,0,0]
[null,"Customer 10",null,0,null,null,null,null,null,0,0,0]
[null,"Customer 11",null,0,null,null,null,null,null,0,0,0]
[null,"Total",null,{"$f":"SUM(D32:D42)","v":0},{"$f":"SUM(E32:E42)","v":0},{"$f":"SUM(F32:F42)","v":0},{"$f":"SUM(G32:G38)","v":0},0,0,{"$f":"SUM(J32:J42)","v":0},{"$f":"SUM(K32:K42)","v":0}]

{"sheet":"7. Calculation of Def-Var RR","index":9,"n_rows":31,"n_cols":15,"rows_kept":31,"cut":false,"hidden":true,"merged":[[1,1,8,7],[14,10,15,10],[14,11,15,11],[15,12,15,13],[10,1,10,10],[11,1,11,2],[12,1,12,2],[14,3,15,3],[14,4,15,4],[14,5,15,5],[14,6,15,6],[14,7,15,7],[14,8,15,8],[14,9,15,9]]}
["Back to Index"]
[null,"INCENTIVE REGULATION MODEL FOR 2018 FILERS"]
[]
[]
[]
[]
[]
[]
[]
[]
[null,"Input required at cell D13 only.  This workshseet calculates rate riders related to the Deferral/Variance Account Disposition (if applicable) and rate riders for Account 1568.  Rate Riders will not be generated for the microFIT class."]
[null,"Default Rate Rider Recovery Period (in months)",null,12]
[null,"Proposed Rate Rider Recovery Period (in months)",null,12,{"$f":"IF(D13>0, \"Rate Rider Recovery to be used below\", \"If no rate rider recovery period is proposed then the default recovery period of 12 months will be used\")","v":"Rate Rider Recovery to be used below"}]
[]
[null,null,null,"Total Metered kWh","Metered kW \nor kVA","Total Metered kWh less WMP consumption ","Total Metered kW less WMP consumption ","Allocation of Group 1 Account Balances to All Classes 2","Allocation of Group 1 Account Balances to Non-WMP Classes Only \n(if Applicable) 2","Deferral/Variance Account Rate Rider 2","Deferral/Variance Account Rate Rider for Non-WMP \n(if applicable) 2","Account 1568 Rate Rider"]
[null,"Rate Class","Unit",null,null,null,null,null,null,null,null,null,"Revenue Reconciliation:",null,"Revenue\n Reconcilation 1"]
[null,{"$f":"'4. Billing Det. for Def-Var'!B17","v":"RESIDENTIAL SERVICE CLASSIFICATION"},{"$f":"'4. Billing Det. for Def-Var'!C17","v":"kWh"},{"$f":"'4. Billing Det. for Def-Var'!D17","v":0},{"$f":"'4. Billing Det. for Def-Var'!E17","v":0},{"$f":"'4. Billing Det. for Def-Var'!J17","v":0},{"$f":"'4. Billing Det. for Def-Var'!K17","v":0},{"$f":"SUM('5. Allocating Def-Var Balances'!G16:V16)-I17","v":0},null,{"$f":"IF(ISERROR(H17/D17),0,IF(OR(ISBLANK(D$13), OR(D$13=0, D$13=\"\")), H17/D17/(D$12/12), H17/D17/(D$13/12)))","v":0},{"$f":"IF(ISERROR(I17/F17),0,IF(OR(ISBLANK(D$13), OR(D$13=0, D$13=\"\")), I17/F17/(D$12/12), I17/F17/(D$13/12)))","v":0},{"$f":"IF(ISERROR('4. Billing Det. for Def-Var'!T17/D17), 0, IF(OR(ISBLANK(D$13), OR(D$13=0, D$13=\"\")), ('4. Billing Det. for Def-Var'!T17/D17)/(D$12/12), ('4. Billing Det. for Def-Var'!T17/D17)/(D$13/12)))","v":0},{"$f":"J17*D17","v":0},{"$f":"K17*F17","v":0}]
[null,{"$f":"'4. Billing Det. for Def-Var'!B18","v":"GENERAL SERVICE LESS THAN 50 kW SERVICE CLASSIFICATION"},{"$f":"'4. Billing Det. for Def-Var'!C18","v":"kWh"},{"$f":"'4. Billing Det. for Def-Var'!D18","v":0},{"$f":"'4. Billing Det. for Def-Var'!E18","v":0},{"$f":"'4. Billing Det. for Def-Var'!J18","v":0},{"$f":"'4. Billing Det. for Def-Var'!K18","v":0},{"$f":"SUM('5. Allocating Def-Var Balances'!G17:V17)-I18","v":0},null,{"$f":"IF(ISERROR(H18/D18),0,IF(OR(ISBLANK(D$13), OR(D$13=0, D$13=\"\")), H18/D18/(D$12/12), H18/D18/(D$13/12)))","v":0},{"$f":"IF(ISERROR(I18/F18),0,IF(OR(ISBLANK(D$13), OR(D$13=0, D$13=\"\")), I18/F18/(D$12/12), I18/F18/(D$13/12)))","v":0},{"$f":"IF(ISERROR('4. Billing Det. for Def-Var'!T18/D18), 0, IF(OR(ISBLANK(D$13), OR(D$13=0, D$13=\"\")), ('4. Billing Det. for Def-Var'!T18/D18)/(D$12/12), ('4. Billing Det. for Def-Var'!T18/D18)/(D$13/12)))","v":0},{"$f":"J18*D18","v":0},{"$f":"K18*F18","v":0}]
[null,{"$f":"'4. Billing Det. for Def-Var'!B19","v":"GENERAL SERVICE 50 to 4,999 kW SERVICE CLASSIFICATION"},{"$f":"'4. Billing Det. for Def-Var'!C19","v":"kW"},{"$f":"'4. Billing Det. for Def-Var'!D19","v":0},{"$f":"'4. Billing Det. for Def-Var'!E19","v":0},{"$f":"'4. Billing Det. for Def-Var'!J19","v":0},{"$f":"'4. Billing Det. for Def-Var'!K19","v":0},{"$f":"SUM('5. Allocating Def-Var Balances'!G18:V18)-I19","v":{"$error":"#VALUE!"}},{"$f":"'5. Allocating Def-Var Balances'!I18+'5. Allocating Def-Var Balances'!N18","v":{"$error":"#VALUE!"}},{"$f":"IF(ISERROR(H19/E19),0,IF(OR(ISBLANK(D$13), OR(D$13=0, D$13=\"\")), H19/E19/(D$12/12), H19/E19/(D$13/12)))","v":0},{"$f":"IF(ISERROR(I19/G19),0,IF(OR(ISBLANK(D$13), OR(D$13=0, D$13=\"\")), I19/G19/(D$12/12), I19/G19/(D$13/12)))","v":0},{"$f":"IF(ISERROR('4. Billing Det. for Def-Var'!T19/D19), 0, IF(OR(ISBLANK(D13), OR(D13=0, D13=\"\")), ('4. Billing Det. for Def-Var'!T19/D19)/(D12/12), ('4. Billing Det. for Def-Var'!T19/D19)/(D13/12)))","v":0},{"$f":"J19*E19","v":0},{"$f":"K19*G19","v":0}]
[null,{"$f":"'4. Billing Det. for Def-Var'!B20","v":"LARGE USE SERVICE CLASSIFICATION"},{"$f":"'4. Billing Det. for Def-Var'!C20","v":"kW"},{"$f":"'4. Billing Det. for Def-Var'!D20","v":0},{"$f":"'4. Billing Det. for Def-Var'!E20","v":0},{"$f":"'4. Billing Det. for Def-Var'!J20","v":0},{"$f":"'4. Billing Det. for Def-Var'!K20","v":0},{"$f":"SUM('5. Allocating Def-Var Balances'!G19:V19)-I20","v":{"$error":"#VALUE!"}},{"$f":"'5. Allocating Def-Var Balances'!I19+'5. Allocating Def-Var Balances'!N19","v":{"$error":"#VALUE!"}},{"$f":"IF(ISERROR(H20/E20),0,IF(OR(ISBLANK(D$13), OR(D$13=0, D$13=\"\")), H20/E20/(D$12/12), H20/E20/(D$13/12)))","v":0},{"$f":"IF(ISERROR(I20/G20),0,IF(OR(ISBLANK(D$13), OR(D$13=0, D$13=\"\")), I20/G20/(D$12/12), I20/G20/(D$13/12)))","v":0},{"$f":"IF(ISERROR('4. Billing Det. for Def-Var'!T20/D20), 0, IF(OR(ISBLANK(D14), OR(D14=0, D14=\"\")), ('4. Billing Det. for Def-Var'!T20/D20)/(D13/12), ('4. Billing Det. for Def-Var'!T20/D20)/(D14/12)))","v":0},{"$f":"J20*E20","v":0},{"$f":"K20*G20","v":0}]
[null,{"$f":"'4. Billing Det. for Def-Var'!B21","v":"UNMETERED SCATTERED LOAD SERVICE CLASSIFICATION"},{"$f":"'4. Billing Det. for Def-Var'!C21","v":"kW"},{"$f":"'4. Billing Det. for Def-Var'!D21","v":0},{"$f":"'4. Billing Det. for Def-Var'!E21","v":0},{"$f":"'4. Billing Det. for Def-Var'!J21","v":0},{"$f":"'4. Billing Det. for Def-Var'!K21","v":0},{"$f":"SUM('5. Allocating Def-Var Balances'!G20:V20)-I21","v":0},null,{"$f":"IF(ISERROR(H21/E21),0,IF(OR(ISBLANK(D$13), OR(D$13=0, D$13=\"\")), H21/E21/(D$12/12), H21/E21/(D$13/12)))","v":0},{"$f":"IF(ISERROR(I21/G21),0,IF(OR(ISBLANK(D$13), OR(D$13=0, D$13=\"\")), I21/G21/(D$12/12), I21/G21/(D$13/12)))","v":0},{"$f":"IF(ISERROR('4. Billing Det. for Def-Var'!T21/D21), 0, IF(OR(ISBLANK(D$13), OR(D$13=0, D$13=\"\")), ('4. Billing Det. for Def-Var'!T21/D21)/(D$12/12), ('4. Billing Det. for Def-Var'!T21/D21)/(D$13/12)))","v":0},{"$f":"J21*E21","v":0},{"$f":"K21*G21","v":0}]
[null,{"$f":"'4. Billing Det. for Def-Var'!B22","v":"SENTINEL LIGHTING SERVICE CLASSIFICATION"},{"$f":"'4. Billing Det. for Def-Var'!C22","v":"kW"},{"$f":"'4. Billing Det. for Def-Var'!D22","v":0},{"$f":"'4. Billing Det. for Def-Var'!E22","v":0},{"$f":"'4. Billing Det. for Def-Var'!J22","v":0},{"$f":"'4. Billing Det. for Def-Var'!K22","v":0},{"$f":"SUM('5. Allocating Def-Var Balances'!G21:V21)-I22","v":0},null,{"$f":"IF(ISERROR(H22/E22),0,IF(OR(ISBLANK(D$13), OR(D$13=0, D$13=\"\")), H22/E22/(D$12/12), H22/E22/(D$13/12)))","v":0},0,{"$f":"IF(ISERROR('4. Billing Det. for Def-Var'!T22/D22), 0, IF(OR(ISBLANK(D18), OR(D18=0, D18=\"\")), ('4. Billing Det. for Def-Var'!T22/D22)/(D17/12), ('4. Billing Det. for Def-Var'!T22/D22)/(D18/12)))","v":0},{"$f":"J22*E22","v":0},{"$f":"K22*G22","v":0}]
[null,{"$f":"'4. Billing Det. for Def-Var'!B23","v":"STREET LIGHTING SERVICE CLASSIFICATION"},{"$f":"'4. Billing Det. for Def-Var'!C23","v":"kWh"},{"$f":"'4. Billing Det. for Def-Var'!D23","v":0},{"$f":"'4. Billing Det. for Def-Var'!E23","v":0},{"$f":"'4. Billing Det. for Def-Var'!J23","v":0},{"$f":"'4. Billing Det. for Def-Var'!K23","v":0},{"$f":"SUM('5. Allocating Def-Var Balances'!G22:V22)-I23","v":0},null,{"$f":"IF(ISERROR(H23/D23),0,IF(OR(ISBLANK(D$13), OR(D$13=0, D$13=\"\")), H23/D23/(D$12/12), H23/D23/(D$13/12)))","v":0},{"$f":"IF(ISERROR(I23/F23),0,IF(OR(ISBLANK(D$13), OR(D$13=0, D$13=\"\")), I23/F23/(D$12/12), I23/F23/(D$13/12)))","v":0},{"$f":"IF(ISERROR('4. Billing Det. for Def-Var'!T23/D23), 0, IF(OR(ISBLANK(D17), OR(D17=0, D17=\"\")), ('4. Billing Det. for Def-Var'!T23/D23)/(D16/12), ('4. Billing Det. for Def-Var'!T23/D23)/(D17/12)))","v":0},{"$f":"J23*D23","v":0},{"$f":"K23*F23","v":0}]
[null,{"$f":"'4. Billing Det. for Def-Var'!B24","v":0},{"$f":"'4. Billing Det. for Def-Var'!C24","v":0},{"$f":"'4. Billing Det. for Def-Var'!D24","v":0},{"$f":"'4. Billing Det. for Def-Var'!E24","v":0},{"$f":"'4. Billing Det. for Def-Var'!J24","v":0},{"$f":"'4. Billing Det. for Def-Var'!K24","v":0},{"$f":"SUM('5. Allocating Def-Var Balances'!G23:V23)-I24","v":0},null,{"$f":"IF(ISERROR(H24/E24),0,IF(OR(ISBLANK(D$13), OR(D$13=0, D$13=\"\")), H24/E24/(D$12/12), H24/E24/(D$13/12)))","v":0},{"$f":"IF(ISERROR(I24/G24),0,IF(OR(ISBLANK(D$13), OR(D$13=0, D$13=\"\")), I24/G24/(D$12/12), I24/G24/(D$13/12)))","v":0},{"$f":"IF(ISERROR('4. Billing Det. for Def-Var'!T24/D24), 0, IF(OR(ISBLANK(D18), OR(D18=0, D18=\"\")), ('4. Billing Det. for Def-Var'!T24/D24)/(D17/12), ('4. Billing Det. for Def-Var'!T24/D24)/(D18/12)))","v":0},{"$f":"J24*E24","v":0},{"$f":"K24*G24","v":0}]
[null,{"$f":"'4. Billing Det. for Def-Var'!B25","v":0},{"$f":"'4. Billing Det. for Def-Var'!C25","v":0},{"$f":"'4. Billing Det. for Def-Var'!D25","v":0},{"$f":"'4. Billing Det. for Def-Var'!E25","v":0},{"$f":"'4. Billing Det. for Def-Var'!J25","v":0},{"$f":"'4. Billing Det. for Def-Var'!K25","v":0},{"$f":"SUM('5. Allocating Def-Var Balances'!G24:V24)-I25","v":0},null,{"$f":"IF(ISERROR(H25/E25),0,IF(OR(ISBLANK(D$13), OR(D$13=0, D$13=\"\")), H25/E25/(D$12/12), H25/E25/(D$13/12)))","v":0},0,{"$f":"IF(ISERROR('4. Billing Det. for Def-Var'!T25/D25), 0, IF(OR(ISBLANK(D19), OR(D19=0, D19=\"\")), ('4. Billing Det. for Def-Var'!T25/D25)/(D18/12), ('4. Billing Det. for Def-Var'!T25/D25)/(D19/12)))","v":0},{"$f":"J25*E25","v":0},{"$f":"K25*G25","v":0}]
[null,{"$f":"'4. Billing Det. for Def-Var'!B26","v":0},{"$f":"'4. Billing Det. for Def-Var'!C26","v":0},{"$f":"'4. Billing Det. for Def-Var'!D26","v":0},{"$f":"'4. Billing Det. for Def-Var'!E26","v":0},{"$f":"'4. Billing Det. for Def-Var'!J26","v":0},{"$f":"'4. Billing Det. for Def-Var'!K26","v":0},{"$f":"SUM('5. Allocating Def-Var Balances'!G25:V25)-I26","v":0},null,0,0,{"$f":"IF(ISERROR('4. Billing Det. for Def-Var'!T26/D26), 0, IF(OR(ISBLANK(D20), OR(D20=0, D20=\"\")), ('4. Billing Det. for Def-Var'!T26/D26)/(D19/12), ('4. Billing Det. for Def-Var'!T26/D26)/(D20/12)))","v":0},0,0]
[null,{"$f":"'4. Billing Det. for Def-Var'!B27","v":0},{"$f":"'4. Billing Det. for Def-Var'!C27","v":0},{"$f":"'4. Billing Det. for Def-Var'!D27","v":0},{"$f":"'4. Billing Det. for Def-Var'!E27","v":0},{"$f":"'4. Billing Det. for Def-Var'!J27","v":0},{"$f":"'4. Billing Det. for Def-Var'!K27","v":0},{"$f":"SUM('5. Allocating Def-Var Balances'!G26:V26)-I27","v":0},null,0,0,{"$f":"IF(ISERROR('4. Billing Det. for Def-Var'!T27/D27), 0, IF(OR(ISBLANK(D21), OR(D21=0, D21=\"\")), ('4. Billing Det. for Def-Var'!T27/D27)/(D20/12), ('4. Billing Det. for Def-Var'!T27/D27)/(D21/12)))","v":0},{"$f":"SUM(M17:M26)","v":0},{"$f":"SUM(N17:N26)","v":0},{"$f":"SUM(M27:N27)","v":0}]
[null,null,null,null,null,null,null,null,null,null,null,null,null,null,{"$f":"O27-'3. Continuity Schedule'!CD41+'CBR 1580 Sub-Account'!O33","v":{"$error":"#DIV/0!"}}]
[]
[null,"1 When calculating the revenue reconciliation for distributors with Class A customers, the balances of sub-account 1580-CBR Class A and B will not be taken into consideration since the rate riders, if any, are calculated outside of the model."]
[null,"2 Only for rate classes with WMP customers are the Deferral/Variance Account Rate Riders for Non-WMP (column H and J) calculated separately. For all rate classes without WMP customers, balances in account 1580 and 1588 are included in column H and disposed through a combined Deferral/Variance Account and Rate Rider."]

{"sheet":"8. STS-Tax Change","index":10,"n_rows":46,"n_cols":22,"rows_kept":46,"cut":false,"hidden":true,"merged":[[14,1,14,11],[18,1,18,8],[1,1,8,14]]}
["Back to Index",null,null,null,null,null,null,null,null,null,null,null,null,null,null,null,null,null,null,null,"Tax Rates","Effective"]
[null,"INCENTIVE REGULATION MODEL FOR 2018 FILERS",null,null,null,null,null,null,null,null,null,null,null,null,null,null,null,null,null,null,"Federal & Provincial","2016-01-01"]
[null,null,null,null,null,null,null,null,null,null,null,null,null,null,null,null,null,null,null,null,"As of June 20, 2012"]
[]
[null,null,null,null,null,null,null,null,null,null,null,null,null,null,null,null,null,null,null,null,"Federal income tax",0.38]
[null,null,null,null,null,null,null,null,null,null,null,null,null,null,null,null,null,null,null,null,"General corporate rate",-0.1]
[null,null,null,null,null,null,null,null,null,null,null,null,null,null,null,null,null,null,null,null,"Federal tax abatement",{"$f":"SUM(V5:V6)","v":0.28000000000000003}]
[null,null,null,null,null,null,null,null,null,null,null,null,null,null,null,null,null,null,null,null,"  Adjusted federal rate",-0.13]
[null,null,null,null,null,null,null,null,null,null,null,null,null,null,null,null,null,null,null,null,"Rate reduction",{"$f":"V7+V8","v":0.15000000000000002}]
[null,null,null,null,null,null,null,null,null,null,null,null,null,null,null,null,null,null,null,null,"Ontario income tax ",0.115]
[]
[null,null,null,null,null,null,null,null,null,null,null,null,null,null,null,null,null,null,null,null,"Combined federal and Ontario ",{"$f":"V9+V10","v":0.26500000000000001}]
[null,"Summary - Sharing of Tax Change Forecast Amounts"]
[null,null,null,null,null,null,null,null,null,null,null,null,null,null,null,null,null,null,null,null,"Federal & Ontario Small Business"]
[null,{"$f":"\"For the \" & '1. Information Sheet'!G32 & \" year, enter any Tax Credits from the Cost of Service Tax Calculation (Positive #)\"","v":"For the 2015 year, enter any Tax Credits from the Cost of Service Tax Calculation (Positive #)"},null,null,null,null,null,null,null,null,null,null,null,null,null,null,null,null,null,null,"Federal small business threshold",500000]
[null,null,null,null,null,null,null,null,null,null,null,null,null,null,null,null,null,null,null,null,"Ontario Small Business Threshold",500000]
[]
[null,"1. Tax Related Amounts Forecast from Capital Tax Rate Changes ",null,null,null,null,null,null,null,null,null,null,{"$f":"'1. Information Sheet'!G32","v":2015},null,2018,null,null,null,null,null,"Federal small business rate",0.105]
[null,"Taxable Capital (if you are not claiming capital tax, please enter your OEB-Approved Rate Base)",null,null,null,null,null,null,null,null,null,null,null,null,{"$f":"M19","v":0}]
[null,null,null,null,null,null,null,null,null,null,null,null,null,null,null,null,null,null,null,null,"Ontario small business rate",4.4999999999999998E-2]
[null,"Deduction from taxable capital up to $15,000,000",null,null,null,null,null,null,null,null,null,null,null,null,{"$f":"M21","v":0}]
[]
[null,"Net Taxable Capital ",null,null,null,null,null,null,null,null,null,null,{"$f":"M19-M21","v":0},null,{"$f":"O19-O21","v":0}]
[]
[null,"Rate",null,null,null,null,null,null,null,null,null,null,null,null,0,null,null,null,null,null,"Ontario Tax Rate (Maximum 11.5%)"]
[null,null,null,null,null,null,null,null,null,null,null,null,null,null,null,null,null,null,null,null,"Federal tax rate (Maximum 15%)"]
[null,"Ontario Capital Tax (Deductible, not grossed-up)",null,null,null,null,null,null,null,null,null,null,{"$f":"IF(M23>0, M23*M25, 0)*181/365","v":0},null,0,null,null,null,null,null,"Combined tax rate (Maximum 26.5%)"]
[]
[null,"2. Tax Related Amounts Forecast from lncome Tax Rate Changes "]
[null,"Regulatory Taxable Income",null,null,null,null,null,null,null,null,null,null,null,null,{"$f":"M30","v":0}]
[]
[null,"Corporate Tax Rate",null,null,null,null,null,null,null,null,null,null,0.26500000000000001,null,{"$f":"IF(ratebase>15000000, 26.5%, IF(ratebase<10000000, 15%, 15%+11.5%*((ratebase-10000000)/5000000)))","v":0.15}]
[]
[null,"Tax Impact ",null,null,null,null,null,null,null,null,null,null,{"$f":"M30*M32-M15","v":0},null,{"$f":"O30*O32-M15","v":0}]
[]
[null,"Grossed-up Tax Amount",null,null,null,null,null,null,null,null,null,null,{"$f":"M34/(1-M32)","v":0},null,{"$f":"O34/(1-O32)","v":0}]
[]
[null,"Tax Related Amounts Forecast from Capital Tax Rate Changes ",null,null,null,null,null,null,null,null,null,null,{"$f":"M27","v":0},null,{"$f":"O27","v":0}]
[]
[null,"Tax Related Amounts Forecast from lncome Tax Rate Changes ",null,null,null,null,null,null,null,null,null,null,{"$f":"M36","v":0},null,{"$f":"O36","v":0}]
[]
[null,"Total Tax Related Amounts",null,null,null,null,null,null,null,null,null,null,{"$f":"SUM(M40,M38)","v":0},null,{"$f":"SUM(O40,O38)","v":0}]
[]
[null,"Incremental Tax Savings",null,null,null,null,null,null,null,null,null,null,null,null,{"$f":"O42-M42","v":0}]
[]
[null,"Sharing of Tax Amount (50%)",null,null,null,null,null,null,null,null,null,null,null,null,{"$f":"0.5*O44","v":0}]

{"sheet":"9. Shared Tax - RR","index":11,"n_rows":48,"n_cols":17,"rows_kept":48,"cut":false,"hidden":true,"merged":[[1,1,8,6],[33,8,41,11]]}
["Back to Index"]
[null,"INCENTIVE REGULATION MODEL FOR 2018 FILERS"]
[]
[]
[]
[]
[]
[]
[]
[]
[]
[null,"Calculation of Rebased Revenue Requirement and Allocation of Tax Sharing Amount.  Enter data from the last OEB-Approved Cost of Service application in columns D through I."]
[null,"As per Chapter 3 Filing Requirements, shared tax rate riders are based on a 1 year disposition."]
[]
[null,"Rate Class",null,"Re-based Billed Customers or Connections","Re-based Billed kWh","Re-based Billed kW","Re-based Service Charge","Re-based Distribution Volumetric Rate kWh","Re-based Distribution Volumetric Rate kW","Service Charge Revenue","Distribution Volumetric Rate Revenue \nkWh","Distribution Volumetric Rate Revenue \nkW","Revenue Requirement from Rates","Service Charge \n% Revenue","Distribution Volumetric Rate \n% Revenue \nkWh","Distribution Volumetric Rate \n% Revenue \nkW","Total % Revenue"]
[null,null,null,"A","B","C","D","E","F","G = A * D *12","H = B * E","I = C * F","J = G + H + I","K = G / J","L = H / J","M = I / J","N = J / R"]
[null,{"$f":"'4. Billing Det. for Def-Var'!B17","v":"RESIDENTIAL SERVICE CLASSIFICATION"},{"$f":"'4. Billing Det. for Def-Var'!C17","v":"kWh"},null,null,null,null,null,null,{"$f":"G17*D17*12","v":0},{"$f":"E17*H17","v":0},{"$f":"F17*I17","v":0},{"$f":"J17+K17+L17","v":0},{"$f":"IF(ISERROR(J17/M17),0,J17/M17)","v":0},{"$f":"IF(ISERROR(K17/M17),0,K17/M17)","v":0},{"$f":"IF(ISERROR(L17/M17),0,L17/M17)","v":0},{"$f":"IF(ISERROR(M17/M$30),0,M17/M$30)","v":0}]
[null,{"$f":"'4. Billing Det. for Def-Var'!B18","v":"GENERAL SERVICE LESS THAN 50 kW SERVICE CLASSIFICATION"},{"$f":"'4. Billing Det. for Def-Var'!C18","v":"kWh"},null,null,null,null,null,null,0,0,0,0,{"$f":"IF(ISERROR(J18/M18),0,J18/M18)","v":0},{"$f":"IF(ISERROR(K18/M18),0,K18/M18)","v":0},{"$f":"IF(ISERROR(L18/M18),0,L18/M18)","v":0},{"$f":"IF(ISERROR(M18/M$30),0,M18/M$30)","v":0}]
[null,{"$f":"'4. Billing Det. for Def-Var'!B19","v":"GENERAL SERVICE 50 to 4,999 kW SERVICE CLASSIFICATION"},{"$f":"'4. Billing Det. for Def-Var'!C19","v":"kW"},null,null,null,null,null,null,0,0,0,0,0,0,{"$f":"IF(ISERROR(L19/M19),0,L19/M19)","v":0},0]
[null,{"$f":"'4. Billing Det. for Def-Var'!B20","v":"LARGE USE SERVICE CLASSIFICATION"},{"$f":"'4. Billing Det. for Def-Var'!C20","v":"kW"},null,null,null,null,null,null,0,0,0,0,0,0,0,0]
[null,{"$f":"'4. Billing Det. for Def-Var'!B21","v":"UNMETERED SCATTERED LOAD SERVICE CLASSIFICATION"},{"$f":"'4. Billing Det. for Def-Var'!C21","v":"kW"},null,null,null,null,null,null,0,0,0,0,0,0,0,0]
[null,{"$f":"'4. Billing Det. for Def-Var'!B22","v":"SENTINEL LIGHTING SERVICE CLASSIFICATION"},{"$f":"'4. Billing Det. for Def-Var'!C22","v":"kW"},null,null,null,null,null,null,0,0,0,0,0,0,0,0]
[null,{"$f":"'4. Billing Det. for Def-Var'!B23","v":"STREET LIGHTING SERVICE CLASSIFICATION"},{"$f":"'4. Billing Det. for Def-Var'!C23","v":"kWh"},null,null,null,null,null,null,0,0,0,0,0,0,0,0]
[null,{"$f":"'4. Billing Det. for Def-Var'!B24","v":0},{"$f":"'4. Billing Det. for Def-Var'!C24","v":0},null,null,null,null,null,null,0,0,0,0,0,0,0,0]
[null,{"$f":"'4. Billing Det. for Def-Var'!B25","v":0},{"$f":"'4. Billing Det. for Def-Var'!C25","v":0},null,null,null,null,null,null,0,0,0,0,0,0,0,0]
[null,{"$f":"'4. Billing Det. for Def-Var'!B26","v":0},{"$f":"'4. Billing Det. for Def-Var'!C26","v":0},null,null,null,null,null,null,{"$f":"G26*D26*12","v":0},{"$f":"E26*H26","v":0},{"$f":"F26*I26","v":0},{"$f":"J26+K26+L26","v":0},{"$f":"IF(ISERROR(J26/M26),0,J26/M26)","v":0},{"$f":"IF(ISERROR(K26/M26),0,K26/M26)","v":0},{"$f":"IF(ISERROR(L26/M26),0,L26/M26)","v":0},0]
[null,{"$f":"'4. Billing Det. for Def-Var'!B27","v":0},{"$f":"'4. Billing Det. for Def-Var'!C27","v":0},null,null,null,null,null,null,0,0,0,0,0,0,0,0]
[null,null,null,null,null,null,null,null,null,0,0,0,0,0,0,0,0]
[null,null,null,null,null,null,null,null,null,0,0,0,0,0,0,0,0]
[null,"Total",null,{"$f":"SUM(D17:D29)","v":0},{"$f":"SUM(E17:E29)","v":0},0,null,null,null,{"$f":"SUM(J17:J29)","v":0},{"$f":"SUM(K17:K29)","v":0},0,0,null,null,null,{"$f":"SUM(Q17:Q29)","v":0}]
[]
[]
[null,"Rate Class",null,"Total kWh\n(most recent RRR filing)","Total kW\n(most recent RRR filing)","Allocation of Tax Savings by Rate Class","Distribution Rate Rider"]
[null,{"$f":"B17","v":"RESIDENTIAL SERVICE CLASSIFICATION"},"kWh",{"$f":"'4. Billing Det. for Def-Var'!D17","v":0},{"$f":"'4. Billing Det. for Def-Var'!E17","v":0},{"$f":"F$48*Q17","v":0},{"$f":"ROUND(F34/'4. Billing Det. for Def-Var'!U17,2)","v":{"$error":"#DIV/0!"}},"$/Customer","If the allocated tax sharing amount does not produce a rate rider in one or more rate class (except for the Standby rate class), a distributor is required to transfer the entire OEB-approved tax sharing amount into account 1595 for disposition at a later date (see Filing Requirements, Appendix B)"]
[null,"GENERAL SERVICE LESS THAN 50 kW SERVICE CLASSIFICATION","kWh",{"$f":"'4. Billing Det. for Def-Var'!D18","v":0},{"$f":"'4. Billing Det. for Def-Var'!E18","v":0},0,{"$f":"IFERROR(ROUND(IF(E35<>0,F35/E35,F35/D35),4),\"\")","v":""},"$/kWh"]
[null,"GENERAL SERVICE 50 to 4,999 kW SERVICE CLASSIFICATION","kW",{"$f":"'4. Billing Det. for Def-Var'!D19","v":0},{"$f":"'4. Billing Det. for Def-Var'!E19","v":0},0,{"$f":"IFERROR(ROUND(IF(E36<>0,F36/E36,F36/D36),4),\"\")","v":""},"$/kW"]
[null,"LARGE USE SERVICE CLASSIFICATION","kW",{"$f":"'4. Billing Det. for Def-Var'!D20","v":0},{"$f":"'4. Billing Det. for Def-Var'!E20","v":0},0,"","$/kW"]
[null,"UNMETERED SCATTERED LOAD SERVICE CLASSIFICATION","kW",{"$f":"'4. Billing Det. for Def-Var'!D21","v":0},{"$f":"'4. Billing Det. for Def-Var'!E21","v":0},0,"","$/kWh"]
[null,"SENTINEL LIGHTING SERVICE CLASSIFICATION","kW",{"$f":"'4. Billing Det. for Def-Var'!D22","v":0},{"$f":"'4. Billing Det. for Def-Var'!E22","v":0},0,"","$/kWh"]
[null,"STREET LIGHTING SERVICE CLASSIFICATION","kWh",{"$f":"'4. Billing Det. for Def-Var'!D23","v":0},{"$f":"'4. Billing Det. for Def-Var'!E23","v":0},0,"","$/kW"]
[null,0,0,{"$f":"'4. Billing Det. for Def-Var'!D24","v":0},{"$f":"'4. Billing Det. for Def-Var'!E24","v":0},0,"","$/kW"]
[null,0,0,{"$f":"'4. Billing Det. for Def-Var'!D25","v":0},{"$f":"'4. Billing Det. for Def-Var'!E25","v":0},0,"","$/kWh"]
[null,0,0,{"$f":"'4. Billing Det. for Def-Var'!D26","v":0},{"$f":"'4. Billing Det. for Def-Var'!E26","v":0},{"$f":"F$48*Q30","v":0},"","$/kWh"]
[null,0,0,{"$f":"'4. Billing Det. for Def-Var'!D27","v":0},{"$f":"'4. Billing Det. for Def-Var'!E27","v":0},{"$f":"F$48*Q31","v":0},"","$/kW"]
[null,null,null,null,null,0,{"$f":"IFERROR(ROUND(IF(E45<>\"\",F45/E45,F45/D45),4),\"\")","v":""}]
[null,null,null,null,null,0]
[]
[null,null,null,{"$f":"SUM(D34:D47)","v":0},{"$f":"SUM(E34:E47)","v":0},{"$f":"ROUND('8. STS-Tax Change'!O46,2)","v":0}]

{"sheet":"10. RTSR - Current Rates","index":12,"n_rows":29,"n_cols":53,"rows_kept":29,"cut":false,"hidden":true,"merged":[[12,1,12,8],[1,1,8,4]]}
["Back to Index","Back to Index",null,null,null,null,null,null,null,null,null,null,null,null,null,null,null,null,null,null,null,null,null,null,null,null,null,null,null,null,null,null,null,null,null,null,null,null,null,null,null,null,null,null,null,null,null,null,null,null,null,null,1]
[null,"INCENTIVE REGULATION MODEL FOR 2018 FILERS"]
[]
[]
[]
[]
[]
[]
[]
[]
[]
[]
[null,"Columns F and G must match the data from the most recent RRR filing.  \nRates have been imported from Tab 2.  As well, the Loss Factor has been imported from \"Model Specs\" tab. \nIf the data needs to be modified, please make the necessary adjustments and note the changes in your manager's summary.  "]
[]
[null,"Rate Class","Rate Description","Unit","Rate","Non-Loss Adjusted Metered kWh","Non-Loss Adjusted Metered kW","Applicable Loss Factor","Loss Adjusted Billed kWh"]
["R_TN",{"$f":"'Model Specs'!C15","v":"RESIDENTIAL SERVICE CLASSIFICATION"},"Retail Transmission Rate – Network Service Rate","$/kWh",{"$f":"VLOOKUP(A16,RATES,4,FALSE)","v":{"$error":"#REF!"}},{"$f":"'4. Billing Det. for Def-Var'!D17","v":0},0,{"$f":"LLF","v":1.0379},{"$f":"F16*H16","v":0}]
["R_TC",{"$f":"B16","v":"RESIDENTIAL SERVICE CLASSIFICATION"},"Retail Transmission Rate – Line and Transformation Connection Service Rate","$/kWh",{"$error":"#REF!"},{"$f":"F16","v":0},0,1.0379,{"$f":"F17*H17","v":0}]
["GSL_TN",{"$f":"'Model Specs'!C16","v":"GENERAL SERVICE LESS THAN 50 kW SERVICE CLASSIFICATION"},"Retail Transmission Rate – Network Service Rate","$/kWh",{"$error":"#REF!"},{"$f":"'4. Billing Det. for Def-Var'!D18","v":0},0,1.0379,0]
["GSL_TC",{"$f":"B18","v":"GENERAL SERVICE LESS THAN 50 kW SERVICE CLASSIFICATION"},"Retail Transmission Rate – Line and Transformation Connection Service Rate","$/kWh",{"$error":"#REF!"},{"$f":"F18","v":0},0,1.0379,0]
["GSG_TN",{"$f":"'Model Specs'!C17","v":"GENERAL SERVICE 50 to 4,999 kW SERVICE CLASSIFICATION"},"Retail Transmission Rate – Network Service Rate","$/kW",{"$error":"#REF!"},{"$f":"'4. Billing Det. for Def-Var'!D19","v":0},{"$f":"'4. Billing Det. for Def-Var'!E19","v":0},1.0379,0]
["GSG_TC",{"$f":"B20","v":"GENERAL SERVICE 50 to 4,999 kW SERVICE CLASSIFICATION"},"Retail Transmission Rate – Line and Transformation Connection Service Rate","$/kW",{"$error":"#REF!"},{"$f":"F20","v":0},{"$f":"G20","v":0},1.0379,0]
["LU_TN",{"$f":"'Model Specs'!C18","v":"LARGE USE SERVICE CLASSIFICATION"},"Retail Transmission Rate – Network Service Rate","$/kW",{"$error":"#REF!"},{"$f":"'4. Billing Det. for Def-Var'!D20","v":0},{"$f":"'4. Billing Det. for Def-Var'!E20","v":0},1.0379,0]
["LU_TC",{"$f":"B22","v":"LARGE USE SERVICE CLASSIFICATION"},"Retail Transmission Rate – Line and Transformation Connection Service Rate","$/kW",{"$error":"#REF!"},{"$f":"F22","v":0},{"$f":"G22","v":0},1.0379,0]
["USL_TN",{"$f":"'Model Specs'!C19","v":"UNMETERED SCATTERED LOAD SERVICE CLASSIFICATION"},"Retail Transmission Rate – Network Service Rate","$/kW",{"$error":"#REF!"},{"$f":"'4. Billing Det. for Def-Var'!D21","v":0},{"$f":"'4. Billing Det. for Def-Var'!E21","v":0},1.0379,0]
["USL_TC",{"$f":"B24","v":"UNMETERED SCATTERED LOAD SERVICE CLASSIFICATION"},"Retail Transmission Rate – Line and Transformation Connection Service Rate ","$/kW",{"$error":"#REF!"},{"$f":"F24","v":0},{"$f":"G24","v":0},1.0379,0]
["SEN_TN",{"$f":"'Model Specs'!C20","v":"SENTINEL LIGHTING SERVICE CLASSIFICATION"},"Retail Transmission Rate – Network Service Rate","$/kWh",{"$error":"#REF!"},{"$f":"'4. Billing Det. for Def-Var'!D23","v":0},{"$f":"'4. Billing Det. for Def-Var'!E23","v":0},1.0379,0]
["SEN_TC",{"$f":"B26","v":"SENTINEL LIGHTING SERVICE CLASSIFICATION"},"Retail Transmission Rate – Line and Transformation Connection Service Rate","$/kWh",{"$error":"#REF!"},{"$f":"F26","v":0},{"$f":"G26","v":0},1.0379,0]
["SL_TN",{"$f":"'Model Specs'!C21","v":"STREET LIGHTING SERVICE CLASSIFICATION"},"Retail Transmission Rate – Network Service Rate","$/kWh",{"$f":"VLOOKUP(A28,RATES,4,FALSE)","v":{"$error":"#REF!"}},{"$f":"F27","v":0},{"$f":"G27","v":0},1.0379,{"$f":"F28*H28","v":0}]
["SL_TC",{"$f":"B28","v":"STREET LIGHTING SERVICE CLASSIFICATION"},"Retail Transmission Rate – Line and Transformation Connection Service Rate","$/kWh",{"$error":"#REF!"},0,0,1.0379,0]

{"sheet":"11. RTSR-UTRs & Sub-Tx","index":13,"n_rows":68,"n_cols":9,"rows_kept":68,"cut":false,"hidden":true,"merged":[[1,1,8,6]]}
["Back to Index"]
[null,"INCENTIVE REGULATION MODEL FOR 2018 FILERS"]
[]
[]
[]
[]
[]
[]
[]
[]
[]
[null,"Uniform Transmission Rates","Unit",null,2016,null,2017,null,2018]
[]
[null,"Rate Description",null,null,"Rate",null,"Rate",null,"Rate"]
[]
[null,"Network Service Rate","kW",null,3.66,null,3.66,null,{"$f":"G16","v":3.66}]
[]
[null,"Line Connection Service Rate","kW",null,0.87,null,0.87,null,{"$f":"G18","v":0.87}]
[]
[null,"Transformation Connection Service Rate","kW",null,2.02,null,2.02,null,{"$f":"G20","v":2.02}]
[]
[]
[null,"Hydro One Sub-Transmission Rates","Unit",null,2016,null,2017,null,2018]
[null,null,null,null,"Feb - Dec 2016",null,"Jan - Dec 2017"]
[]
[]
[null,"Rate Description",null,null,"Rate",null,"Rate",null,"Rate"]
[]
[null,"Network Service Rate","kW",null,3.3395999999999999,null,3.1941999999999999,null,{"$f":"G29","v":3.1941999999999999}]
[]
[null,"Line Connection Service Rate","kW",null,0.77910000000000001,null,0.77100000000000002,null,{"$f":"G31","v":0.77100000000000002}]
[]
[null,"Transformation Connection Service Rate","kW",null,1.7713000000000001,null,1.7493000000000001,null,{"$f":"G33","v":1.7493000000000001}]
[]
[null,"Both Line and Transformation Connection Service Rate","kW",null,2.5504000000000002,null,{"$f":"SUM(G33,G31)","v":2.5203000000000002},null,{"$f":"G35","v":2.5203000000000002}]
[]
[]
[null,"If needed, add extra host here. (I)","Unit",null,2016,null,2017,null,2018]
[]
[]
[]
[null,"Rate Description",null,null,"Rate",null,"Rate",null,"Rate"]
[]
[null,"Network Service Rate","kW"]
[]
[null,"Line Connection Service Rate","kW"]
[]
[null,"Transformation Connection Service Rate","kW"]
[]
[null,"Both Line and Transformation Connection Service Rate","kW",null,{"$f":"E48+E46","v":0},null,{"$f":"G48+G46","v":0},null,{"$f":"I48+I46","v":0}]
[]
[]
[null,"If needed, add extra host here. (II)","Unit",null,2016,null,2017,null,2018]
[]
[]
[]
[null,"Rate Description",null,null,"Rate",null,"Rate",null,"Rate"]
[]
[null,"Network Service Rate","kW"]
[]
[null,"Line Connection Service Rate","kW"]
[]
[null,"Transformation Connection Service Rate","kW"]
[]
[null,"Both Line and Transformation Connection Service Rate","kW",null,{"$f":"E63+E61","v":0},null,{"$f":"G63+G61","v":0},null,{"$f":"I63+I61","v":0}]
[]
[null,null,null,null,"Historical 2016",null,"Current 2017",null,"Forecast 2018"]
[null,"Low Voltage Switchgear Credit (if applicable, enter as a negative value)","$"]

{"sheet":"12. RTSR-Historic Wholesale","index":14,"n_rows":112,"n_cols":16,"rows_kept":112,"cut":false,"hidden":true,"merged":[[1,1,8,10],[15,11,15,13],[33,3,33,5],[33,7,33,9],[33,11,33,13],[12,1,12,11],[15,3,15,5],[15,7,15,9],[90,3,90,5],[90,7,90,9],[90,11,90,13],[91,3,91,5],[91,7,91,9],[91,11,91,13],[52,3,52,5],[52,7,52,9],[52,11,52,13],[71,3,71,5],[71,7,71,9],[71,11,71,13]]}
["Back to Index"]
[null,"INCENTIVE REGULATION MODEL FOR 2018 FILERS"]
[]
[]
[]
[]
[]
[]
[]
[]
[]
[]
[null,"In the green shaded cells, enter billing detail for wholesale transmission for the same reporting period as the billing determinants on Tab 10.   For Hydro One Sub-transmission Rates, if you are charged a combined Line and Transformer connection rate, please ensure that both the Line Connection and Transformation Connection columns are completed. \nIf any of the Hydro One Sub-transmission rates (column E, I and M) are highlighted in orange, please double check the billing data entered in \"Units Billed\" and \"Amount\" columns. The highlighted rates do not match the Hydro One Sub-transmission rates approved for that time period. If data has been entered correctly, please provide explanation for the discrepancy in rates.\n"]
[]
[]
[null,"IESO",null,"Network",null,null,null,"Line Connection",null,null,null,"Transformation Connection",null,null,null,"Total Line"]
[null,"Month",null,"Units Billed","Rate","Amount",null,"Units Billed","Rate","Amount",null,"Units Billed","Rate","Amount",null,"Amount"]
[]
[null,"January",null,null,{"$f":"IF(D19<>0,F19/D19,0)","v":0},null,null,null,{"$f":"IF(H19<>0,J19/H19,0)","v":0},null,null,null,{"$f":"IF(L19<>0,N19/L19,0)","v":0},null,null,{"$f":"J19+N19","v":0}]
[null,"February",null,null,0,null,null,null,0,null,null,null,0,null,null,0]
[null,"March",null,null,0,null,null,null,0,null,null,null,0,null,null,0]
[null,"April",null,null,0,null,null,null,0,null,null,null,0,null,null,0]
[null,"May",null,null,0,null,null,null,0,null,null,null,0,null,null,0]
[null,"June",null,null,0,null,null,null,0,null,null,null,0,null,null,0]
[null,"July",null,null,0,null,null,null,0,null,null,null,0,null,null,0]
[null,"August",null,null,0,null,null,null,0,null,null,null,0,null,null,0]
[null,"September",null,null,0,null,null,null,0,null,null,null,0,null,null,0]
[null,"October",null,null,0,null,null,null,0,null,null,null,0,null,null,0]
[null,"November",null,null,0,null,null,null,0,null,null,null,0,null,null,0]
[null,"December",null,null,0,null,null,null,0,null,null,null,0,null,null,0]
[]
[null,"Total",null,{"$f":"SUM(D19:D30)","v":0},{"$f":"IF(D32<>0,F32/D32,0)","v":0},{"$f":"SUM(F19:F30)","v":0},null,{"$f":"SUM(H19:H30)","v":0},{"$f":"IF(H32<>0,J32/H32,0)","v":0},{"$f":"SUM(J19:J30)","v":0},null,{"$f":"SUM(L19:L30)","v":0},{"$f":"IF(L32<>0,N32/L32,0)","v":0},{"$f":"SUM(N19:N30)","v":0},null,{"$f":"SUM(P19:P30)","v":0}]
[]
[null,"Hydro One",null,"Network",null,null,null,"Line Connection",null,null,null,"Transformation Connection",null,null,null,"Total Line"]
[]
[null,"Month",null,"Units Billed","Rate","Amount",null,"Units Billed","Rate","Amount",null,"Units Billed","Rate","Amount",null,"Amount"]
[]
[null,"January",null,null,{"$f":"IF(D38<>0,F38/D38,0)","v":0},null,null,null,{"$f":"IF(H38<>0,J38/H38,0)","v":0},9927.48,null,null,{"$f":"IF(L38<>0,N38/L38,0)","v":0},null,null,{"$f":"J38+N38","v":9927.48}]
[null,"February",null,null,{"$f":"IF(D39<>0,F39/D39,0)","v":0},null,null,null,0,9453.31,null,null,0,null,null,{"$f":"J39+N39","v":9453.31}]
[null,"March",null,null,0,null,null,null,0,9211.16,null,null,0,null,null,9211.16]
[null,"April",null,null,0,null,null,null,0,9228.06,null,null,0,null,null,9228.06]
[null,"May",null,null,0,null,null,null,0,9397.34,null,null,0,null,null,9397.34]
[null,"June",null,null,0,null,null,null,0,20086.54,null,null,0,null,null,20086.54]
[null,"July",null,null,0,null,null,null,0,8958.57,null,null,0,null,null,8958.57]
[null,"August",null,null,0,null,null,null,0,9151.17,null,null,0,null,null,9151.17]
[null,"September",null,null,0,null,null,null,0,9076.5300000000007,null,null,0,null,null,9076.5300000000007]
[null,"October",null,null,0,null,null,null,0,16190.85,null,null,0,null,null,16190.85]
[null,"November",null,null,0,null,null,null,0,6778.57,null,null,0,null,null,6778.57]
[null,"December",null,null,0,null,null,null,0,9258.1,null,null,0,null,null,9258.1]
[]
[null,"Total",null,{"$f":"SUM(D38:D49)","v":0},{"$f":"IF(D51<>0,F51/D51,0)","v":0},{"$f":"SUM(F38:F49)","v":0},null,{"$f":"SUM(H38:H49)","v":0},{"$f":"IF(H51<>0,J51/H51,0)","v":0},{"$f":"SUM(J38:J49)","v":126717.68000000002},null,{"$f":"SUM(L38:L49)","v":0},{"$f":"IF(L51<>0,N51/L51,0)","v":0},{"$f":"SUM(N38:N49)","v":0},null,{"$f":"SUM(P38:P49)","v":126717.68000000002}]
[]
[null,"Add Extra Host Here (I)",null,"Network",null,null,null,"Line Connection",null,null,null,"Transformation Connection",null,null,null,"Total Line"]
[null,"(if needed)"]
[null,"Month",null,"Units Billed","Rate","Amount",null,"Units Billed","Rate","Amount",null,"Units Billed","Rate","Amount",null,"Amount"]
[]
[null,"January",null,null,{"$f":"IF(D57<>0,F57/D57,0)","v":0},null,null,null,{"$f":"IF(H57<>0,J57/H57,0)","v":0},null,null,null,{"$f":"IF(L57<>0,N57/L57,0)","v":0},null,null,{"$f":"J57+N57","v":0}]
[null,"February",null,null,0,null,null,null,0,null,null,null,0,null,null,0]
[null,"March",null,null,0,null,null,null,0,null,null,null,0,null,null,0]
[null,"April",null,null,0,null,null,null,0,null,null,null,0,null,null,0]
[null,"May",null,null,0,null,null,null,0,null,null,null,0,null,null,0]
[null,"June",null,null,0,null,null,null,0,null,null,null,0,null,null,0]
[null,"July",null,null,0,null,null,null,0,null,null,null,0,null,null,0]
[null,"August",null,null,0,null,null,null,0,null,null,null,0,null,null,0]
[null,"September",null,null,0,null,null,null,0,null,null,null,0,null,null,0]
[null,"October",null,null,0,null,null,null,0,null,null,null,0,null,null,0]
[null,"November",null,null,0,null,null,null,0,null,null,null,0,null,null,0]
[null,"December",null,null,0,null,null,null,0,null,null,null,0,null,null,0]
[]
[null,"Total",null,{"$f":"SUM(D57:D68)","v":0},{"$f":"IF(D70<>0,F70/D70,0)","v":0},{"$f":"SUM(F57:F68)","v":0},null,{"$f":"SUM(H57:H68)","v":0},{"$f":"IF(H70<>0,J70/H70,0)","v":0},{"$f":"SUM(J57:J68)","v":0},null,{"$f":"SUM(L57:L68)","v":0},{"$f":"IF(L70<>0,N70/L70,0)","v":0},{"$f":"SUM(N57:N68)","v":0},null,{"$f":"SUM(P57:P68)","v":0}]
[]
[null,"Add Extra Host Here (II)",null,"Network",null,null,null,"Line Connection",null,null,null,"Transformation Connection",null,null,null,"Total Line"]
[null,"(if needed)"]
[null,"Month",null,"Units Billed","Rate","Amount",null,"Units Billed","Rate","Amount",null,"Units Billed","Rate","Amount",null,"Amount"]
[]
[null,"January",null,null,{"$f":"IF(D76<>0,F76/D76,0)","v":0},null,null,null,{"$f":"IF(H76<>0,J76/H76,0)","v":0},null,null,null,{"$f":"IF(L76<>0,N76/L76,0)","v":0},null,null,{"$f":"J76+N76","v":0}]
[null,"February",null,null,0,null,null,null,0,null,null,null,0,null,null,0]
[null,"March",null,null,0,null,null,null,0,null,null,null,0,null,null,0]
[null,"April",null,null,0,null,null,null,0,null,null,null,0,null,null,0]
[null,"May",null,null,0,null,null,null,0,null,null,null,0,null,null,0]
[null,"June",null,null,0,null,null,null,0,null,null,null,0,null,null,0]
[null,"July",null,null,0,null,null,null,0,null,null,null,0,null,null,0]
[null,"August",null,null,0,null,null,null,0,null,null,null,0,null,null,0]
[null,"September",null,null,0,null,null,null,0,null,null,null,0,null,null,0]
[null,"October",null,null,0,null,null,null,0,null,null,null,0,null,null,0]
[null,"November",null,null,0,null,null,null,0,null,null,null,0,null,null,0]
[null,"December",null,null,0,null,null,null,0,null,null,null,0,null,null,0]
[]
[null,"Total",null,{"$f":"SUM(D76:D87)","v":0},{"$f":"IF(D89<>0,F89/D89,0)","v":0},{"$f":"SUM(F76:F87)","v":0},null,{"$f":"SUM(H76:H87)","v":0},{"$f":"IF(H89<>0,J89/H89,0)","v":0},{"$f":"SUM(J76:J87)","v":0},null,{"$f":"SUM(L76:L87)","v":0},{"$f":"IF(L89<>0,N89/L89,0)","v":0},{"$f":"SUM(N76:N87)","v":0},null,{"$f":"SUM(P76:P87)","v":0}]
[]
[null,"Total",null,"Network",null,null,null,"Line Connection",null,null,null,"Transformation Connection",null,null,null,"Total Line"]
[]
[null,"Month",null,"Units Billed","Rate","Amount",null,"Units Billed","Rate","Amount",null,"Units Billed","Rate","Amount",null,"Amount"]
[]
[null,"January",null,{"$f":"D19+D38+D57+D76","v":0},{"$f":"IF(D95<>0,F95/D95,0)","v":0},{"$f":"F19+F38+F57+F76","v":0},null,{"$f":"H19+H38+H57+H76","v":0},{"$f":"IF(H95<>0,J95/H95,0)","v":0},{"$f":"J19+J38+J57+J76","v":9927.48},null,{"$f":"L19+L38+L57+L76","v":0},{"$f":"IF(L95<>0,N95/L95,0)","v":0},{"$f":"N19+N38+N57+N76","v":0},null,{"$f":"J95+N95","v":9927.48}]
[null,"February",null,{"$f":"D20+D39+D58+D77","v":0},0,{"$f":"F20+F39+F58+F77","v":0},null,{"$f":"H20+H39+H58+H77","v":0},0,{"$f":"J20+J39+J58+J77","v":9453.31},null,{"$f":"L20+L39+L58+L77","v":0},0,{"$f":"N20+N39+N58+N77","v":0},null,9453.31]
[null,"March",null,0,0,0,null,0,0,9211.16,null,0,0,0,null,9211.16]
[null,"April",null,0,0,0,null,0,0,9228.06,null,0,0,0,null,9228.06]
[null,"May",null,0,0,0,null,0,0,9397.34,null,0,0,0,null,9397.34]
[null,"June",null,0,0,0,null,0,0,20086.54,null,0,0,0,null,20086.54]
[null,"July",null,0,0,0,null,0,0,8958.57,null,0,0,0,null,8958.57]
[null,"August",null,0,0,0,null,0,0,9151.17,null,0,0,0,null,9151.17]
[null,"September",null,0,0,0,null,0,0,9076.5300000000007,null,0,0,0,null,9076.5300000000007]
[null,"October",null,0,0,0,null,0,0,16190.85,null,0,0,0,null,16190.85]
[null,"November",null,0,0,0,null,0,0,6778.57,null,0,0,0,null,6778.57]
[null,"December",null,0,0,0,null,0,0,9258.1,null,0,0,0,null,9258.1]
[]
[null,"Total",null,{"$f":"SUM(D95:D106)","v":0},{"$f":"IF(D108<>0,F108/D108,0)","v":0},{"$f":"SUM(F95:F106)","v":0},null,{"$f":"SUM(H95:H106)","v":0},{"$f":"IF(H108<>0,J108/H108,0)","v":0},{"$f":"SUM(J95:J106)","v":126717.68000000002},null,{"$f":"SUM(L95:L106)","v":0},{"$f":"IF(L108<>0,N108/L108,0)","v":0},{"$f":"SUM(N95:N106)","v":0},null,{"$f":"SUM(P95:P106)","v":126717.68000000002}]
[]
[null,null,null,null,null,null,null,null,null,null,null,null,null,"Low Voltage Switchgear Credit (if applicable)",null,{"$f":"'11. RTSR-UTRs & Sub-Tx'!E68","v":0}]
[]
[null,null,null,null,null,null,null,null,null,null,null,null,null,"Total including deduction for Low Voltage Switchgear Credit",null,{"$f":"P108+P110","v":126717.68000000002}]

{"sheet":"13. RTSR-Current Wholesale","index":15,"n_rows":113,"n_cols":16,"rows_kept":113,"cut":false,"hidden":true,"merged":[[12,1,12,11],[15,3,15,5],[15,7,15,9],[15,11,15,13],[16,3,16,5],[16,7,16,9],[16,11,16,13],[1,1,8,9],[92,3,92,5],[92,7,92,9],[92,11,92,13],[72,3,72,5],[72,7,72,9],[72,11,72,13],[91,3,91,5],[91,7,91,9],[91,11,91,13],[34,3,34,5],[34,7,34,9],[34,11,34,13],[53,3,53,5],[53,7,53,9],[53,11,53,13]]}
["Back to Index"]
[null,"INCENTIVE REGULATION MODEL FOR 2018 FILERS"]
[]
[]
[]
[]
[]
[]
[]
[]
[]
[]
[null,"The purpose of this sheet is to calculate the expected billing when current 2017 Uniform Transmission Rates are applied against historical 2016 transmission units."]
[]
[]
[null,"IESO",null,"Network",null,null,null,"Line Connection",null,null,null,"Transformation Connection",null,null,null,"Total Line"]
[]
[null,"Month",null,"Units Billed","Rate","Amount",null,"Units Billed","Rate","Amount",null,"Units Billed","Rate","Amount",null,"Amount"]
[]
[null,"January",null,{"$f":"'12. RTSR-Historic Wholesale'!D19","v":0},{"$f":"'11. RTSR-UTRs & Sub-Tx'!G16","v":3.66},{"$f":"D20*E20","v":0},null,{"$f":"'12. RTSR-Historic Wholesale'!H19","v":0},{"$f":"'11. RTSR-UTRs & Sub-Tx'!G18","v":0.87},{"$f":"H20*I20","v":0},null,{"$f":"'12. RTSR-Historic Wholesale'!L19","v":0},{"$f":"'11. RTSR-UTRs & Sub-Tx'!G20","v":2.02},{"$f":"L20*M20","v":0},null,{"$f":"J20+N20","v":0}]
[null,"February",null,{"$f":"'12. RTSR-Historic Wholesale'!D20","v":0},{"$f":"E20","v":3.66},{"$f":"D21*E21","v":0},null,{"$f":"'12. RTSR-Historic Wholesale'!H20","v":0},{"$f":"I20","v":0.87},{"$f":"H21*I21","v":0},null,{"$f":"'12. RTSR-Historic Wholesale'!L20","v":0},{"$f":"M20","v":2.02},{"$f":"L21*M21","v":0},null,0]
[null,"March",null,{"$f":"'12. RTSR-Historic Wholesale'!D21","v":0},{"$f":"E21","v":3.66},0,null,{"$f":"'12. RTSR-Historic Wholesale'!H21","v":0},{"$f":"I21","v":0.87},0,null,{"$f":"'12. RTSR-Historic Wholesale'!L21","v":0},{"$f":"M21","v":2.02},0,null,0]
[null,"April",null,{"$f":"'12. RTSR-Historic Wholesale'!D22","v":0},3.66,0,null,{"$f":"'12. RTSR-Historic Wholesale'!H22","v":0},0.87,0,null,{"$f":"'12. RTSR-Historic Wholesale'!L22","v":0},2.02,0,null,0]
[null,"May",null,{"$f":"'12. RTSR-Historic Wholesale'!D23","v":0},3.66,0,null,{"$f":"'12. RTSR-Historic Wholesale'!H23","v":0},0.87,0,null,{"$f":"'12. RTSR-Historic Wholesale'!L23","v":0},2.02,0,null,0]
[null,"June",null,{"$f":"'12. RTSR-Historic Wholesale'!D24","v":0},3.66,0,null,{"$f":"'12. RTSR-Historic Wholesale'!H24","v":0},0.87,0,null,{"$f":"'12. RTSR-Historic Wholesale'!L24","v":0},2.02,0,null,0]
[null,"July",null,{"$f":"'12. RTSR-Historic Wholesale'!D25","v":0},3.66,0,null,{"$f":"'12. RTSR-Historic Wholesale'!H25","v":0},0.87,0,null,{"$f":"'12. RTSR-Historic Wholesale'!L25","v":0},2.02,0,null,0]
[null,"August",null,{"$f":"'12. RTSR-Historic Wholesale'!D26","v":0},3.66,0,null,{"$f":"'12. RTSR-Historic Wholesale'!H26","v":0},0.87,0,null,{"$f":"'12. RTSR-Historic Wholesale'!L26","v":0},2.02,0,null,0]
[null,"September",null,{"$f":"'12. RTSR-Historic Wholesale'!D27","v":0},3.66,0,null,{"$f":"'12. RTSR-Historic Wholesale'!H27","v":0},0.87,0,null,{"$f":"'12. RTSR-Historic Wholesale'!L27","v":0},2.02,0,null,0]
[null,"October",null,{"$f":"'12. RTSR-Historic Wholesale'!D28","v":0},3.66,0,null,{"$f":"'12. RTSR-Historic Wholesale'!H28","v":0},0.87,0,null,{"$f":"'12. RTSR-Historic Wholesale'!L28","v":0},2.02,0,null,0]
[null,"November",null,{"$f":"'12. RTSR-Historic Wholesale'!D29","v":0},3.66,0,null,{"$f":"'12. RTSR-Historic Wholesale'!H29","v":0},0.87,0,null,{"$f":"'12. RTSR-Historic Wholesale'!L29","v":0},2.02,0,null,0]
[null,"December",null,{"$f":"'12. RTSR-Historic Wholesale'!D30","v":0},3.66,0,null,{"$f":"'12. RTSR-Historic Wholesale'!H30","v":0},0.87,0,null,{"$f":"'12. RTSR-Historic Wholesale'!L30","v":0},2.02,0,null,0]
[]
[null,"Total",null,{"$f":"SUM(D20:D31)","v":0},{"$f":"IF(D33<>0,F33/D33,0)","v":0},{"$f":"SUM(F20:F31)","v":0},null,{"$f":"SUM(H20:H31)","v":0},{"$f":"IF(H33<>0,J33/H33,0)","v":0},{"$f":"SUM(J20:J31)","v":0},null,{"$f":"SUM(L20:L31)","v":0},{"$f":"IF(L33<>0,N33/L33,0)","v":0},{"$f":"SUM(N20:N31)","v":0},null,{"$f":"SUM(P20:P31)","v":0}]
[]
[null,"Hydro One",null,"Network",null,null,null,"Line Connection",null,null,null,"Transformation Connection",null,null,null,"Total Line"]
[]
[null,"Month",null,"Units Billed","Rate","Amount",null,"Units Billed","Rate","Amount",null,"Units Billed","Rate","Amount",null,"Amount"]
[]
[null,"January",null,{"$f":"'12. RTSR-Historic Wholesale'!D38","v":0},{"$f":"'11. RTSR-UTRs & Sub-Tx'!G29","v":3.1941999999999999},{"$f":"D39*E39","v":0},null,{"$f":"'12. RTSR-Historic Wholesale'!H38","v":0},{"$f":"'11. RTSR-UTRs & Sub-Tx'!G31","v":0.77100000000000002},{"$f":"H39*I39","v":0},null,{"$f":"'12. RTSR-Historic Wholesale'!L38","v":0},{"$f":"'11. RTSR-UTRs & Sub-Tx'!G33","v":1.7493000000000001},{"$f":"L39*M39","v":0},null,{"$f":"J39+N39","v":0}]
[null,"February",null,{"$f":"'12. RTSR-Historic Wholesale'!D39","v":0},{"$f":"E39","v":3.1941999999999999},{"$f":"D40*E40","v":0},null,{"$f":"'12. RTSR-Historic Wholesale'!H39","v":0},{"$f":"I39","v":0.77100000000000002},{"$f":"H40*I40","v":0},null,{"$f":"'12. RTSR-Historic Wholesale'!L39","v":0},{"$f":"M39","v":1.7493000000000001},{"$f":"L40*M40","v":0},null,0]
[null,"March",null,{"$f":"'12. RTSR-Historic Wholesale'!D40","v":0},{"$f":"E40","v":3.1941999999999999},0,null,{"$f":"'12. RTSR-Historic Wholesale'!H40","v":0},{"$f":"I40","v":0.77100000000000002},0,null,{"$f":"'12. RTSR-Historic Wholesale'!L40","v":0},{"$f":"M40","v":1.7493000000000001},0,null,0]
[null,"April",null,{"$f":"'12. RTSR-Historic Wholesale'!D41","v":0},3.1941999999999999,0,null,{"$f":"'12. RTSR-Historic Wholesale'!H41","v":0},0.77100000000000002,0,null,{"$f":"'12. RTSR-Historic Wholesale'!L41","v":0},{"$f":"M41","v":1.7493000000000001},0,null,0]
[null,"May",null,{"$f":"'12. RTSR-Historic Wholesale'!D42","v":0},3.1941999999999999,0,null,{"$f":"'12. RTSR-Historic Wholesale'!H42","v":0},0.77100000000000002,0,null,{"$f":"'12. RTSR-Historic Wholesale'!L42","v":0},1.7493000000000001,0,null,0]
[null,"June",null,{"$f":"'12. RTSR-Historic Wholesale'!D43","v":0},3.1941999999999999,0,null,{"$f":"'12. RTSR-Historic Wholesale'!H43","v":0},0.77100000000000002,0,null,{"$f":"'12. RTSR-Historic Wholesale'!L43","v":0},1.7493000000000001,0,null,0]
[null,"July",null,{"$f":"'12. RTSR-Historic Wholesale'!D44","v":0},3.1941999999999999,0,null,{"$f":"'12. RTSR-Historic Wholesale'!H44","v":0},0.77100000000000002,0,null,{"$f":"'12. RTSR-Historic Wholesale'!L44","v":0},1.7493000000000001,0,null,0]
[null,"August",null,{"$f":"'12. RTSR-Historic Wholesale'!D45","v":0},3.1941999999999999,0,null,{"$f":"'12. RTSR-Historic Wholesale'!H45","v":0},0.77100000000000002,0,null,{"$f":"'12. RTSR-Historic Wholesale'!L45","v":0},1.7493000000000001,0,null,0]
[null,"September",null,{"$f":"'12. RTSR-Historic Wholesale'!D46","v":0},3.1941999999999999,0,null,{"$f":"'12. RTSR-Historic Wholesale'!H46","v":0},0.77100000000000002,0,null,{"$f":"'12. RTSR-Historic Wholesale'!L46","v":0},1.7493000000000001,0,null,0]
[null,"October",null,{"$f":"'12. RTSR-Historic Wholesale'!D47","v":0},3.1941999999999999,0,null,{"$f":"'12. RTSR-Historic Wholesale'!H47","v":0},0.77100000000000002,0,null,{"$f":"'12. RTSR-Historic Wholesale'!L47","v":0},1.7493000000000001,0,null,0]
[null,"November",null,{"$f":"'12. RTSR-Historic Wholesale'!D48","v":0},3.1941999999999999,0,null,{"$f":"'12. RTSR-Historic Wholesale'!H48","v":0},0.77100000000000002,0,null,{"$f":"'12. RTSR-Historic Wholesale'!L48","v":0},1.7493000000000001,0,null,0]
[null,"December",null,{"$f":"'12. RTSR-Historic Wholesale'!D49","v":0},3.1941999999999999,0,null,{"$f":"'12. RTSR-Historic Wholesale'!H49","v":0},0.77100000000000002,0,null,{"$f":"'12. RTSR-Historic Wholesale'!L49","v":0},1.7493000000000001,0,null,0]
[]
[null,"Total",null,{"$f":"SUM(D39:D50)","v":0},{"$f":"IF(D52<>0,F52/D52,0)","v":0},{"$f":"SUM(F39:F50)","v":0},null,{"$f":"SUM(H39:H50)","v":0},{"$f":"IF(H52<>0,J52/H52,0)","v":0},{"$f":"SUM(J39:J50)","v":0},null,{"$f":"SUM(L39:L50)","v":0},{"$f":"IF(L52<>0,N52/L52,0)","v":0},{"$f":"SUM(N39:N50)","v":0},null,{"$f":"SUM(P39:P50)","v":0}]
[]
[null,"Add Extra Host Here (I)",null,"Network",null,null,null,"Line Connection",null,null,null,"Transformation Connection",null,null,null,"Total Line"]
[]
[null,"Month",null,"Units Billed","Rate","Amount",null,"Units Billed","Rate","Amount",null,"Units Billed","Rate","Amount",null,"Amount"]
[]
[null,"January",null,{"$f":"'12. RTSR-Historic Wholesale'!D57","v":0},{"$f":"'11. RTSR-UTRs & Sub-Tx'!G44","v":0},{"$f":"D58*E58","v":0},null,{"$f":"'12. RTSR-Historic Wholesale'!H57","v":0},{"$f":"'11. RTSR-UTRs & Sub-Tx'!G46","v":0},{"$f":"H58*I58","v":0},null,{"$f":"'12. RTSR-Historic Wholesale'!L57","v":0},{"$f":"'11. RTSR-UTRs & Sub-Tx'!G48","v":0},{"$f":"L58*M58","v":0},null,{"$f":"J58+N58","v":0}]
[null,"February",null,{"$f":"'12. RTSR-Historic Wholesale'!D58","v":0},{"$f":"E58","v":0},{"$f":"D59*E59","v":0},null,{"$f":"'12. RTSR-Historic Wholesale'!H58","v":0},{"$f":"I58","v":0},{"$f":"H59*I59","v":0},null,{"$f":"'12. RTSR-Historic Wholesale'!L58","v":0},{"$f":"M58","v":0},{"$f":"L59*M59","v":0},null,0]
[null,"March",null,{"$f":"'12. RTSR-Historic Wholesale'!D59","v":0},{"$f":"E59","v":0},0,null,{"$f":"'12. RTSR-Historic Wholesale'!H59","v":0},{"$f":"I59","v":0},0,null,{"$f":"'12. RTSR-Historic Wholesale'!L59","v":0},{"$f":"M59","v":0},0,null,0]
[null,"April",null,{"$f":"'12. RTSR-Historic Wholesale'!D60","v":0},0,0,null,{"$f":"'12. RTSR-Historic Wholesale'!H60","v":0},0,0,null,{"$f":"'12. RTSR-Historic Wholesale'!L60","v":0},0,0,null,0]
[null,"May",null,{"$f":"'12. RTSR-Historic Wholesale'!D61","v":0},0,0,null,{"$f":"'12. RTSR-Historic Wholesale'!H61","v":0},0,0,null,{"$f":"'12. RTSR-Historic Wholesale'!L61","v":0},0,0,null,0]
[null,"June",null,{"$f":"'12. RTSR-Historic Wholesale'!D62","v":0},0,0,null,{"$f":"'12. RTSR-Historic Wholesale'!H62","v":0},0,0,null,{"$f":"'12. RTSR-Historic Wholesale'!L62","v":0},0,0,null,0]
[null,"July",null,{"$f":"'12. RTSR-Historic Wholesale'!D63","v":0},0,0,null,{"$f":"'12. RTSR-Historic Wholesale'!H63","v":0},0,0,null,{"$f":"'12. RTSR-Historic Wholesale'!L63","v":0},0,0,null,0]
[null,"August",null,{"$f":"'12. RTSR-Historic Wholesale'!D64","v":0},0,0,null,{"$f":"'12. RTSR-Historic Wholesale'!H64","v":0},0,0,null,{"$f":"'12. RTSR-Historic Wholesale'!L64","v":0},0,0,null,0]
[null,"September",null,{"$f":"'12. RTSR-Historic Wholesale'!D65","v":0},0,0,null,{"$f":"'12. RTSR-Historic Wholesale'!H65","v":0},0,0,null,{"$f":"'12. RTSR-Historic Wholesale'!L65","v":0},0,0,null,0]
[null,"October",null,{"$f":"'12. RTSR-Historic Wholesale'!D66","v":0},0,0,null,{"$f":"'12. RTSR-Historic Wholesale'!H66","v":0},0,0,null,{"$f":"'12. RTSR-Historic Wholesale'!L66","v":0},0,0,null,0]
[null,"November",null,{"$f":"'12. RTSR-Historic Wholesale'!D67","v":0},0,0,null,{"$f":"'12. RTSR-Historic Wholesale'!H67","v":0},0,0,null,{"$f":"'12. RTSR-Historic Wholesale'!L67","v":0},0,0,null,0]
[null,"December",null,{"$f":"'12. RTSR-Historic Wholesale'!D68","v":0},0,0,null,{"$f":"'12. RTSR-Historic Wholesale'!H68","v":0},0,0,null,{"$f":"'12. RTSR-Historic Wholesale'!L68","v":0},0,0,null,0]
[]
[null,"Total",null,{"$f":"SUM(D58:D69)","v":0},{"$f":"IF(D71<>0,F71/D71,0)","v":0},{"$f":"SUM(F58:F69)","v":0},null,{"$f":"SUM(H58:H69)","v":0},{"$f":"IF(H71<>0,J71/H71,0)","v":0},{"$f":"SUM(J58:J69)","v":0},null,{"$f":"SUM(L58:L69)","v":0},{"$f":"IF(L71<>0,N71/L71,0)","v":0},{"$f":"SUM(N58:N69)","v":0},null,{"$f":"SUM(P58:P69)","v":0}]
[]
[null,"Add Extra Host Here (II)",null,"Network",null,null,null,"Line Connection",null,null,null,"Transformation Connection",null,null,null,"Total Line"]
[]
[null,"Month",null,"Units Billed","Rate","Amount",null,"Units Billed","Rate","Amount",null,"Units Billed","Rate","Amount",null,"Amount"]
[]
[null,"January",null,{"$f":"'12. RTSR-Historic Wholesale'!D76","v":0},{"$f":"'11. RTSR-UTRs & Sub-Tx'!G59","v":0},{"$f":"D77*E77","v":0},null,{"$f":"'12. RTSR-Historic Wholesale'!H76","v":0},{"$f":"'11. RTSR-UTRs & Sub-Tx'!G61","v":0},{"$f":"H77*I77","v":0},null,{"$f":"'12. RTSR-Historic Wholesale'!L76","v":0},{"$f":"'11. RTSR-UTRs & Sub-Tx'!G63","v":0},{"$f":"L77*M77","v":0},null,{"$f":"J77+N77","v":0}]
[null,"February",null,{"$f":"'12. RTSR-Historic Wholesale'!D77","v":0},{"$f":"E77","v":0},{"$f":"D78*E78","v":0},null,{"$f":"'12. RTSR-Historic Wholesale'!H77","v":0},{"$f":"I77","v":0},{"$f":"H78*I78","v":0},null,{"$f":"'12. RTSR-Historic Wholesale'!L77","v":0},{"$f":"M77","v":0},{"$f":"L78*M78","v":0},null,0]
[null,"March",null,{"$f":"'12. RTSR-Historic Wholesale'!D78","v":0},{"$f":"E78","v":0},0,null,{"$f":"'12. RTSR-Historic Wholesale'!H78","v":0},{"$f":"I78","v":0},0,null,{"$f":"'12. RTSR-Historic Wholesale'!L78","v":0},{"$f":"M78","v":0},0,null,0]
[null,"April",null,{"$f":"'12. RTSR-Historic Wholesale'!D79","v":0},0,0,null,{"$f":"'12. RTSR-Historic Wholesale'!H79","v":0},0,0,null,{"$f":"'12. RTSR-Historic Wholesale'!L79","v":0},{"$f":"M79","v":0},0,null,0]
[null,"May",null,{"$f":"'12. RTSR-Historic Wholesale'!D80","v":0},0,0,null,{"$f":"'12. RTSR-Historic Wholesale'!H80","v":0},0,0,null,{"$f":"'12. RTSR-Historic Wholesale'!L80","v":0},0,0,null,0]
[null,"June",null,{"$f":"'12. RTSR-Historic Wholesale'!D81","v":0},0,0,null,{"$f":"'12. RTSR-Historic Wholesale'!H81","v":0},0,0,null,{"$f":"'12. RTSR-Historic Wholesale'!L81","v":0},0,0,null,0]
[null,"July",null,{"$f":"'12. RTSR-Historic Wholesale'!D82","v":0},0,0,null,{"$f":"'12. RTSR-Historic Wholesale'!H82","v":0},0,0,null,{"$f":"'12. RTSR-Historic Wholesale'!L82","v":0},0,0,null,0]
[null,"August",null,{"$f":"'12. RTSR-Historic Wholesale'!D83","v":0},0,0,null,{"$f":"'12. RTSR-Historic Wholesale'!H83","v":0},0,0,null,{"$f":"'12. RTSR-Historic Wholesale'!L83","v":0},0,0,null,0]
[null,"September",null,{"$f":"'12. RTSR-Historic Wholesale'!D84","v":0},0,0,null,{"$f":"'12. RTSR-Historic Wholesale'!H84","v":0},0,0,null,{"$f":"'12. RTSR-Historic Wholesale'!L84","v":0},0,0,null,0]
[null,"October",null,{"$f":"'12. RTSR-Historic Wholesale'!D85","v":0},0,0,null,{"$f":"'12. RTSR-Historic Wholesale'!H85","v":0},0,0,null,{"$f":"'12. RTSR-Historic Wholesale'!L85","v":0},0,0,null,0]
[null,"November",null,{"$f":"'12. RTSR-Historic Wholesale'!D86","v":0},0,0,null,{"$f":"'12. RTSR-Historic Wholesale'!H86","v":0},0,0,null,{"$f":"'12. RTSR-Historic Wholesale'!L86","v":0},0,0,null,0]
[null,"December",null,{"$f":"'12. RTSR-Historic Wholesale'!D87","v":0},0,0,null,{"$f":"'12. RTSR-Historic Wholesale'!H87","v":0},0,0,null,{"$f":"'12. RTSR-Historic Wholesale'!L87","v":0},0,0,null,0]
[]
[null,"Total",null,{"$f":"SUM(D77:D88)","v":0},{"$f":"IF(D90<>0,F90/D90,0)","v":0},{"$f":"SUM(F77:F88)","v":0},null,{"$f":"SUM(H77:H88)","v":0},{"$f":"IF(H90<>0,J90/H90,0)","v":0},{"$f":"SUM(J77:J88)","v":0},null,{"$f":"SUM(L77:L88)","v":0},{"$f":"IF(L90<>0,N90/L90,0)","v":0},{"$f":"SUM(N77:N88)","v":0},null,{"$f":"SUM(P77:P88)","v":0}]
[]
[null,"Total",null,"Network",null,null,null,"Line Connection",null,null,null,"Transformation Connection",null,null,null,"Total Line"]
[]
[null,"Month",null,"Units Billed","Rate","Amount",null,"Units Billed","Rate","Amount",null,"Units Billed","Rate","Amount",null,"Amount"]
[]
[null,"January",null,{"$f":"D20+D39+D58+D77","v":0},{"$f":"IF(D96<>0,F96/D96,0)","v":0},{"$f":"F20+F39+F58+F77","v":0},null,{"$f":"H20+H39+H58+H77","v":0},{"$f":"IF(H96<>0,J96/H96,0)","v":0},{"$f":"J20+J39+J58+J77","v":0},null,{"$f":"L20+L39+L58+L77","v":0},{"$f":"IF(L96<>0,N96/L96,0)","v":0},{"$f":"N20+N39+N58+N77","v":0},null,{"$f":"J96+N96","v":0}]
[null,"February",null,{"$f":"D21+D40+D59+D78","v":0},0,{"$f":"F21+F40+F59+F78","v":0},null,{"$f":"H21+H40+H59+H78","v":0},0,{"$f":"J21+J40+J59+J78","v":0},null,{"$f":"L21+L40+L59+L78","v":0},0,{"$f":"N21+N40+N59+N78","v":0},null,0]
[null,"March",null,0,0,0,null,0,0,0,null,0,0,0,null,0]
[null,"April",null,0,0,0,null,0,0,0,null,0,0,0,null,0]
[null,"May",null,0,0,0,null,0,0,0,null,0,0,0,null,0]
[null,"June",null,0,0,0,null,0,0,0,null,0,0,0,null,0]
[null,"July",null,0,0,0,null,0,0,0,null,0,0,0,null,0]
[null,"August",null,0,0,0,null,0,0,0,null,0,0,0,null,0]
[null,"September",null,0,0,0,null,0,0,0,null,0,0,0,null,0]
[null,"October",null,0,0,0,null,0,0,0,null,0,0,0,null,0]
[null,"November",null,0,0,0,null,0,0,0,null,0,0,0,null,0]
[null,"December",null,0,0,0,null,0,0,0,null,0,0,0,null,0]
[]
[null,"Total",null,{"$f":"SUM(D96:D107)","v":0},{"$f":"IF(D109<>0,F109/D109,0)","v":0},{"$f":"SUM(F96:F107)","v":0},null,{"$f":"SUM(H96:H107)","v":0},{"$f":"IF(H109<>0,J109/H109,0)","v":0},{"$f":"SUM(J96:J107)","v":0},null,{"$f":"SUM(L96:L107)","v":0},{"$f":"IF(L109<>0,N109/L109,0)","v":0},{"$f":"SUM(N96:N107)","v":0},null,{"$f":"SUM(P96:P107)","v":0}]
[]
[null,null,null,null,null,null,null,null,null,null,null,null,null,"Low Voltage Switchgear Credit (if applicable)",null,{"$f":"'11. RTSR-UTRs & Sub-Tx'!G68","v":0}]
[]
[null,null,null,null,null,null,null,null,null,null,null,null,null,"Total including deduction for Low Voltage Switchgear Credit",null,{"$f":"P109+P111","v":0}]

{"sheet":"14. RTSR-Forecast Wholesale","index":16,"n_rows":113,"n_cols":16,"rows_kept":113,"cut":false,"hidden":true,"merged":[[12,1,12,12],[15,3,15,5],[15,7,15,9],[15,11,15,13],[16,3,16,5],[16,7,16,9],[16,11,16,13],[1,1,8,9],[92,3,92,5],[92,7,92,9],[92,11,92,13],[72,3,72,5],[72,7,72,9],[72,11,72,13],[91,3,91,5],[91,7,91,9],[91,11,91,13],[34,3,34,5],[34,7,34,9],[34,11,34,13],[53,3,53,5],[53,7,53,9],[53,11,53,13]]}
["Back to Index"]
[null,"INCENTIVE REGULATION MODEL FOR 2018 FILERS"]
[]
[]
[]
[]
[]
[]
[]
[]
[]
[]
[null,"The purpose of this sheet is to calculate the expected billing when forecasted 2018 Uniform Transmission Rates are applied against historical 2016 transmission units."]
[]
[]
[null,"IESO",null,"Network",null,null,null,"Line Connection",null,null,null,"Transformation Connection",null,null,null,"Total Line"]
[]
[null,"Month",null,"Units Billed","Rate","Amount",null,"Units Billed","Rate","Amount",null,"Units Billed","Rate","Amount",null,"Amount"]
[]
[null,"January",null,{"$f":"'12. RTSR-Historic Wholesale'!D19","v":0},{"$f":"'11. RTSR-UTRs & Sub-Tx'!I16","v":3.66},{"$f":"D20*E20","v":0},null,{"$f":"'12. RTSR-Historic Wholesale'!H19","v":0},{"$f":"'11. RTSR-UTRs & Sub-Tx'!I18","v":0.87},{"$f":"H20*I20","v":0},null,{"$f":"'12. RTSR-Historic Wholesale'!L19","v":0},{"$f":"'11. RTSR-UTRs & Sub-Tx'!I20","v":2.02},{"$f":"L20*M20","v":0},null,{"$f":"J20+N20","v":0}]
[null,"February",null,{"$f":"'12. RTSR-Historic Wholesale'!D20","v":0},{"$f":"E20","v":3.66},0,null,{"$f":"'12. RTSR-Historic Wholesale'!H20","v":0},{"$f":"I20","v":0.87},0,null,{"$f":"'12. RTSR-Historic Wholesale'!L20","v":0},{"$f":"M20","v":2.02},0,null,0]
[null,"March",null,{"$f":"'12. RTSR-Historic Wholesale'!D21","v":0},3.66,0,null,{"$f":"'12. RTSR-Historic Wholesale'!H21","v":0},0.87,0,null,{"$f":"'12. RTSR-Historic Wholesale'!L21","v":0},2.02,0,null,0]
[null,"April",null,{"$f":"'12. RTSR-Historic Wholesale'!D22","v":0},3.66,0,null,{"$f":"'12. RTSR-Historic Wholesale'!H22","v":0},0.87,0,null,{"$f":"'12. RTSR-Historic Wholesale'!L22","v":0},2.02,0,null,0]
[null,"May",null,{"$f":"'12. RTSR-Historic Wholesale'!D23","v":0},3.66,0,null,{"$f":"'12. RTSR-Historic Wholesale'!H23","v":0},0.87,0,null,{"$f":"'12. RTSR-Historic Wholesale'!L23","v":0},2.02,0,null,0]
[null,"June",null,{"$f":"'12. RTSR-Historic Wholesale'!D24","v":0},3.66,0,null,{"$f":"'12. RTSR-Historic Wholesale'!H24","v":0},0.87,0,null,{"$f":"'12. RTSR-Historic Wholesale'!L24","v":0},2.02,0,null,0]
[null,"July",null,{"$f":"'12. RTSR-Historic Wholesale'!D25","v":0},3.66,0,null,{"$f":"'12. RTSR-Historic Wholesale'!H25","v":0},0.87,0,null,{"$f":"'12. RTSR-Historic Wholesale'!L25","v":0},2.02,0,null,0]
[null,"August",null,{"$f":"'12. RTSR-Historic Wholesale'!D26","v":0},3.66,0,null,{"$f":"'12. RTSR-Historic Wholesale'!H26","v":0},0.87,0,null,{"$f":"'12. RTSR-Historic Wholesale'!L26","v":0},2.02,0,null,0]
[null,"September",null,{"$f":"'12. RTSR-Historic Wholesale'!D27","v":0},3.66,0,null,{"$f":"'12. RTSR-Historic Wholesale'!H27","v":0},0.87,0,null,{"$f":"'12. RTSR-Historic Wholesale'!L27","v":0},2.02,0,null,0]
[null,"October",null,{"$f":"'12. RTSR-Historic Wholesale'!D28","v":0},3.66,0,null,{"$f":"'12. RTSR-Historic Wholesale'!H28","v":0},0.87,0,null,{"$f":"'12. RTSR-Historic Wholesale'!L28","v":0},2.02,0,null,0]
[null,"November",null,{"$f":"'12. RTSR-Historic Wholesale'!D29","v":0},3.66,0,null,{"$f":"'12. RTSR-Historic Wholesale'!H29","v":0},0.87,0,null,{"$f":"'12. RTSR-Historic Wholesale'!L29","v":0},2.02,0,null,0]
[null,"December",null,{"$f":"'12. RTSR-Historic Wholesale'!D30","v":0},3.66,0,null,{"$f":"'12. RTSR-Historic Wholesale'!H30","v":0},0.87,0,null,{"$f":"'12. RTSR-Historic Wholesale'!L30","v":0},2.02,0,null,0]
[]
[null,"Total",null,{"$f":"SUM(D20:D31)","v":0},{"$f":"IF(D33<>0,F33/D33,0)","v":0},{"$f":"SUM(F20:F31)","v":0},null,{"$f":"SUM(H20:H31)","v":0},{"$f":"IF(H33<>0,J33/H33,0)","v":0},{"$f":"SUM(J20:J31)","v":0},null,{"$f":"SUM(L20:L31)","v":0},{"$f":"IF(L33<>0,N33/L33,0)","v":0},{"$f":"SUM(N20:N31)","v":0},null,{"$f":"SUM(P20:P31)","v":0}]
[]
[null,"Hydro One",null,"Network",null,null,null,"Line Connection",null,null,null,"Transformation Connection",null,null,null,"Total Line"]
[]
[null,"Month",null,"Units Billed","Rate","Amount",null,"Units Billed","Rate","Amount",null,"Units Billed","Rate","Amount",null,"Amount"]
[]
[null,"January",null,{"$f":"'12. RTSR-Historic Wholesale'!D38","v":0},{"$f":"'11. RTSR-UTRs & Sub-Tx'!I29","v":3.1941999999999999},{"$f":"D39*E39","v":0},null,{"$f":"'12. RTSR-Historic Wholesale'!H38","v":0},{"$f":"'11. RTSR-UTRs & Sub-Tx'!I31","v":0.77100000000000002},{"$f":"H39*I39","v":0},null,{"$f":"'12. RTSR-Historic Wholesale'!L38","v":0},{"$f":"'11. RTSR-UTRs & Sub-Tx'!I33","v":1.7493000000000001},{"$f":"L39*M39","v":0},null,{"$f":"J39+N39","v":0}]
[null,"February",null,{"$f":"'12. RTSR-Historic Wholesale'!D39","v":0},{"$f":"E39","v":3.1941999999999999},0,null,{"$f":"'12. RTSR-Historic Wholesale'!H39","v":0},{"$f":"I39","v":0.77100000000000002},0,null,{"$f":"'12. RTSR-Historic Wholesale'!L39","v":0},{"$f":"M39","v":1.7493000000000001},0,null,0]
[null,"March",null,{"$f":"'12. RTSR-Historic Wholesale'!D40","v":0},3.1941999999999999,0,null,{"$f":"'12. RTSR-Historic Wholesale'!H40","v":0},0.77100000000000002,0,null,{"$f":"'12. RTSR-Historic Wholesale'!L40","v":0},1.7493000000000001,0,null,0]
[null,"April",null,{"$f":"'12. RTSR-Historic Wholesale'!D41","v":0},3.1941999999999999,0,null,{"$f":"'12. RTSR-Historic Wholesale'!H41","v":0},0.77100000000000002,0,null,{"$f":"'12. RTSR-Historic Wholesale'!L41","v":0},1.7493000000000001,0,null,0]
[null,"May",null,{"$f":"'12. RTSR-Historic Wholesale'!D42","v":0},3.1941999999999999,0,null,{"$f":"'12. RTSR-Historic Wholesale'!H42","v":0},0.77100000000000002,0,null,{"$f":"'12. RTSR-Historic Wholesale'!L42","v":0},1.7493000000000001,0,null,0]
[null,"June",null,{"$f":"'12. RTSR-Historic Wholesale'!D43","v":0},3.1941999999999999,0,null,{"$f":"'12. RTSR-Historic Wholesale'!H43","v":0},0.77100000000000002,0,null,{"$f":"'12. RTSR-Historic Wholesale'!L43","v":0},1.7493000000000001,0,null,0]
[null,"July",null,{"$f":"'12. RTSR-Historic Wholesale'!D44","v":0},3.1941999999999999,0,null,{"$f":"'12. RTSR-Historic Wholesale'!H44","v":0},0.77100000000000002,0,null,{"$f":"'12. RTSR-Historic Wholesale'!L44","v":0},1.7493000000000001,0,null,0]
[null,"August",null,{"$f":"'12. RTSR-Historic Wholesale'!D45","v":0},3.1941999999999999,0,null,{"$f":"'12. RTSR-Historic Wholesale'!H45","v":0},0.77100000000000002,0,null,{"$f":"'12. RTSR-Historic Wholesale'!L45","v":0},1.7493000000000001,0,null,0]
[null,"September",null,{"$f":"'12. RTSR-Historic Wholesale'!D46","v":0},3.1941999999999999,0,null,{"$f":"'12. RTSR-Historic Wholesale'!H46","v":0},0.77100000000000002,0,null,{"$f":"'12. RTSR-Historic Wholesale'!L46","v":0},1.7493000000000001,0,null,0]
[null,"October",null,{"$f":"'12. RTSR-Historic Wholesale'!D47","v":0},3.1941999999999999,0,null,{"$f":"'12. RTSR-Historic Wholesale'!H47","v":0},0.77100000000000002,0,null,{"$f":"'12. RTSR-Historic Wholesale'!L47","v":0},1.7493000000000001,0,null,0]
[null,"November",null,{"$f":"'12. RTSR-Historic Wholesale'!D48","v":0},3.1941999999999999,0,null,{"$f":"'12. RTSR-Historic Wholesale'!H48","v":0},0.77100000000000002,0,null,{"$f":"'12. RTSR-Historic Wholesale'!L48","v":0},1.7493000000000001,0,null,0]
[null,"December",null,{"$f":"'12. RTSR-Historic Wholesale'!D49","v":0},3.1941999999999999,0,null,{"$f":"'12. RTSR-Historic Wholesale'!H49","v":0},0.77100000000000002,0,null,{"$f":"'12. RTSR-Historic Wholesale'!L49","v":0},1.7493000000000001,0,null,0]
[]
[null,"Total",null,{"$f":"SUM(D39:D50)","v":0},{"$f":"IF(D52<>0,F52/D52,0)","v":0},{"$f":"SUM(F39:F50)","v":0},null,{"$f":"SUM(H39:H50)","v":0},{"$f":"IF(H52<>0,J52/H52,0)","v":0},{"$f":"SUM(J39:J50)","v":0},null,{"$f":"SUM(L39:L50)","v":0},{"$f":"IF(L52<>0,N52/L52,0)","v":0},{"$f":"SUM(N39:N50)","v":0},null,{"$f":"SUM(P39:P50)","v":0}]
[]
[null,"Add Extra Host Here (I)",null,"Network",null,null,null,"Line Connection",null,null,null,"Transformation Connection",null,null,null,"Total Line"]
[]
[null,"Month",null,"Units Billed","Rate","Amount",null,"Units Billed","Rate","Amount",null,"Units Billed","Rate","Amount",null,"Amount"]
[]
[null,"January",null,{"$f":"'12. RTSR-Historic Wholesale'!D57","v":0},{"$f":"'11. RTSR-UTRs & Sub-Tx'!I44","v":0},{"$f":"D58*E58","v":0},null,{"$f":"'12. RTSR-Historic Wholesale'!H57","v":0},{"$f":"'11. RTSR-UTRs & Sub-Tx'!I46","v":0},{"$f":"H58*I58","v":0},null,{"$f":"'12. RTSR-Historic Wholesale'!L57","v":0},{"$f":"'11. RTSR-UTRs & Sub-Tx'!I48","v":0},{"$f":"L58*M58","v":0},null,{"$f":"J58+N58","v":0}]
[null,"February",null,{"$f":"'12. RTSR-Historic Wholesale'!D58","v":0},{"$f":"E58","v":0},0,null,{"$f":"'12. RTSR-Historic Wholesale'!H58","v":0},{"$f":"I58","v":0},0,null,{"$f":"'12. RTSR-Historic Wholesale'!L58","v":0},{"$f":"M58","v":0},0,null,0]
[null,"March",null,{"$f":"'12. RTSR-Historic Wholesale'!D59","v":0},0,0,null,{"$f":"'12. RTSR-Historic Wholesale'!H59","v":0},0,0,null,{"$f":"'12. RTSR-Historic Wholesale'!L59","v":0},0,0,null,0]
[null,"April",null,{"$f":"'12. RTSR-Historic Wholesale'!D60","v":0},0,0,null,{"$f":"'12. RTSR-Historic Wholesale'!H60","v":0},0,0,null,{"$f":"'12. RTSR-Historic Wholesale'!L60","v":0},0,0,null,0]
[null,"May",null,{"$f":"'12. RTSR-Historic Wholesale'!D61","v":0},0,0,null,{"$f":"'12. RTSR-Historic Wholesale'!H61","v":0},0,0,null,{"$f":"'12. RTSR-Historic Wholesale'!L61","v":0},0,0,null,0]
[null,"June",null,{"$f":"'12. RTSR-Historic Wholesale'!D62","v":0},0,0,null,{"$f":"'12. RTSR-Historic Wholesale'!H62","v":0},0,0,null,{"$f":"'12. RTSR-Historic Wholesale'!L62","v":0},0,0,null,0]
[null,"July",null,{"$f":"'12. RTSR-Historic Wholesale'!D63","v":0},0,0,null,{"$f":"'12. RTSR-Historic Wholesale'!H63","v":0},0,0,null,{"$f":"'12. RTSR-Historic Wholesale'!L63","v":0},0,0,null,0]
[null,"August",null,{"$f":"'12. RTSR-Historic Wholesale'!D64","v":0},0,0,null,{"$f":"'12. RTSR-Historic Wholesale'!H64","v":0},0,0,null,{"$f":"'12. RTSR-Historic Wholesale'!L64","v":0},0,0,null,0]
[null,"September",null,{"$f":"'12. RTSR-Historic Wholesale'!D65","v":0},0,0,null,{"$f":"'12. RTSR-Historic Wholesale'!H65","v":0},0,0,null,{"$f":"'12. RTSR-Historic Wholesale'!L65","v":0},0,0,null,0]
[null,"October",null,{"$f":"'12. RTSR-Historic Wholesale'!D66","v":0},0,0,null,{"$f":"'12. RTSR-Historic Wholesale'!H66","v":0},0,0,null,{"$f":"'12. RTSR-Historic Wholesale'!L66","v":0},0,0,null,0]
[null,"November",null,{"$f":"'12. RTSR-Historic Wholesale'!D67","v":0},0,0,null,{"$f":"'12. RTSR-Historic Wholesale'!H67","v":0},0,0,null,{"$f":"'12. RTSR-Historic Wholesale'!L67","v":0},0,0,null,0]
[null,"December",null,{"$f":"'12. RTSR-Historic Wholesale'!D68","v":0},0,0,null,{"$f":"'12. RTSR-Historic Wholesale'!H68","v":0},0,0,null,{"$f":"'12. RTSR-Historic Wholesale'!L68","v":0},0,0,null,0]
[]
[null,"Total",null,{"$f":"SUM(D58:D69)","v":0},{"$f":"IF(D71<>0,F71/D71,0)","v":0},{"$f":"SUM(F58:F69)","v":0},null,{"$f":"SUM(H58:H69)","v":0},{"$f":"IF(H71<>0,J71/H71,0)","v":0},{"$f":"SUM(J58:J69)","v":0},null,{"$f":"SUM(L58:L69)","v":0},{"$f":"IF(L71<>0,N71/L71,0)","v":0},{"$f":"SUM(N58:N69)","v":0},null,{"$f":"SUM(P58:P69)","v":0}]
[]
[null,"Add Extra Host Here (II)",null,"Network",null,null,null,"Line Connection",null,null,null,"Transformation Connection",null,null,null,"Total Line"]
[]
[null,"Month",null,"Units Billed","Rate","Amount",null,"Units Billed","Rate","Amount",null,"Units Billed","Rate","Amount",null,"Amount"]
[]
[null,"January",null,{"$f":"'12. RTSR-Historic Wholesale'!D76","v":0},{"$f":"'11. RTSR-UTRs & Sub-Tx'!I59","v":0},{"$f":"D77*E77","v":0},null,{"$f":"'12. RTSR-Historic Wholesale'!H76","v":0},{"$f":"'11. RTSR-UTRs & Sub-Tx'!I61","v":0},{"$f":"H77*I77","v":0},null,{"$f":"'12. RTSR-Historic Wholesale'!L76","v":0},{"$f":"'11. RTSR-UTRs & Sub-Tx'!I63","v":0},{"$f":"L77*M77","v":0},null,{"$f":"J77+N77","v":0}]
[null,"February",null,{"$f":"'12. RTSR-Historic Wholesale'!D77","v":0},{"$f":"E77","v":0},0,null,{"$f":"'12. RTSR-Historic Wholesale'!H77","v":0},{"$f":"I77","v":0},0,null,{"$f":"'12. RTSR-Historic Wholesale'!L77","v":0},{"$f":"M77","v":0},0,null,0]
[null,"March",null,{"$f":"'12. RTSR-Historic Wholesale'!D78","v":0},0,0,null,{"$f":"'12. RTSR-Historic Wholesale'!H78","v":0},0,0,null,{"$f":"'12. RTSR-Historic Wholesale'!L78","v":0},0,0,null,0]
[null,"April",null,{"$f":"'12. RTSR-Historic Wholesale'!D79","v":0},0,0,null,{"$f":"'12. RTSR-Historic Wholesale'!H79","v":0},0,0,null,{"$f":"'12. RTSR-Historic Wholesale'!L79","v":0},0,0,null,0]
[null,"May",null,{"$f":"'12. RTSR-Historic Wholesale'!D80","v":0},0,0,null,{"$f":"'12. RTSR-Historic Wholesale'!H80","v":0},0,0,null,{"$f":"'12. RTSR-Historic Wholesale'!L80","v":0},0,0,null,0]
[null,"June",null,{"$f":"'12. RTSR-Historic Wholesale'!D81","v":0},0,0,null,{"$f":"'12. RTSR-Historic Wholesale'!H81","v":0},0,0,null,{"$f":"'12. RTSR-Historic Wholesale'!L81","v":0},0,0,null,0]
[null,"July",null,{"$f":"'12. RTSR-Historic Wholesale'!D82","v":0},0,0,null,{"$f":"'12. RTSR-Historic Wholesale'!H82","v":0},0,0,null,{"$f":"'12. RTSR-Historic Wholesale'!L82","v":0},0,0,null,0]
[null,"August",null,{"$f":"'12. RTSR-Historic Wholesale'!D83","v":0},0,0,null,{"$f":"'12. RTSR-Historic Wholesale'!H83","v":0},0,0,null,{"$f":"'12. RTSR-Historic Wholesale'!L83","v":0},0,0,null,0]
[null,"September",null,{"$f":"'12. RTSR-Historic Wholesale'!D84","v":0},0,0,null,{"$f":"'12. RTSR-Historic Wholesale'!H84","v":0},0,0,null,{"$f":"'12. RTSR-Historic Wholesale'!L84","v":0},0,0,null,0]
[null,"October",null,{"$f":"'12. RTSR-Historic Wholesale'!D85","v":0},0,0,null,{"$f":"'12. RTSR-Historic Wholesale'!H85","v":0},0,0,null,{"$f":"'12. RTSR-Historic Wholesale'!L85","v":0},0,0,null,0]
[null,"November",null,{"$f":"'12. RTSR-Historic Wholesale'!D86","v":0},0,0,null,{"$f":"'12. RTSR-Historic Wholesale'!H86","v":0},0,0,null,{"$f":"'12. RTSR-Historic Wholesale'!L86","v":0},0,0,null,0]
[null,"December",null,{"$f":"'12. RTSR-Historic Wholesale'!D87","v":0},0,0,null,{"$f":"'12. RTSR-Historic Wholesale'!H87","v":0},0,0,null,{"$f":"'12. RTSR-Historic Wholesale'!L87","v":0},0,0,null,0]
[null,null,null,null,null,null,null,null,null,null,null,{"$f":"'12. RTSR-Historic Wholesale'!L88","v":0}]
[null,"Total",null,{"$f":"SUM(D77:D88)","v":0},{"$f":"IF(D90<>0,F90/D90,0)","v":0},{"$f":"SUM(F77:F88)","v":0},null,{"$f":"SUM(H77:H88)","v":0},{"$f":"IF(H90<>0,J90/H90,0)","v":0},{"$f":"SUM(J77:J88)","v":0},null,{"$f":"SUM(L77:L88)","v":0},{"$f":"IF(L90<>0,N90/L90,0)","v":0},{"$f":"SUM(N77:N88)","v":0},null,{"$f":"SUM(P77:P88)","v":0}]
[]
[null,"Total",null,"Network",null,null,null,"Line Connection",null,null,null,"Transformation Connection",null,null,null,"Total Line"]
[]
[null,"Month",null,"Units Billed","Rate","Amount",null,"Units Billed","Rate","Amount",null,"Units Billed","Rate","Amount",null,"Amount"]
[]
[null,"January",null,{"$f":"D20+D39+D58+D77","v":0},{"$f":"IF(D96<>0,F96/D96,0)","v":0},{"$f":"F20+F39+F58+F77","v":0},null,{"$f":"H20+H39+H58+H77","v":0},{"$f":"IF(H96<>0,J96/H96,0)","v":0},{"$f":"J20+J39+J58+J77","v":0},null,{"$f":"L20+L39+L58+L77","v":0},{"$f":"IF(L96<>0,N96/L96,0)","v":0},{"$f":"N20+N39+N58+N77","v":0},null,{"$f":"J96+N96","v":0}]
[null,"February",null,{"$f":"D21+D40+D59+D78","v":0},0,{"$f":"F21+F40+F59+F78","v":0},null,{"$f":"H21+H40+H59+H78","v":0},0,{"$f":"J21+J40+J59+J78","v":0},null,{"$f":"L21+L40+L59+L78","v":0},0,{"$f":"N21+N40+N59+N78","v":0},null,0]
[null,"March",null,0,0,0,null,0,0,0,null,0,0,0,null,0]
[null,"April",null,0,0,0,null,0,0,0,null,0,0,0,null,0]
[null,"May",null,0,0,0,null,0,0,0,null,0,0,0,null,0]
[null,"June",null,0,0,0,null,0,0,0,null,0,0,0,null,0]
[null,"July",null,0,0,0,null,0,0,0,null,0,0,0,null,0]
[null,"August",null,0,0,0,null,0,0,0,null,0,0,0,null,0]
[null,"September",null,0,0,0,null,0,0,0,null,0,0,0,null,0]
[null,"October",null,0,0,0,null,0,0,0,null,0,0,0,null,0]
[null,"November",null,0,0,0,null,0,0,0,null,0,0,0,null,0]
[null,"December",null,0,0,0,null,0,0,0,null,0,0,0,null,0]
[]
[null,"Total",null,{"$f":"SUM(D96:D107)","v":0},{"$f":"IF(D109<>0,F109/D109,0)","v":0},{"$f":"SUM(F96:F107)","v":0},null,{"$f":"SUM(H96:H107)","v":0},{"$f":"IF(H109<>0,J109/H109,0)","v":0},{"$f":"SUM(J96:J107)","v":0},null,{"$f":"SUM(L96:L107)","v":0},{"$f":"IF(L109<>0,N109/L109,0)","v":0},{"$f":"SUM(N96:N107)","v":0},null,{"$f":"SUM(P96:P107)","v":0}]
[]
[null,null,null,null,null,null,null,null,null,null,null,null,null,"Low Voltage Switchgear Credit (if applicable)",null,{"$f":"'11. RTSR-UTRs & Sub-Tx'!I68","v":0}]
[]
[null,null,null,null,null,null,null,null,null,null,null,null,null,"Total including deduction for Low Voltage Switchgear Credit",null,{"$f":"P109+P111","v":0}]

{"sheet":"15. RTSR-Rates to Forecast","index":17,"n_rows":62,"n_cols":11,"rows_kept":62,"cut":false,"hidden":true,"merged":[[1,1,8,2]]}
["Back to Index","Back to Index"]
[null,"INCENTIVE REGULATION MODEL FOR 2018 FILERS"]
[]
[]
[]
[]
[]
[]
[]
[]
[]
[]
[null,"The purpose of this table is to re-align the current RTS Network Rates to recover current wholesale network costs."]
[]
[null,"Rate Class","Rate Description","Unit","Current RTSR-Network","Loss Adjusted Billed kWh","Billed kW","Billed Amount","Billed Amount %","Current Wholesale Billing","Adjusted RTSR Network"]
[]
[{"$f":"'10. RTSR - Current Rates'!A16","v":"R_TN"},{"$f":"'4. Billing Det. for Def-Var'!B17","v":"RESIDENTIAL SERVICE CLASSIFICATION"},{"$f":"VLOOKUP(A17,RTSR,3,FALSE)","v":"Retail Transmission Rate – Network Service Rate"},{"$f":"VLOOKUP(A17,RTSR,4,FALSE)","v":"$/kWh"},{"$f":"VLOOKUP(A17,RATES,4,FALSE)","v":{"$error":"#REF!"}},{"$f":"VLOOKUP(A17,RTSR,9,FALSE)","v":0},{"$f":"VLOOKUP(A17,RTSR,7,FALSE)","v":0},{"$f":"IF(ISERROR(E17*F17), 0, ROUND(E17*F17, 2))","v":0},{"$f":"H17/SUM(H$17:H$26)","v":{"$error":"#DIV/0!"}},{"$f":"I17*total_wholesale_TN","v":{"$error":"#DIV/0!"}},{"$f":"IF(ISERROR(J17/F17), 0, J17/F17)","v":0}]
[{"$f":"'10. RTSR - Current Rates'!A18","v":"GSL_TN"},{"$f":"'4. Billing Det. for Def-Var'!B18","v":"GENERAL SERVICE LESS THAN 50 kW SERVICE CLASSIFICATION"},"Retail Transmission Rate – Network Service Rate","$/kWh",{"$f":"VLOOKUP(A18,RATES,4,FALSE)","v":{"$error":"#REF!"}},{"$f":"VLOOKUP(A18,RTSR,9,FALSE)","v":0},{"$f":"VLOOKUP(A18,RTSR,7,FALSE)","v":0},{"$f":"IF(ISERROR(E18*F18), 0, ROUND(E18*F18, 2))","v":0},{"$f":"H18/SUM(H$17:H$26)","v":{"$error":"#DIV/0!"}},{"$f":"I18*total_wholesale_TN","v":{"$error":"#DIV/0!"}},{"$f":"IF(ISERROR(J18/F18), 0, J18/F18)","v":0}]
[{"$f":"'10. RTSR - Current Rates'!A20","v":"GSG_TN"},{"$f":"'4. Billing Det. for Def-Var'!B19","v":"GENERAL SERVICE 50 to 4,999 kW SERVICE CLASSIFICATION"},"Retail Transmission Rate – Network Service Rate","$/kW",{"$error":"#REF!"},0,0,{"$f":"IF(ISERROR(E19*G19), 0, ROUND(E19*G19, 2))","v":0},{"$error":"#DIV/0!"},{"$error":"#DIV/0!"},{"$f":"IF(ISERROR(J19/G19), 0, J19/G19)","v":0}]
[{"$f":"'10. RTSR - Current Rates'!A22","v":"LU_TN"},{"$f":"'4. Billing Det. for Def-Var'!B20","v":"LARGE USE SERVICE CLASSIFICATION"},"Retail Transmission Rate – Network Service Rate","$/kW",{"$error":"#REF!"},0,0,{"$f":"IF(ISERROR(E20*G20), 0, ROUND(E20*G20, 2))","v":0},{"$error":"#DIV/0!"},{"$error":"#DIV/0!"},{"$f":"IF(ISERROR(J20/G20), 0, J20/G20)","v":0}]
[{"$f":"'10. RTSR - Current Rates'!A24","v":"USL_TN"},{"$f":"'4. Billing Det. for Def-Var'!B21","v":"UNMETERED SCATTERED LOAD SERVICE CLASSIFICATION"},"Retail Transmission Rate – Network Service Rate","$/kW",{"$error":"#REF!"},0,0,0,{"$error":"#DIV/0!"},{"$error":"#DIV/0!"},0]
[{"$f":"'10. RTSR - Current Rates'!A26","v":"SEN_TN"},{"$f":"'4. Billing Det. for Def-Var'!B22","v":"SENTINEL LIGHTING SERVICE CLASSIFICATION"},"Retail Transmission Rate – Network Service Rate",{"$f":"VLOOKUP(A22,RTSR,4,FALSE)","v":"$/kWh"},{"$f":"VLOOKUP(A22,RATES,4,FALSE)","v":{"$error":"#REF!"}},{"$f":"VLOOKUP(A22,RTSR,9,FALSE)","v":0},{"$f":"VLOOKUP(A22,RTSR,7,FALSE)","v":0},{"$f":"IF(ISERROR(E22*G22), 0, ROUND(E22*G22, 2))","v":0},{"$f":"H22/SUM(H$17:H$26)","v":{"$error":"#DIV/0!"}},{"$f":"I22*total_wholesale_TN","v":{"$error":"#DIV/0!"}},{"$f":"IF(ISERROR(J22/G22), 0, J22/G22)","v":0}]
[{"$f":"'10. RTSR - Current Rates'!A28","v":"SL_TN"},{"$f":"'4. Billing Det. for Def-Var'!B23","v":"STREET LIGHTING SERVICE CLASSIFICATION"},"Retail Transmission Rate – Network Service Rate","$/kWh",{"$error":"#REF!"},0,0,{"$f":"IF(ISERROR(E23*F23), 0, ROUND(E23*F23, 2))","v":0},{"$error":"#DIV/0!"},{"$error":"#DIV/0!"},{"$f":"IF(ISERROR(J23/F23), 0, J23/F23)","v":0}]
[]
[]
[]
[null,"The purpose of this table is to re-align the current RTS Connection Rates to recover current wholesale connection costs."]
[null,"Rate Class","Rate Description","Unit","Current RTSR-Connection","Loss Adjusted Billed kWh","Billed kW","Billed Amount","Billed Amount %","Current Wholesale Billing","Adjusted RTSR-Connection"]
[]
[{"$f":"'10. RTSR - Current Rates'!A17","v":"R_TC"},{"$f":"B17","v":"RESIDENTIAL SERVICE CLASSIFICATION"},{"$f":"VLOOKUP(A30,RTSR,3,FALSE)","v":"Retail Transmission Rate – Line and Transformation Connection Service Rate"},{"$f":"VLOOKUP(A30,RTSR,4,FALSE)","v":"$/kWh"},{"$f":"VLOOKUP(A30,RATES,4,FALSE)","v":{"$error":"#REF!"}},{"$f":"F17","v":0},{"$f":"G17","v":0},{"$f":"IF(ISERROR(E30*F30), 0, ROUND(E30*F30, 2))","v":0},{"$f":"H30/SUM(H$30:H$39)","v":{"$error":"#DIV/0!"}},{"$f":"I30*total_wholesale_LinePlus","v":{"$error":"#DIV/0!"}},{"$f":"IF(ISERROR(J30/F30), 0, J30/F30)","v":0}]
[{"$f":"'10. RTSR - Current Rates'!A19","v":"GSL_TC"},{"$f":"B18","v":"GENERAL SERVICE LESS THAN 50 kW SERVICE CLASSIFICATION"},"Retail Transmission Rate – Line and Transformation Connection Service Rate","$/kWh",{"$error":"#REF!"},{"$f":"F18","v":0},0,{"$f":"IF(ISERROR(E31*F31), 0, ROUND(E31*F31, 2))","v":0},{"$f":"H31/SUM(H$30:H$39)","v":{"$error":"#DIV/0!"}},{"$error":"#DIV/0!"},{"$f":"IF(ISERROR(J31/F31), 0, J31/F31)","v":0}]
[{"$f":"'10. RTSR - Current Rates'!A21","v":"GSG_TC"},"GENERAL SERVICE 50 to 4,999 kW SERVICE CLASSIFICATION","Retail Transmission Rate – Line and Transformation Connection Service Rate","$/kW",{"$error":"#REF!"},0,0,{"$f":"IF(ISERROR(E32*G32), 0, ROUND(E32*G32, 2))","v":0},{"$error":"#DIV/0!"},{"$error":"#DIV/0!"},{"$f":"IF(ISERROR(J32/G32), 0, J32/G32)","v":0}]
[{"$f":"'10. RTSR - Current Rates'!A23","v":"LU_TC"},"LARGE USE SERVICE CLASSIFICATION","Retail Transmission Rate – Line and Transformation Connection Service Rate","$/kW",{"$error":"#REF!"},0,0,{"$f":"IF(ISERROR(E33*G33), 0, ROUND(E33*G33, 2))","v":0},{"$error":"#DIV/0!"},{"$error":"#DIV/0!"},{"$f":"IF(ISERROR(J33/G33), 0, J33/G33)","v":0}]
[{"$f":"'10. RTSR - Current Rates'!A25","v":"USL_TC"},"UNMETERED SCATTERED LOAD SERVICE CLASSIFICATION","Retail Transmission Rate – Line and Transformation Connection Service Rate ","$/kW",{"$error":"#REF!"},0,0,0,{"$error":"#DIV/0!"},{"$error":"#DIV/0!"},0]
[{"$f":"'10. RTSR - Current Rates'!A27","v":"SEN_TC"},"SENTINEL LIGHTING SERVICE CLASSIFICATION","Retail Transmission Rate – Line and Transformation Connection Service Rate",{"$f":"VLOOKUP(A35,RTSR,4,FALSE)","v":"$/kWh"},{"$f":"VLOOKUP(A35,RATES,4,FALSE)","v":{"$error":"#REF!"}},0,0,{"$f":"IF(ISERROR(E35*G35), 0, ROUND(E35*G35, 2))","v":0},{"$f":"H35/SUM(H$30:H$39)","v":{"$error":"#DIV/0!"}},{"$f":"I35*total_wholesale_LinePlus","v":{"$error":"#DIV/0!"}},{"$f":"IF(ISERROR(J35/G35), 0, J35/G35)","v":0}]
[{"$f":"'10. RTSR - Current Rates'!A29","v":"SL_TC"},"STREET LIGHTING SERVICE CLASSIFICATION","Retail Transmission Rate – Line and Transformation Connection Service Rate","$/kWh",{"$error":"#REF!"},0,0,{"$f":"IF(ISERROR(E36*F36), 0, ROUND(E36*F36, 2))","v":0},{"$error":"#DIV/0!"},{"$error":"#DIV/0!"},{"$f":"IF(ISERROR(J36/F36), 0, J36/F36)","v":0}]
[]
[]
[]
[null,"The purpose of this table is to update the re-aligned RTS Network Rates to recover future wholesale network costs."]
[null,"Rate Class","Rate Description","Unit","Adjusted RTSR-Network","Loss Adjusted Billed kWh","Billed kW","Billed Amount","Billed Amount %","Current Wholesale Billing","Proposed RTSR-Network"]
[]
[{"$f":"A17","v":"R_TN"},{"$f":"B17","v":"RESIDENTIAL SERVICE CLASSIFICATION"},{"$f":"VLOOKUP(A43,RTSR,3,FALSE)","v":"Retail Transmission Rate – Network Service Rate"},{"$f":"VLOOKUP(A43,RTSR,4,FALSE)","v":"$/kWh"},{"$f":"K17","v":0},{"$f":"VLOOKUP(A43,RTSR,9,FALSE)","v":0},{"$f":"VLOOKUP(A43,RTSR,7,FALSE)","v":0},{"$f":"IF(ISERROR(E43*F43), 0, ROUND(E43*F43, 2))","v":0},{"$f":"H43/SUM(H$43:H$52)","v":{"$error":"#DIV/0!"}},{"$f":"I43*forecast_wholesale_TN","v":{"$error":"#DIV/0!"}},{"$f":"IF(ISERROR(J43/F43), 0, J43/F43)","v":0}]
[{"$f":"A18","v":"GSL_TN"},{"$f":"B18","v":"GENERAL SERVICE LESS THAN 50 kW SERVICE CLASSIFICATION"},"Retail Transmission Rate – Network Service Rate","$/kWh",{"$f":"K18","v":0},0,0,{"$f":"IF(ISERROR(E44*F44), 0, ROUND(E44*F44, 2))","v":0},{"$f":"H44/SUM(H$43:H$52)","v":{"$error":"#DIV/0!"}},{"$error":"#DIV/0!"},{"$f":"IF(ISERROR(J44/F44), 0, J44/F44)","v":0}]
["GSG_TN","GENERAL SERVICE 50 to 4,999 kW SERVICE CLASSIFICATION","Retail Transmission Rate – Network Service Rate","$/kW",0,0,0,{"$f":"IF(ISERROR(E45*G45), 0, ROUND(E45*G45, 2))","v":0},{"$error":"#DIV/0!"},{"$error":"#DIV/0!"},{"$f":"IF(ISERROR(J45/G45), 0, J45/G45)","v":0}]
["LU_TN","LARGE USE SERVICE CLASSIFICATION","Retail Transmission Rate – Network Service Rate","$/kW",0,0,0,{"$f":"IF(ISERROR(E46*G46), 0, ROUND(E46*G46, 2))","v":0},{"$error":"#DIV/0!"},{"$error":"#DIV/0!"},{"$f":"IF(ISERROR(J46/G46), 0, J46/G46)","v":0}]
["USL_TN","UNMETERED SCATTERED LOAD SERVICE CLASSIFICATION","Retail Transmission Rate – Network Service Rate","$/kW",0,0,0,0,{"$error":"#DIV/0!"},{"$error":"#DIV/0!"},0]
["SEN_TN","SENTINEL LIGHTING SERVICE CLASSIFICATION","Retail Transmission Rate – Network Service Rate",{"$f":"VLOOKUP(A48,RTSR,4,FALSE)","v":"$/kWh"},{"$f":"K22","v":0},{"$f":"VLOOKUP(A48,RTSR,9,FALSE)","v":0},{"$f":"VLOOKUP(A48,RTSR,7,FALSE)","v":0},{"$f":"IF(ISERROR(E48*G48), 0, ROUND(E48*G48, 2))","v":0},{"$f":"H48/SUM(H$43:H$52)","v":{"$error":"#DIV/0!"}},{"$f":"I48*forecast_wholesale_TN","v":{"$error":"#DIV/0!"}},{"$f":"IF(ISERROR(J48/G48), 0, J48/G48)","v":0}]
["SL_TN","STREET LIGHTING SERVICE CLASSIFICATION","Retail Transmission Rate – Network Service Rate","$/kWh",0,0,0,{"$f":"IF(ISERROR(E49*F49), 0, ROUND(E49*F49, 2))","v":0},{"$error":"#DIV/0!"},{"$error":"#DIV/0!"},{"$f":"IF(ISERROR(J49/F49), 0, J49/F49)","v":0}]
[]
[]
[]
[null,"The purpose of this table is to update the re-aligned RTS Connection Rates to recover future wholesale connection costs."]
[null,"Rate Class","Rate Description","Unit","Adjusted RTSR-Connection","Loss Adjusted Billed kWh","Billed kW","Billed Amount","Billed Amount %","Current Wholesale Billing","Proposed RTSR-Connection"]
[]
[{"$f":"A30","v":"R_TC"},{"$f":"B17","v":"RESIDENTIAL SERVICE CLASSIFICATION"},{"$f":"VLOOKUP(A56,RTSR,3,FALSE)","v":"Retail Transmission Rate – Line and Transformation Connection Service Rate"},{"$f":"VLOOKUP(A56,RTSR,4,FALSE)","v":"$/kWh"},{"$f":"K30","v":0},{"$f":"VLOOKUP(A56,RTSR,9,FALSE)","v":0},{"$f":"VLOOKUP(A56,RTSR,7,FALSE)","v":0},{"$f":"IF(ISERROR(E56*F56), 0, ROUND(E56*F56, 2))","v":0},{"$f":"H56/SUM(H$56:H$65)","v":{"$error":"#DIV/0!"}},{"$f":"I56*forecast_wholesale_LNPlus","v":{"$error":"#DIV/0!"}},{"$f":"IF(ISERROR(J56/F56), 0, J56/F56)","v":0}]
[{"$f":"A31","v":"GSL_TC"},{"$f":"B18","v":"GENERAL SERVICE LESS THAN 50 kW SERVICE CLASSIFICATION"},"Retail Transmission Rate – Line and Transformation Connection Service Rate","$/kWh",{"$f":"K31","v":0},0,0,{"$f":"IF(ISERROR(E57*F57), 0, ROUND(E57*F57, 2))","v":0},{"$f":"H57/SUM(H$56:H$65)","v":{"$error":"#DIV/0!"}},{"$error":"#DIV/0!"},{"$f":"IF(ISERROR(J57/F57), 0, J57/F57)","v":0}]
["GSG_TC","GENERAL SERVICE 50 to 4,999 kW SERVICE CLASSIFICATION","Retail Transmission Rate – Line and Transformation Connection Service Rate","$/kW",0,0,0,{"$f":"IF(ISERROR(E58*G58), 0, ROUND(E58*G58, 2))","v":0},{"$error":"#DIV/0!"},{"$error":"#DIV/0!"},{"$f":"IF(ISERROR(J58/G58), 0, J58/G58)","v":0}]
["LU_TC","LARGE USE SERVICE CLASSIFICATION","Retail Transmission Rate – Line and Transformation Connection Service Rate","$/kW",0,0,0,{"$f":"IF(ISERROR(E59*G59), 0, ROUND(E59*G59, 2))","v":0},{"$error":"#DIV/0!"},{"$error":"#DIV/0!"},{"$f":"IF(ISERROR(J59/G59), 0, J59/G59)","v":0}]
["USL_TC","UNMETERED SCATTERED LOAD SERVICE CLASSIFICATION","Retail Transmission Rate – Line and Transformation Connection Service Rate ","$/kW",0,0,0,0,{"$error":"#DIV/0!"},{"$error":"#DIV/0!"},0]
["SEN_TC","SENTINEL LIGHTING SERVICE CLASSIFICATION","Retail Transmission Rate – Line and Transformation Connection Service Rate",null,{"$f":"K35","v":0},{"$f":"VLOOKUP(A61,RTSR,9,FALSE)","v":0},{"$f":"VLOOKUP(A61,RTSR,7,FALSE)","v":0},{"$f":"IF(ISERROR(E61*G61), 0, ROUND(E61*G61, 2))","v":0},{"$f":"H61/SUM(H$56:H$65)","v":{"$error":"#DIV/0!"}},{"$f":"I61*forecast_wholesale_LNPlus","v":{"$error":"#DIV/0!"}},{"$f":"IF(ISERROR(J61/G61), 0, J61/G61)","v":0}]
["SL_TC","STREET LIGHTING SERVICE CLASSIFICATION","Retail Transmission Rate – Line and Transformation Connection Service Rate","$/kWh",0,0,0,{"$f":"IF(ISERROR(E62*F62), 0, ROUND(E62*F62, 2))","v":0},{"$error":"#DIV/0!"},{"$error":"#DIV/0!"},{"$f":"IF(ISERROR(J62/F62), 0, J62/F62)","v":0}]

{"sheet":"16. Rev2Cost-GDPIPI","index":18,"n_rows":38,"n_cols":31,"rows_kept":38,"cut":false,"hidden":true,"merged":[[10,2,10,9],[1,2,8,7]]}
["Back to Index",null,"Back to Index",null,null,null,null,null,null,null,null,null,null,null,null,null,null,null,null,null,null,null,null,null,null,null,false,0,null,null,"NO"]
[null,null,"INCENTIVE REGULATION MODEL FOR 2018 FILERS",null,null,null,null,null,null,null,null,null,null,null,null,null,null,null,true]
[]
[]
[]
[]
[]
[]
[]
[]
[null,null,"If applicable, please enter any adjustments related to the revenue to cost ratio model into columns C and E.  The Price Escalator and Stretch Factor have been set at the 2016 values and will be updated by OEB staff at a later date. "]
[null,null,"Price Escalator",1.9E-2,"Productivity Factor",0,"# of Residential Customers\n(approved in the last CoS)\n",140979,"Effective Year of Residential Rate Design Transition (yyyy)",2016]
[null,null,"Choose Stretch Factor Group","III","Price Cap Index",{"$f":"D12-F12-D14","v":1.6E-2},"Billed kWh for Residential Class\n(approved in the last CoS)",1308264983,"OEB-approved # of Transition Years",4]
[null,null,"Associated Stretch Factor Value",{"$f":"IF(D13=\"I\", 0%, IF(D13=\"II\", 0.15%, IF(D13=\"III\", 0.3%, IF(D13=\"IV\", 0.45%, 0.6%))))","v":3.0000000000000001E-3},null,null,"Rate Design Transition Years Left",2]
[null,null,"Rate Class","Current MFC","MFC Adjustment from R/C Model","Current  Volumetric Charge","DVR Adjustment from R/C Model","Price Cap Index to be Applied to MFC and DVR","Proposed MFC","Proposed Volumetric Charge"]
[]
["R_F","R_V",{"$f":"'4. Billing Det. for Def-Var'!B17","v":"RESIDENTIAL SERVICE CLASSIFICATION"},{"$f":"IFERROR(VLOOKUP(A17,RATES,4,FALSE),\"\")","v":""},null,{"$f":"IFERROR(VLOOKUP(B17,RATES,4,FALSE),\"\")","v":""},null,{"$f":"F$13","v":1.6E-2},{"$f":"J31*(1+F13)","v":0},{"$f":"J32*(1+F13)","v":0}]
["GSL_F","GSL_V",{"$f":"'4. Billing Det. for Def-Var'!B18","v":"GENERAL SERVICE LESS THAN 50 kW SERVICE CLASSIFICATION"},"",null,"",null,{"$f":"F$13","v":1.6E-2},{"$f":"(D18+E18)*(1+F$13)","v":{"$error":"#VALUE!"}},{"$f":"(F18+G18)*(1+F$13)","v":{"$error":"#VALUE!"}}]
["GSG_F","GSG_V",{"$f":"'4. Billing Det. for Def-Var'!B19","v":"GENERAL SERVICE 50 to 4,999 kW SERVICE CLASSIFICATION"},"",null,"",null,1.6E-2,{"$f":"(D19+E19)*(1+F$13)","v":{"$error":"#VALUE!"}},{"$f":"(F19+G19)*(1+F$13)","v":{"$error":"#VALUE!"}}]
["LU_F","LU_V",{"$f":"'4. Billing Det. for Def-Var'!B20","v":"LARGE USE SERVICE CLASSIFICATION"},"",null,"",null,1.6E-2,{"$f":"(D20+E20)*(1+F$13)","v":{"$error":"#VALUE!"}},{"$error":"#VALUE!"}]
["USL_F","USL_V",{"$f":"'4. Billing Det. for Def-Var'!B21","v":"UNMETERED SCATTERED LOAD SERVICE CLASSIFICATION"},"",null,"",null,1.6E-2,{"$error":"#VALUE!"},{"$error":"#VALUE!"}]
["SEN_F","SEN_V",{"$f":"'4. Billing Det. for Def-Var'!B22","v":"SENTINEL LIGHTING SERVICE CLASSIFICATION"},"",null,"",null,1.6E-2,0,{"$error":"#VALUE!"}]
["SL_F","SL_V",{"$f":"'4. Billing Det. for Def-Var'!B23","v":"STREET LIGHTING SERVICE CLASSIFICATION"},"",null,"",null,1.6E-2,{"$error":"#VALUE!"},{"$error":"#VALUE!"}]
[null,null,{"$f":"'4. Billing Det. for Def-Var'!B24","v":0},"",null,"",null,1.6E-2,{"$error":"#VALUE!"},{"$error":"#VALUE!"}]
[null,null,{"$f":"'4. Billing Det. for Def-Var'!B25","v":0},"",null,"",null,1.6E-2,{"$error":"#VALUE!"},0]
[null,null,{"$f":"'4. Billing Det. for Def-Var'!B26","v":0},"",null,"",null,1.6E-2,{"$error":"#VALUE!"},0]
[null,null,{"$f":"'4. Billing Det. for Def-Var'!B27","v":0},"",null,"",null,1.6E-2,{"$error":"#VALUE!"},0]
[null,null,"microFIT SERVICE CLASSIFICATION",5.4,null,"",null,1.6E-2,{"$f":"D28","v":5.4},0]
[]
[null,null,"Rate Design Transition",null,"Revenue from Rates","Current F/V Split","Decoupling MFC Split","Incremental Fixed Charge ($/month/year)","New F/V Split","Adjusted Rates1","Revenue at New F/V Split "]
[null,null,"Current Residential Fixed Rate (inclusive of R/C adj.)",{"$f":"D17+E17","v":{"$error":"#VALUE!"}},{"$f":"D31*COS_RES_CUSTOMERS*12","v":{"$error":"#VALUE!"}},{"$f":"IF(ISERROR(E31/E33), 0, E31/E33)","v":0},{"$f":"IF(ISERROR((1-F31)/YRS_LEFT), 0, (1-F31)/YRS_LEFT)","v":0.5},{"$f":"IF(ISERROR(ROUND(G31*E33/COS_RES_CUSTOMERS/12, 2)), 0, ROUND(G31*E33/COS_RES_CUSTOMERS/12, 2))","v":0},{"$f":"G31+F31","v":0.5},{"$f":"IF(ISERROR(ROUND(I31*E33/COS_RES_CUSTOMERS/12, 2)), 0, ROUND(I31*E33/COS_RES_CUSTOMERS/12, 2))","v":0},{"$f":"ROUND(J31*COS_RES_CUSTOMERS*12, 2)","v":0}]
[null,null,"Current Residential Variable Rate (inclusive of R/C adj.)",{"$f":"F17+G17","v":{"$error":"#VALUE!"}},{"$f":"D32*COS_RES_KWH","v":{"$error":"#VALUE!"}},{"$f":"IF(ISERROR(E32/E33), 0, E32/E33)","v":0},null,null,{"$f":"1-I31","v":0.5},{"$f":"IF(ISERROR(ROUND(I32*E33/COS_RES_KWH, 4)), 0, ROUND(I32*E33/COS_RES_KWH, 4))","v":0},{"$f":"ROUND(J32*COS_RES_KWH, 2)","v":0}]
[null,null,null,null,{"$f":"SUM(E31+E32)","v":{"$error":"#VALUE!"}},null,null,null,null,null,{"$f":"SUM(K31+K32)","v":0}]
[]
[]
[null,null,{"$f":"IF((J31-D31)>=4, \"The Rate Design Transition has calculated a monthly fixed charge greater than or equal to $4.  Please refer to Section 3.2.3 of the Chapter 3 Filing Requirements for mitigation instructions.\", \"\")","v":{"$error":"#VALUE!"}}]
[]
[null,null,"1 These are the residential rates to which the Price Cap Index will be applied to."]

{"sheet":"17. Regulatory Charges","index":19,"n_rows":17,"n_cols":5,"rows_kept":17,"cut":false,"hidden":true,"merged":[[11,2,11,4],[1,1,8,6]]}
["Back to Index"]
[null,"INCENTIVE REGULATION MODEL FOR 2018 FILERS"]
[]
[]
[]
[]
[]
[]
[]
[]
[]
[null,null,"Update the following rates if an OEB Decision has been issued at the time of completing this application"]
[null,null,null,null,"Proposed"]
[null,null,"Wholesale Market Service Rate","$/kWh",3.5999999999999999E-3]
[null,null,"Rural or Remote Electricity Rate Protection Charge (RRRP)","$/kWh",2.0999999999999999E-3]
[null,null,"Standard Supply Service - Administrative Charge (if applicable)","$",0.25]
[null,null,"Ontario Electricity Support Program (OESP)","$/kWh",1.1000000000000001E-3]

{"sheet":"18. Additional Rates","index":20,"n_rows":144,"n_cols":28,"rows_kept":144,"cut":false,"hidden":true,"merged":[[10,1,10,6],[1,1,8,6]]}
["Back to Index",null,null,null,null,null,null,null,null,null,null,null,null,null,null,null,null,null,null,null,null,null,null,null,null,null,null,3]
[null,"INCENTIVE REGULATION MODEL FOR 2018 FILERS"]
[]
[]
[]
[]
[]
[]
[]
[]
[null,"In the Green Cells below, enter any proposed rate riders that are not already included in this model (e.g.:  proposed ICM rate riders).  Please note that existing SMIRR and SM Entity Charge do not need to be included below.\nIn column A, the rate rider descriptions must begin with \"Rate Rider for\". \nIn column B, choose the associated unit from the drop-down menu.\nIn column C, enter the rate. All rate riders with a \"$\" unit should be rounded to 2 decimal places and all others rounded to 4 decimal places.\nIn column E, enter the expiry date (e.g. April 30, 2018) or description of the expiry date in text (e.g. the effective date of  the next cost of service-based rate order).\nIn column G, choose the sub-total as applicable in the bill impact calculation from the drop-down menu"]
[]
[null,{"$f":"'4. Billing Det. for Def-Var'!B17","v":"RESIDENTIAL SERVICE CLASSIFICATION"}]
[null,"Rate Rider for Incremental Capital Module (ICM)","$",null," - effective until ","2018-12-31",null,"A"]
[null,"Rate Rider for Recovery of Lost Revenue Adjustment Mechanism Variance Account (2014-15 balances)","$/kWh",null," - effective until ","2018-12-31",null,"A"]
[null,"Rate Rider for Disposition of Capacity Based Recovery Account (2017) - Applicable only for Class B Customers","$/kWh",null," - effective until ","2018-12-31",null,"B"]
[null,null,null,null," - effective until "]
[null,null,null,null," - effective until "]
[null,null,null,null," - effective until "]
[null,null,null,null," - effective until "]
[null,null,null,null," - effective until "]
[null,null,null,null," - effective until "]
[null,null,null,null," - effective until "]
[]
[]
[null,{"$f":"'4. Billing Det. for Def-Var'!B18","v":"GENERAL SERVICE LESS THAN 50 kW SERVICE CLASSIFICATION"}]
[null,"Rate Rider for Incremental Capital Module (ICM)","$",null," - effective until ","2018-12-31",null,"A"]
[null,"Rate Rider for Incremental Capital Module (ICM)","$/kWh",null," - effective until ","2018-12-31",null,"A"]
[null,"Rate Rider for Recovery of Lost Revenue Adjustment Mechanism Variance Account (2014-15 balances)","$/kWh",null," - effective until ","2018-12-31",null,"A"]
[null,"Rate Rider for Disposition of Capacity Based Recovery Account (2017) - Applicable only for Class B Customers","$/kWh",null," - effective until ","2018-12-31",null,"B"]
[null,null,null,null," - effective until "]
[null,null,null,null," - effective until "]
[null,null,null,null," - effective until "]
[null,null,null,null," - effective until "]
[null,null,null,null," - effective until "]
[]
[]
[null,{"$f":"'4. Billing Det. for Def-Var'!B19","v":"GENERAL SERVICE 50 to 4,999 kW SERVICE CLASSIFICATION"}]
[null,"Rate Rider for Incremental Capital Module (ICM)","$",null," - effective until ","2018-12-31",null,"A"]
[null,"Rate Rider for Incremental Capital Module (ICM)","$/kW",null," - effective until ","2018-12-31",null,"A"]
[null,"Rate Rider for Recovery of Lost Revenue Adjustment Mechanism Variance Account (2014-15 balances)","$/kW",null," - effective until ","2018-12-31",null,"A"]
[null,"Rate Rider for Disposition of Capacity Based Recovery Account (2017) - Applicable only for Class B Customers","$/kW",null," - effective until ","2018-12-31",null,"B"]
[null,null,null,null," - effective until "]
[null,null,null,null," - effective until "]
[null,null,null,null," - effective until "]
[null,null,null,null," - effective until "]
[null,null,null,null," - effective until "]
[]
[]
[null,{"$f":"'4. Billing Det. for Def-Var'!B20","v":"LARGE USE SERVICE CLASSIFICATION"}]
[null,"Rate Rider for Incremental Capital Module (ICM)","$",null," - effective until ","2018-12-31",null,"A"]
[null,"Rate Rider for Incremental Capital Module (ICM)","$/kW",null," - effective until ","2018-12-31",null,"A"]
[null,"Rate Rider for Recovery of Lost Revenue Adjustment Mechanism Variance Account (2014-15 balances)","$/kW",null," - effective until ","2018-12-31",null,"A"]
[null,"Rate Rider for Disposition of Capacity Based Recovery Account (2017) - Applicable only for Class B Customers","$/kW",null," - effective until ","2018-12-31",null,"B"]
[null,null,null,null," - effective until "]
[null,null,null,null," - effective until "]
[null,null,null,null," - effective until "]
[null,null,null,null," - effective until "]
[null,null,null,null," - effective until "]
[]
[]
[null,{"$f":"'4. Billing Det. for Def-Var'!B21","v":"UNMETERED SCATTERED LOAD SERVICE CLASSIFICATION"}]
[null,"Rate Rider for Incremental Capital Module (ICM)","$",null," - effective until ","2018-12-31",null,"A"]
[null,"Rate Rider for Incremental Capital Module (ICM)","$/kWh",null," - effective until ","2018-12-31",null,"A"]
[null,"Rate Rider for Recovery of Lost Revenue Adjustment Mechanism Variance Account (2014-15 balances)","$/kWh",null," - effective until ","2018-12-31",null,"A"]
[null,"Rate Rider for Disposition of Capacity Based Recovery Account (2017) - Applicable only for Class B Customers","$/kWh",null," - effective until ","2018-12-31",null,"B"]
[null,null,null,null," - effective until "]
[null,null,null,null," - effective until "]
[null,null,null,null," - effective until "]
[null,null,null,null," - effective until "]
[null,null,null,null," - effective until "]
[]
[]
[null,{"$f":"'4. Billing Det. for Def-Var'!B23","v":"STREET LIGHTING SERVICE CLASSIFICATION"}]
[null,"Rate Rider for Incremental Capital Module (ICM)","$",null," - effective until ","2018-12-31",null,"A"]
[null,"Rate Rider for Incremental Capital Module (ICM)","$/kW",null," - effective until ","2018-12-31",null,"A"]
[null,"Rate Rider for Recovery of Lost Revenue Adjustment Mechanism Variance Account (2014-15 balances)","$/kW",null," - effective until ","2018-12-31",null,"A"]
[null,"Rate Rider for Disposition of Capacity Based Recovery Account (2017) - Applicable only for Class B Customers","$/kW",null," - effective until ","2018-12-31",null,"B"]
[null,null,null,null," - effective until "]
[null,null,null,null," - effective until "]
[null,null,null,null," - effective until "]
[null,null,null,null," - effective until "]
[null,null,null,null," - effective until "]
[]
[]
[null,{"$f":"'4. Billing Det. for Def-Var'!B24","v":0}]
[null,"Rate Rider for Incremental Capital Module (ICM)","$",null," - effective until ","2018-12-31",null,"A"]
[null,"Rate Rider for Incremental Capital Module (ICM)","$/kW",null," - effective until ","2018-12-31",null,"A"]
[null,"Rate Rider for Recovery of Lost Revenue Adjustment Mechanism Variance Account (2014-15 balances)","$/kW",null," - effective until ","2018-12-31",null,"A"]
[null,"Rate Rider for Disposition of Capacity Based Recovery Account (2017) - Applicable only for Class B Customers","$/kW",null," - effective until ","2018-12-31",null,"B"]
[null,null,null,null," - effective until "]
[null,null,null,null," - effective until "]
[null,null,null,null," - effective until "]
[null,null,null,null," - effective until "]
[null,null,null,null," - effective until "]
[]
[]
[null,{"$f":"'4. Billing Det. for Def-Var'!B25","v":0}]
[null,"Rate Rider for Incremental Capital Module (ICM)","$",null," - effective until ","2018-12-31",null,"A"]
[null,"Rate Rider for Incremental Capital Module (ICM)","$/kW",null," - effective until ","2018-12-31",null,"A"]
[null,"Rate Rider for Recovery of Lost Revenue Adjustment Mechanism Variance Account (2014-15 balances)","$/kW",null," - effective until ","2018-12-31",null,"A"]
[null,"Rate Rider for Disposition of Capacity Based Recovery Account (2017) - Applicable only for Class B Customers","$/kW",null," - effective until ","2018-12-31",null,"B"]
[null,null,null,null," - effective until "]
[null,null,null,null," - effective until "]
[null,null,null,null," - effective until "]
[null,null,null,null," - effective until "]
[null,null,null,null," - effective until "]
[]
[]
[null,{"$f":"'4. Billing Det. for Def-Var'!B26","v":0}]
[null,"Rate Rider for Incremental Capital Module (ICM)","$",null," - effective until ","2018-12-31",null,"A"]
[null,"Rate Rider for Incremental Capital Module (ICM)","$/kW",null," - effective until ","2018-12-31",null,"A"]
[null,"Rate Rider for Recovery of Lost Revenue Adjustment Mechanism Variance Account (2014-15 balances)","$/kW",null," - effective until ","2018-12-31",null,"A"]
[null,"Rate Rider for Disposition of Capacity Based Recovery Account (2017) - Applicable only for Class B Customers","$/kW",null," - effective until ","2018-12-31",null,"B"]
[null,null,null,null," - effective until "]
[null,null,null,null," - effective until "]
[null,null,null,null," - effective until "]
[null,null,null,null," - effective until "]
[null,null,null,null," - effective until "]
[]
[]
[null,{"$f":"'4. Billing Det. for Def-Var'!B27","v":0}]
[null,"Rate Rider for Incremental Capital Module (ICM)","$",null," - effective until ","2018-12-31",null,"A"]
[null,"Rate Rider for Incremental Capital Module (ICM)","$/kW",null," - effective until ","2018-12-31",null,"A"]
[null,"Rate Rider for Recovery of Lost Revenue Adjustment Mechanism Variance Account (2014-15 balances)","$/kW",null," - effective until ","2018-12-31",null,"A"]
[null,"Rate Rider for Disposition of Capacity Based Recovery Account (2017) - Applicable only for Class B Customers","$/kW",null," - effective until ","2018-12-31",null,"B"]
[null,null,null,null," - effective until "]
[null,null,null,null," - effective until "]
[null,null,null,null," - effective until "]
[null,null,null,null," - effective until "]
[null,null,null,null," - effective until "]
[]
[]
[null,"MICROFIT SERVICE CLASSIFICATION"]
[null,null,null,null," - effective until "]
[null,null,null,null," - effective until "]
[null,null,null,null," - effective until "]
[null,null,null,null," - effective until "]
[null,null,null,null," - effective until "]
[null,null,null,null," - effective until "]
[null,null,null,null," - effective until "]
[null,null,null,null," - effective until "]
[null,null,null,null," - effective until "]
[null,null,null,null," - effective until "]

{"sheet":"19. Final Tariff Schedule","index":21,"n_rows":464,"n_cols":4,"rows_kept":464,"cut":false,"hidden":true,"merged":[[1,1,8,3],[10,1,10,2],[11,1,11,2],[12,1,12,2],[13,1,13,2],[15,1,15,2],[16,1,16,2],[122,1,122,3],[99,1,99,3],[21,1,21,3],[27,1,27,3],[29,1,29,3],[31,1,31,3],[25,1,25,3],[103,1,103,3],[90,1,90,3],[95,1,95,3],[51,1,51,3],[53,1,53,3],[55,1,55,3],[56,1,56,3],[57,1,57,3],[17,1,17,3],[18,1,18,3],[19,1,19,3],[23,1,23,3],[50,1,50,3],[123,1,123,3],[125,1,125,3],[127,1,127,3],[129,1,129,3],[131,1,131,3],[59,1,59,3],[91,1,91,3],[93,1,93,3],[97,1,97,3],[101,1,101,3],[186,1,186,3],[187,1,187,3],[189,1,189,3],[191,1,191,3],[193,1,193,3],[133,1,133,3],[135,1,135,3],[153,1,153,3],[154,1,154,3],[156,1,156,3],[158,1,158,3],[160,1,160,3],[162,1,162,3],[164,1,164,3],[166,1,166,3],[220,1,220,3],[222,1,222,3],[224,1,224,3],[226,1,226,3],[228,1,228,3],[195,1,195,3],[197,1,197,3],[199,1,199,3],[217,1,217,3],[218,1,218,3],[261,1,261,3],[279,1,279,3],[282,1,282,3],[284,1,284,3],[286,1,286,3],[230,1,230,3],[248,1,248,3],[249,1,249,3],[251,1,251,3],[253,1,253,3],[255,1,255,3],[257,1,257,3],[259,1,259,3],[280,1,280,3],[298,1,298,3],[300,1,300,3],[302,1,302,3],[304,1,304,3],[306,1,306,3],[288,1,288,3],[290,1,290,3],[292,1,292,3],[295,1,295,3],[296,1,296,3],[330,1,330,3],[332,1,332,3],[334,1,334,3],[336,1,336,3],[352,1,352,3],[308,1,308,3],[323,1,323,3],[324,1,324,3],[326,1,326,3],[328,1,328,3],[368,1,368,3],[369,1,369,3],[371,1,371,3],[373,1,373,3],[375,1,375,3],[353,1,353,3],[355,1,355,3],[357,1,357,3],[359,1,359,3],[361,1,361,3],[363,1,363,3],[365,1,365,3],[442,1,442,3],[459,1,459,3],[397,1,397,3],[434,1,434,3],[436,1,436,3],[438,1,438,3],[440,1,440,3],[377,1,377,3],[379,1,379,3],[381,1,381,3],[393,1,393,3],[395,1,395,3],[399,1,399,3]]}
["Back to Index"]
[null,"INCENTIVE REGULATION MODEL FOR 2018 FILERS"]
[]
[]
[]
[]
[]
[]
[]
[]
[null,{"$f":"'Model Specs'!C4","v":"Alectra - Horizon Utilites"}]
[null,"TARIFF OF RATES AND CHARGES"]
[null,"Effective Date January 1, 2018"]
[null,"Implementation Date January 1, 2018"]
[]
[null,"This schedule supersedes and replaces all previously "]
[null,"approved schedules of Rates, Charges and Loss Factors"]
[null,"EB-2016-0080"]
[null,"RESIDENTIAL SERVICE CLASSIFICATION"]
[null,"This classification applies to an account where the electricity is supplied exclusively to single-family dwelling units for domestic or household purposes, including seasonal occupancy. This includes, but is not limited to, detached houses, one unit of a semi-detached, duplex, triplex or quadruplex house, with a residential zoning. Separately metered dwellings within a town house complex also qualify as residential customers. Further servicing details are available in the distributor’s Conditions of Service."]
[]
[null,"APPLICATION"]
[]
[null,"The application of these rates and charges shall be in accordance with the Licence of the Distributor and any Code or Order of the Ontario Energy Board, and amendments thereto as approved by the Ontario Energy Board, which may be applicable to the administration of this schedule."]
[]
[null,"No rates and charges for the distribution of electricity and charges to meet the costs of any work or service done or furnished for the purpose of the distribution of electricity shall be made except as permitted by this schedule, unless required by the Distributor’s Licence or a Code or Order of the Ontario Energy Ontario Energy Board, and amendments thereto as approved by the Ontario Energy Board, or as specified herein."]
[]
[null,"Unless specifically noted, this schedule does not contain any charges for the electricity commodity, be it under the Regulated Price Plan, a contract with a retailer or the wholesale market price, as applicable. In addition, the charges in the MONTHLY RATES AND CHARGES - Regulatory Component of this schedule do not apply to a customer that is an embedded wholesale market participant."]
[]
[null,"It should be noted that this schedule does not list any charges, assessments, or credits that are required by law to be invoiced by a distributor and that are not subject to Ontario Energy Board approval, such as the Debt Retirement Charge, the Global Adjustment and the HST."]
[]
[null,"MONTHLY RATES AND CHARGES - Delivery Component"]
[]
["R_F"]
[]
["R_V"]
["R_GA16"]
["R_LRVA16"]
["R_DVA16"]
["R_1576"]
["R_CBR16"]
["R_TN"]
["R_TC"]
[]
[null,"MONTHLY RATES AND CHARGES - Regulatory Component"]
[]
[null,"Wholesale Market Service Rate","$/kWh",3.5999999999999999E-3]
[null,"Rural or Remote Electricity Rate Protection Charge (RRRP)","$/kWh",1.2999999999999999E-3]
[null,"Ontario Electricity Support Program Charge (OESP)","$/kWh",1.1000000000000001E-3]
[null,"Standard Supply Service - Administrative Charge (if applicable)","$",0.25]
[null,"ONTARIO ELECTRICITY SUPPORT PROGRAM RECIPIENTS"]
[null,"In addition to the charges specified on page 1 of this tariff of rates and charges, the following credits are to be applied to eligible residential customers."]
[]
[null,"APPLICATION"]
[]
[null,"The application of the charges are in accordance with the Distribution System Code (Section 9) and subsection 79.2(4) of the Ontario Energy Board Act, 1998."]
[null,"The application of these charges shall be in accordance with the Licence of the Distributor and any Code or Order of the Ontario Energy Board, and amendments thereto as approved by the Ontario Energy Board, which may be applicable to the administration of this schedule."]
[null,"In this class:\n\n“Aboriginal person” includes a person who is a First Nations person, a Métis person or an Inuit person;\n“account-holder” means a consumer who has an account with a distributor that falls within a residential-rate classification as specified in a rate order made by the Ontario Energy Board under section 78 of the Act, and who lives at the service address to which the account relates for at least six months in a year;\n“electricity-intensive medical device” means an oxygen concentrator, a mechanical ventilator, or such other device as may be specified by the Ontario Energy Board;\n“household” means the account-holder and any other people living at the accountholder’s service address for at least six months in a year, including people other than the account-holder’s spouse, children or other relatives;\n“household income” means the combined annual after-tax income of all members of a household aged 16 or over;"]
[]
[null,"MONTHLY RATES AND CHARGES"]
[]
[]
[null,"Class A"]
[null,"(a) account-holders with a household income of $28,000 or less living in a household of one or two persons;\n(b) account-holders with a household income of between $28,001 and $39,000 living in a household of three persons;\n(c) account-holders with a household income of between $39,001 and $48,000 living in a household of five persons; and\n(d) account-holders with a household income of between $48,001 and $52,000 living in a household of seven or more persons;\nbut does not include account-holders in Class E.\nOESP Credit","$",-30]
[]
[null,"Class B"]
[null,"(a) account-holders with a household income of $28,000 or less living in a household of three persons;\n(b) account-holders with a household income of between $28,001 and $39,000 living in a household of four persons;\n(c) account-holders with a household income of between $39,001 and $48,000 living in a household of six persons;\nbut does not include account-holders in Class F.\nOESP Credit","$",-34]
[]
[null,"Class C"]
[null,"(a) account-holders with a household income of $28,000 or less living in a household of four persons;\n(b) account-holders with a household income of between $28,001 and $39,000 living in a household of five persons;\n(c) account-holders with a household income of between $39,001 and $48,000 living in a household of seven or more persons;\nbut does not include account-holders in Class G.\nOESP Credit","$",-38]
[]
[null,"Class D"]
[null,"(a) account-holders with a household income of $28,000 or less living in a household\nof five persons; and\n(b) account-holders with a household income of between $28,001 and $39,000 living\nin a household of six persons;\nbut does not include account-holders in Class H.\nOESP Credit","$",-42]
[]
[null,"Class E"]
[null,"Class E comprises account-holders with a household income and household size described under Class A who also meet any of the following conditions:\n(a) the dwelling to which the account relates is heated primarily by electricity;\n(b) the account-holder or any member of the account-holder’s household is an Aboriginal person; or\n(c) the account-holder or any member of the account-holder’s household regularly uses, for medical purposes, an electricity-intensive medical device at the dwelling to which the account relates.\nOESP Credit","$",-45]
[]
[null,"Class F"]
[null,"(a) account-holders with a household income of $28,000 or less living in a household of six or more persons;\n(b) account-holders with a household income of between $28,001 and $39,000 living in a household of seven or more persons; or\n(c) account-holders with a household income and household size described under Class B who also meet any of the following conditions:"]
[null,"i. the dwelling to which the account relates is heated primarily by electricity;\nii. the account-holder or any member of the account-holder’s household is an Aboriginal person; or\niii. the account-holder or any member of the account-holder’s household regularly uses, for medical purposes, an electricity-intensive medical device at the dwelling to which the account relates"]
[null,"OESP Credit","$",-50]
[]
[null,"Class G"]
[null,"Class G comprises account-holders with a household income and household size described under Class C who also meet any of the following conditions:\n(a) the dwelling to which the account relates is heated primarily by electricity;\n(b) the account-holder or any member of the account-holder’s household is an Aboriginal person; or\n(c) the account-holder or any member of the account-holder’s household regularly uses, for medical purposes, an electricity-intensive medical device at the dwelling to which the account relates.\nOESP Credit","$",-55]
[]
[null,"Class H"]
[null,"Class H comprises account-holders with a household income and household size described under Class D who also meet any of the following conditions:\n(a) the dwelling to which the account relates is heated primarily by electricity;\n(b) the account-holder or any member of the account-holder’s household is an Aboriginal person ; or\n(c) the account-holder or any member of the account-holder’s household regularly uses, for medical purposes, an electricity-intensive medical device at the dwelling to which the account relates.\nOESP Credit","$",-60]
[]
[null,"Class I"]
[null,"Class I comprises account-holders with a household income and household size described under paragraphs (a) or (b) of Class F who also meet any of the following conditions:\n(a) the dwelling to which the account relates is heated primarily by electricity;\n(b) the account-holder or any member of the account-holder’s household is an Aboriginal person; or\n(c) the account-holder or any member of the account-holder’s household regularly uses, for medical purposes, an electricity-intensive medical device at the dwelling to which the account relates.\nOESP Credit","$",-75]
[null,"GENERAL SERVICE LESS THAN 50 KW SERVICE CLASSIFICATION"]
[null,"This classification applies to a non residential account whose average monthly maximum demand is less than, or is forecast to be less than, 50 kW. Multi-unit residential establishments such as apartment buildings supplied through one service (bulk metered) shall normally be classified as general service. Where service is provided to combined residential and business, or residential and agricultural, whether seasonal or all-year premises, and the wiring does not provide for separate metering, the service shall normally be classed as general service. Further servicing details are available in the distributor’s Conditions of Service."]
[]
[null,"APPLICATION"]
[]
[null,"The application of these rates and charges shall be in accordance with the Licence of the Distributor and any Code or Order of the Ontario Energy Board, and amendments thereto as approved by the Ontario Energy Board, which may be applicable to the administration of this schedule."]
[]
[null,"No rates and charges for the distribution of electricity and charges to meet the costs of any work or service done or furnished for the purpose of the distribution of electricity shall be made except as permitted by this schedule, unless required by the Distributor’s Licence or a Code or Order of the Ontario Energy Board, and amendments thereto as approved by the Ontario Energy Board, or as specified herein."]
[]
[null,"Unless specifically noted, this schedule does not contain any charges for the electricity commodity, be it under the Regulated Price Plan, a contract with a retailer or the wholesale market price, as applicable. In addition, the charges in the MONTHLY RATES AND CHARGES - Regulatory Component of this schedule do not apply to a customer that is an embedded wholesale market participant."]
[]
[null,"It should be noted that this schedule does not list any charges, assessments, or credits that are required by law to be invoiced by a distributor and that are not subject to Ontario Energy Board approval, such as the Debt Retirement Charge, the Global Adjustment and the HST."]
[]
[null,"MONTHLY RATES AND CHARGES - Delivery Component"]
[]
["GSL_F"]
[]
["GSL_V"]
["GSL_GA16"]
["GSL_LRVA16"]
["GSL_DVA16"]
["GSL_1576"]
["GSL_CBR16"]
["GSL_TN"]
["GSL_TC"]
[]
[null,"MONTHLY RATES AND CHARGES - Regulatory Component"]
[]
[null,"Wholesale Market Service Rate","$/kWh",3.5999999999999999E-3]
[null,"Rural or Remote Electricity Rate Protection Charge (RRRP)","$/kWh",1.2999999999999999E-3]
[null,"Ontario Electricity Support Program Charge (OESP)","$/kWh",1.1000000000000001E-3]
[null,"Standard Supply Service - Administrative Charge (if applicable)","$",0.25]
[null,"GENERAL SERVICE 50 TO 699 KW SERVICE CLASSIFICATION"]
[null,"This classification applies to a non residential account whose average monthly maximum demand used for billing purposes is equal to or greater than, or is forecast to be equal to or greater than, 50 kW but less than 700 kW. Further servicing details are available in the distributor’s Conditions of Service."]
[]
[null,"APPLICATION"]
[]
[null,"The application of these rates and charges shall be in accordance with the Licence of the Distributor and any Code or Order of the Ontario Energy Board, and amendments thereto as approved by the Ontario Energy Board, which may be applicable to the administration of this schedule."]
[]
[null,"No rates and charges for the distribution of electricity and charges to meet the costs of any work or service done or furnished for the purpose of the distribution of electricity shall be made except as permitted by this schedule, unless required by the Distributor’s Licence or a Code or Order of the Ontario Energy Board, and amendments thereto as approved by the Ontario Energy Board, or as specified herein."]
[]
[null,"Unless specifically noted, this schedule does not contain any charges for the electricity commodity, be it under the Regulated Price Plan, a contract with a retailer or the wholesale market price, as applicable. In addition, the charges in the MONTHLY RATES AND CHARGES - Regulatory Component of this schedule do not apply to a customer that is an embedded wholesale market participant."]
[]
[null,"It should be noted that this schedule does not list any charges, assessments, or credits that are required by law to be invoiced by a distributor and that are not subject to Ontario Energy Board approval, such as the Debt Retirement Charge, the Global Adjustment and the HST."]
[]
[null,"MONTHLY RATES AND CHARGES - Delivery Component"]
[]
["GS50_699_F"]
["GS50_699_V"]
["GS50_699_GA16"]
["GS50_699_LRVA16"]
["GS50_699_DVA16"]
["GS50_699_1576"]
["GS50_699_CBR16"]
["GS50_699_TN"]
["GS50_699_TC"]
[]
[null,"MONTHLY RATES AND CHARGES - Regulatory Component"]
[]
[null,"Wholesale Market Service Rate","$/kWh",3.5999999999999999E-3]
[null,"Rural or Remote Electricity Rate Protection Charge (RRRP)","$/kWh",1.2999999999999999E-3]
[null,"Ontario Electricity Support Program Charge (OESP)","$/kWh",1.1000000000000001E-3]
[null,"Standard Supply Service - Administrative Charge (if applicable)","$",0.25]
[null,"GENERAL SERVICE 700 TO 4,999 KW SERVICE CLASSIFICATION"]
[null,"This classification applies to a non residential account whose average monthly maximum demand used for billing purposes is equal to or greater than, or is forecast to be equal to or greater than, 700 kW but less than 5,000 kW. Further servicing details are available in the distributor’s Conditions of Service."]
[]
[null,"APPLICATION"]
[]
[null,"The application of these rates and charges shall be in accordance with the Licence of the Distributor and any Code or Order of the Ontario Energy Board, and amendments thereto as approved by the Ontario Energy Board, which may be applicable to the administration of this schedule."]
[]
[null,"No rates and charges for the distribution of electricity and charges to meet the costs of any work or service done or furnished for the purpose of the distribution of electricity shall be made except as permitted by this schedule, unless required by the Distributor’s Licence or a Code or Order of the Ontario Energy Board, and amendments thereto as approved by the Ontario Energy Board, or as specified herein."]
[]
[null,"Unless specifically noted, this schedule does not contain any charges for the electricity commodity, be it under the Regulated Price Plan, a contract with a retailer or the wholesale market price, as applicable. In addition, the charges in the MONTHLY RATES AND CHARGES - Regulatory Component of this schedule do not apply to a customer that is an embedded wholesale market participant."]
[]
[null,"It should be noted that this schedule does not list any charges, assessments, or credits that are required by law to be invoiced by a distributor and that are not subject to Ontario Energy Board approval, such as the Debt Retirement Charge, the Global Adjustment and the HST."]
[]
[null,"MONTHLY RATES AND CHARGES - Delivery Component"]
[]
["GS700_F"]
["GS700_V"]
["GS700_GA16"]
["GS700_LRVA16"]
["GS700_DVA_nonWMP"]
["GS700_DVA16"]
["GS700_1576"]
["GS700_CBR16"]
["GS700_CBR16_A"]
["GS700_TN"]
["GS700_TC"]
[]
[null,"MONTHLY RATES AND CHARGES - Regulatory Component"]
[]
[null,"Wholesale Market Service Rate","$/kWh",3.5999999999999999E-3]
[null,"Rural or Remote Electricity Rate Protection Charge (RRRP)","$/kWh",1.2999999999999999E-3]
[null,"Ontario Electricity Support Program Charge (OESP)","$/kWh",1.1000000000000001E-3]
[null,"Standard Supply Service - Administrative Charge (if applicable)","$",0.25]
[null,"LARGE USE SERVICE CLASSIFICATION"]
[null,"This classification applies to an account whose average monthly maximum demand over 12 consecutive months used for billing purposes is equal to or greater than 5,000 kW, or is forecast to be equal to or greater than 5,000 kW. Further servicing details are available in the distributor’s Conditions of Service."]
[]
[null,"APPLICATION"]
[]
[null,"The application of these rates and charges shall be in accordance with the Licence of the Distributor and any Code or Order of the Ontario Energy Board, and amendments thereto as approved by the Ontario Energy Board, which may be applicable to the administration of this schedule."]
[]
[null,"No rates and charges for the distribution of electricity and charges to meet the costs of any work or service done or furnished for the purpose of the distribution of electricity shall be made except as permitted by this schedule, unless required by the Distributor’s Licence or a Code or Order of the Ontario Energy Board, and amendments thereto as approved by the Ontario Energy Board, or as specified herein."]
[]
[null,"Unless specifically noted, this schedule does not contain any charges for the electricity commodity, be it under the Regulated Price Plan, a contract with a retailer or the wholesale market price, as applicable. In addition, the charges in the MONTHLY RATES AND CHARGES - Regulatory Component of this schedule do not apply to a customer that is an embedded wholesale market participant."]
[]
[null,"It should be noted that this schedule does not list any charges, assessments, or credits that are required by law to be invoiced by a distributor and that are not subject to Ontario Energy Board approval, such as the Debt Retirement Charge, the Global Adjustment and the HST."]
[]
[null,"MONTHLY RATES AND CHARGES - Delivery Component"]
[]
["LU_F"]
["LU_V"]
["LU_GA16"]
["LU_LRVA16"]
["LU_DVA16"]
["LU_1576"]
["LU_CBR16"]
["LU_TN"]
["LU_TC"]
[]
[null,"MONTHLY RATES AND CHARGES - Regulatory Component"]
[]
[null,"Wholesale Market Service Rate","$/kWh",3.5999999999999999E-3]
[null,"Rural or Remote Electricity Rate Protection Charge (RRRP)","$/kWh",1.2999999999999999E-3]
[null,"Ontario Electricity Support Program Charge (OESP)","$/kWh",1.1000000000000001E-3]
[null,"Standard Supply Service - Administrative Charge (if applicable)","$",0.25]
[null,"UNMETERED SCATTERED LOAD SERVICE CLASSIFICATION"]
[null,"This classification applies to an account whose average monthly maximum demand is less than, or is forecast to be less than, 50 kW and the consumption is unmetered. Such connections include cable TV power packs, bus  shelters, telephone booths, traffic lights, railway crossings, etc. The level of the consumption will be agreed to by the distributor and the customer, based on detailed manufacturer information/documentation with regard to electrical consumption of the unmetered load or periodic monitoring of actual consumption. Further servicing details are available in the distributor’s Conditions of Service."]
[]
[null,"APPLICATION"]
[]
[null,"The application of these rates and charges shall be in accordance with the Licence of the Distributor and any Code or Order of the Ontario Energy Board, and amendments thereto as approved by the Ontario Energy Board, which may be applicable to the administration of this schedule."]
[]
[null,"No rates and charges for the distribution of electricity and charges to meet the costs of any work or service done or furnished for the purpose of the distribution of electricity shall be made except as permitted by this schedule, unless required by the Distributor’s Licence or a Code or Order of the Ontario Energy Board, and amendments thereto as approved by the Ontario Energy Board, or as specified herein."]
[]
[null,"Unless specifically noted, this schedule does not contain any charges for the electricity commodity, be it under the Regulated Price Plan, a contract with a retailer or the wholesale market price, as applicable. In addition, the charges in the MONTHLY RATES AND CHARGES - Regulatory Component of this schedule do not apply to a customer that is an embedded wholesale market participant."]
[]
[null,"It should be noted that this schedule does not list any charges, assessments, or credits that are required by law to be invoiced by a distributor and that are not subject to Ontario Energy Board approval, such as the Debt Retirement Charge, the Global Adjustment and the HST."]
[]
[null,"MONTHLY RATES AND CHARGES - Delivery Component"]
[]
["USL_F"]
["USL_V"]
["USL_GA16"]
["USL_LRVA16"]
["USL_DVA16"]
["USL_1576"]
["USL_CBR16"]
["USL_TN"]
["USL_TC"]
[]
[null,"MONTHLY RATES AND CHARGES - Regulatory Component"]
[]
[null,"Wholesale Market Service Rate","$/kWh",3.5999999999999999E-3]
[null,"Rural or Remote Electricity Rate Protection Charge (RRRP)","$/kWh",1.2999999999999999E-3]
[null,"Ontario Electricity Support Program Charge (OESP)","$/kWh",1.1000000000000001E-3]
[null,"Standard Supply Service - Administrative Charge (if applicable)","$",0.25]
[null,"STREET LIGHTING SERVICE CLASSIFICATION"]
[null,"All service supplied to roadway lighting equipment owned by or operated by the City of Brampton, Regional Municipality of Peel, or the Ministry of Transportation, controlled by photo cells. The consumption for these customers will be based on the calculated connected load times the required lighting times established in the approved OEB street lighting load shape template. Further servicing details are available in the distributor’s Conditions of Service."]
[]
[null,"APPLICATION"]
[]
[null,"The application of these rates and charges shall be in accordance with the Licence of the Distributor and any Code or Order of the Ontario Energy Board, and amendments thereto as approved by the Ontario Energy Board, which may be applicable to the administration of this schedule."]
[]
[null,"No rates and charges for the distribution of electricity and charges to meet the costs of any work or service done or furnished for the purpose of the distribution of electricity shall be made except as permitted by this schedule, unless required by the Distributor’s Licence or a Code or Order of the Ontario Energy Board, and amendments thereto as approved by the Ontario Energy Board, or as specified herein."]
[]
[null,"Unless specifically noted, this schedule does not contain any charges for the electricity commodity, be it under the Regulated Price Plan, a contract with a retailer or the wholesale market price, as applicable. In addition, the charges in the MONTHLY RATES AND CHARGES - Regulatory Component of this schedule do not apply to a customer that is an embedded wholesale market participant."]
[]
[null,"It should be noted that this schedule does not list any charges, assessments, or credits that are required by law to be invoiced by a distributor and that are not subject to Ontario Energy Board approval, such as the Debt Retirement Charge, the Global Adjustment and the HST."]
[]
[null,"MONTHLY RATES AND CHARGES - Delivery Component"]
[]
["SL_F"]
["SL_V"]
["SL_GA16"]
["SL_LRVA16"]
["SL_DVA16"]
["SL_1576"]
["SL_CBR16"]
["SL_TN"]
["SL_TC"]
[]
[null,"MONTHLY RATES AND CHARGES - Regulatory Component"]
[]
[null,"Wholesale Market Service Rate","$/kWh",3.5999999999999999E-3]
[null,"Rural or Remote Electricity Rate Protection Charge (RRRP)","$/kWh",1.2999999999999999E-3]
[null,"Ontario Electricity Support Program Charge (OESP)","$/kWh",1.1000000000000001E-3]
[null,"Standard Supply Service - Administrative Charge (if applicable)","$",0.25]
[null,"STANDBY POWER SERVICE CLASSIFICATION"]
[null,"This classification refers to an account that has Load Displacement Generation and requires the distributor to provide back-up service. Further servicing details are available in the distributor’s Conditions of Service."]
[]
[null,"APPLICATION"]
[]
[null,"The application of these rates and charges shall be in accordance with the Licence of the Distributor and any Code or Order of the Ontario Energy Board, and amendments thereto as approved by the Ontario Energy Board, which may be applicable to the administration of this schedule."]
[]
[null,"No rates and charges for the distribution of electricity and charges to meet the costs of any work or service done or furnished for the purpose of the distribution of electricity shall be made except as permitted by this schedule, unless required by the Distributor’s Licence or a Code or Order of the Ontario Energy Board, and amendments thereto as approved by the Ontario Energy Board, or as specified herein."]
[]
[null,"Unless specifically noted, this schedule does not contain any charges for the electricity commodity, be it under the Regulated Price Plan, a contract with a retailer or the wholesale market price, as applicable. In addition, the charges in the MONTHLY RATES AND CHARGES - Regulatory Component of this schedule do not apply to a customer that is an embedded wholesale market participant."]
[]
[null,"It should be noted that this schedule does not list any charges, assessments, or credits that are required by law to be invoiced by a distributor and that are not subject to Ontario Energy Board approval, such as the Debt Retirement Charge, the Global Adjustment and the HST."]
[]
[null,"MONTHLY RATES AND CHARGES - Delivery Component - Approved on an Interim Basis"]
[]
["SB_V","Distribution Volumetric Rate","$/kW"]
[null,"EMBEDDED DISTRIBUTOR SERVICE CLASSIFICATION"]
[null,"This classification applies to an electricity distributor licensed by the Ontario Energy Board, that is provided electricity by means of this distributor's facilities. Further servicing details are available in the distributor’s Conditions of Service."]
[]
[null,"APPLICATION"]
[]
[null,"The application of these rates and charges shall be in accordance with the Licence of the Distributor and any Code or Order of the Ontario Energy Board, and amendments thereto as approved by the Ontario Energy Board, which may be applicable to the administration of this schedule."]
[]
[null,"No rates and charges for the distribution of electricity and charges to meet the costs of any work or service done or furnished for the purpose of the distribution of electricity shall be made except as permitted by this schedule, unless required by the Distributor’s Licence or a Code or Order of the Ontario Energy Board, and amendments thereto as approved by the Ontario Energy Board, or as specified herein."]
[]
[null,"Unless specifically noted, this schedule does not contain any charges for the electricity commodity, be it under the Regulated Price Plan, a contract with a retailer or the wholesale market price, as applicable. In addition, the charges in the MONTHLY RATES AND CHARGES - Regulatory Component of this schedule do not apply to a customer that is an embedded wholesale market participant."]
[]
[null,"It should be noted that this schedule does not list any charges, assessments, or credits that are required by law to be invoiced by a distributor and that are not subject to Ontario Energy Board approval, such as the Debt Retirement Charge, the Global Adjustment and the HST."]
[]
[null,"MONTHLY RATES AND CHARGES - Delivery Component"]
[]
["EMD_F"]
["EMD_GA16"]
["EMD_DVA16"]
["EMD_CBR16"]
["EMD_TN"]
["EMD_TC"]
[]
[null,"MONTHLY RATES AND CHARGES - Regulatory Component"]
[]
[null,"Wholesale Market Service Rate","$/kWh",3.5999999999999999E-3]
[null,"Rural or Remote Electricity Rate Protection Charge (RRRP)","$/kWh",1.2999999999999999E-3]
[null,"Ontario Electricity Support Program Charge (OESP)","$/kWh",1.1000000000000001E-3]
[null,"Standard Supply Service - Administrative Charge (if applicable)","$",0.25]
[null,"DISTRIBUTED GENERATION [DGEN] SERVICE CLASSIFICATION"]
[null,"This classification applies to a distributed generator that is not a microFIT or an Energy from Waste Generator and connected to the distributor's distribution system. Further servicing details are available in the distributor’s Conditions of Service."]
[]
[null,"APPLICATION"]
[]
[null,"The application of these rates and charges shall be in accordance with the Licence of the Distributor and any Code or Order of the Ontario Energy Board, and amendments thereto as approved by the Ontario Energy Board, which may be applicable to the administration of this schedule."]
[]
[null,"No rates and charges for the distribution of electricity and charges to meet the costs of any work or service done or furnished for the purpose of the distribution of electricity shall be made except as permitted by this schedule, unless required by the Distributor’s Licence or a Code or Order of the Ontario Energy Board, and amendments thereto as approved by the Ontario Energy Board, or as specified herein."]
[]
[null,"Unless specifically noted, this schedule does not contain any charges for the electricity commodity, be it under the Regulated Price Plan, a contract with a retailer or the wholesale market price, as applicable. In addition, the charges in the MONTHLY RATES AND CHARGES - Regulatory Component of this schedule do not apply to a customer that is an embedded wholesale market participant."]
[]
[null,"It should be noted that this schedule does not list any charges, assessments, or credits that are required by law to be invoiced by a distributor and that are not subject to Ontario Energy Board approval, such as the Debt Retirement Charge, the Global Adjustment and the HST."]
[]
[null,"MONTHLY RATES AND CHARGES - Delivery Component"]
[]
["DG_F"]
["DG_GA16"]
["DG_DVA16"]
["DG_1576"]
["DG_CBR16"]
["DG_TN"]
["DG_TC"]
[]
[null,"MONTHLY RATES AND CHARGES - Regulatory Component"]
[]
[null,"Wholesale Market Service Rate","$/kWh",3.5999999999999999E-3]
[null,"Rural or Remote Electricity Rate Protection Charge (RRRP)","$/kWh",1.2999999999999999E-3]
[null,"Ontario Electricity Support Program Charge (OESP)","$/kWh",1.1000000000000001E-3]
[null,"Standard Supply Service - Administrative Charge (if applicable)","$",0.25]
[null,"ENERGY FROM WASTE SERVICE CLASSIFICATION"]
[null,"This classification applies to an electricity generation facility that is not covered by a microFIT or Distributed Generation classification which produces energy from combustion of consumer waste with the capability to generate over 4,000 KW. Further servicing details are available in the distributor’s Conditions of Service."]
[]
[null,"APPLICATION"]
[]
[null,"The application of these rates and charges shall be in accordance with the Licence of the Distributor and any Code or Order of the Ontario Energy Board, and amendments thereto as approved by the Ontario Energy Board, which may be applicable to the administration of this schedule."]
[]
[null,"No rates and charges for the distribution of electricity and charges to meet the costs of any work or service done or furnished for the purpose of the distribution of electricity shall be made except as permitted by this schedule, unless required by the Distributor’s Licence or a Code or Order of the Ontario Energy Board, and amendments thereto as approved by the Ontario Energy Board, or as specified herein."]
[]
[null,"Unless specifically noted, this schedule does not contain any charges for the electricity commodity, be it under the Regulated Price Plan, a contract with a retailer or the wholesale market price, as applicable. In addition, the charges in the MONTHLY RATES AND CHARGES - Regulatory Component of this schedule do not apply to a customer that is an embedded wholesale market participant."]
[]
[null,"It should be noted that this schedule does not list any charges, assessments, or credits that are required by law to be invoiced by a distributor and that are not subject to Ontario Energy Board approval, such as the Debt Retirement Charge, the Global Adjustment and the HST."]
[]
[null,"MONTHLY RATES AND CHARGES - Delivery Component"]
[]
["WST_F","Service Charge","$"]
[null,"microFIT SERVICE CLASSIFICATION"]
[null,"This classification applies to an electricity generation facility contracted under the Independent Electricity System Operator's microFIT program and connected to the distributor's distribution system. Further servicing details are available in the distributor’s Conditions of Service."]
[]
[null,"APPLICATION"]
[]
[null,"The application of these rates and charges shall be in accordance with the Licence of the Distributor and any Code or Order of the Ontario Energy Board, and amendments thereto as approved by the Ontario Energy Board, which may be applicable to the administration of this schedule."]
[]
[null,"No rates and charges for the distribution of electricity and charges to meet the costs of any work or service done or furnished for the purpose of the distribution of electricity shall be made except as permitted by this schedule, unless required by the Distributor’s Licence or a Code or Order of the Ontario Energy Board, and amendments thereto as approved by the Ontario Energy Board, or as specified herein."]
[]
[null,"Unless specifically noted, this schedule does not contain any charges for the electricity commodity, be it under the Regulated Price Plan, a contract with a retailer or the wholesale market price, as applicable. In addition, the charges in the MONTHLY RATES AND CHARGES - Regulatory Component of this schedule do not apply to a customer that is an embedded wholesale market participant."]
[]
[null,"It should be noted that this schedule does not list any charges, assessments, or credits that are required by law to be invoiced by a distributor and that are not subject to Ontario Energy Board approval, such as the Debt Retirement Charge, the Global Adjustment and the HST."]
[]
[null,"MONTHLY RATES AND CHARGES - Delivery Component"]
[]
[null,"Service Charge","$",5.4]
[]
[null,"ALLOWANCES"]
[null,"Transformer Allowance for Ownership - per kW of billing demand/month"]
[null,"   General Service less than 50 kW Classification","$/kWh",-3.2000000000000002E-3]
[null,"   General Service 50 to 699 kW Classification","$/kW",-0.68400000000000005]
[null,"   General Service 700 to 4,999 kW Classification","$/kW",-0.85150000000000003]
[null,"Primary Metering Allowance for transformer losses - applied to measured demand and energy","%",-1]
[null,"SPECIFIC SERVICE CHARGES"]
[]
[null,"APPLICATION"]
[]
[null,"The application of these rates and charges shall be in accordance with the Licence of the Distributor and any Code or Order of the Ontario Energy Board, and amendments thereto as approved by the Ontario Energy Board, which may be applicable to the administration of this schedule."]
[]
[null,"No charges to meet the costs of any work or service done or furnished for the purpose of the distribution of electricity shall be made except as permitted by this schedule, unless required by the Distributor’s Licence or a Code or Order of the Ontario Energy Board, and amendments thereto as approved by the Ontario Energy Board, or as specified herein."]
[]
[null,"It should be noted that this schedule does not list any charges, assessments, or credits that are required by law to be invoiced by a distributor and that are not subject to Ontario Energy Board approval, such as the Debt Retirement Charge, the Global Adjustment and the HST."]
[]
[null,"Customer Administration"]
[null,"Arrears certificate","$",15]
[null,"Pulling post dated cheques","$",15]
[null,"Duplicate invoices for previous billing","$",15]
[null,"Request for other billing information","$",15]
[null,"Easement letter","$",15]
[null,"Income tax letter","$",15]
[null,"Account history","$",15]
[null,"Credit reference/credit check (plus credit agency costs)","$",15]
[null,"Returned cheque (plus bank charges)","$",15]
[null,"Legal letter charge","$",15]
[null,"Account set up charge/change of occupancy charge (plus credit agency costs if applicable)","$",30]
[null,"Special meter reads","$",30]
[null,"Special billing service (aggregation)","$",125]
[null,"Special billing service (sub-metering charge per meter)","$",25]
[]
[null,"Non-Payment of Account"]
[null,"Late payment - per month","%",1.5]
[null,"Late payment - per annum","%",19.559999999999999]
[null,"Collection of account charge - no disconnection","$",30]
[null,"Disconnect/reconnect at meter - during regular hours","$",65]
[null,"Disconnect/reconnect at meter - after regular hours","$",185]
[null,"Disconnect/reconnect at pole - during regular hours","$",185]
[null,"Disconnect/reconnect at pole - after regular hours","$",415]
[null,"Disconnect/reconnection for >300 volts - during regular hours","$",60]
[null,"Disconnect/reconnection for >300 volts - after regular hours","$",155]
[]
[null,"Other"]
[null,"Owner requested disconnection/reconnection - during regular hours","$",120]
[null,"Owner requested disconnection/reconnection - after regular hours","$",155]
[null,"Specific charge for access to the power poles - $/pole/year","$",22.35]
[null,"RETAIL SERVICE CHARGES (if applicable)"]
[]
[null,"The application of these rates and charges shall be in accordance with the Licence of the Distributor and any Code or Order of the Ontario Energy Board, and amendments thereto as approved by the Ontario Energy Board, which may be applicable to the administration of this schedule."]
[]
[null,"No rates and charges for the distribution of electricity and charges to meet the costs of any work or service done or furnished for the purpose of the distribution of electricity shall be made except as permitted by this schedule, unless required by the Distributor’s Licence or a Code or Order of the Ontario Energy Board, and amendments thereto as approved by the Ontario Energy Board, or as specified herein."]
[]
[null,"Unless specifically noted, this schedule does not contain any charges for the electricity commodity, be it under the Regulated Price Plan, a contract with a retailer or the wholesale market price, as applicable."]
[]
[null,"It should be noted that this schedule does not list any charges, assessments, or credits that are required by law to be invoiced by a distributor and that are not subject to Ontario Energy Board approval, such as the Debt Retirement Charge, the Global Adjustment and the HST."]
[]
[null,"Retail Service Charges refer to services provided by a distributor to retailers or customers related to the supply of competitive electricity."]
[null,"One-time charge, per retailer, to establish the service agreement between the distributor and the retailer","$",100]
[null,"Monthly fixed charge, per retailer","$",20]
[null,"Monthly variable charge, per customer, per retailer","$/cust.",0.5]
[null,"Distributor-consolidated billing monthly charge, per customer, per retailer","$/cust.",0.3]
[null,"Retailer-consolidated billing monthly credit, per customer, per retailer","$/cust.",-0.3]
[null,"Service Transaction Requests (STR)"]
[null,"Request fee, per request, applied to the requesting party","$",0.25]
[null,"Processing fee, per request, applied to the requesting party","$",0.5]
[null,"Request for customer information as outlined in Section 10.6.3 and Chapter 11 of the Retail"]
[null,"Settlement Code directly to retailers and customers, if not delivered electronically through the"]
[null,"Electronic Business Transaction (EBT) system, applied to the requesting party"]
[null,"Up to twice a year","$","no charge"]
[null,"More than twice a year, per request (plus incremental delivery costs)","$",2]
[]
[null,"LOSS FACTORS"]
[]
[null,"If the distributor is not capable of prorating changed loss factors jointly with distribution rates, the revised loss factors will be implemented upon the first subsequent billing for each billing cycle."]
[null,"Total Loss Factor - Secondary Metered Customer < 5,000 kW",null,1.0341]
[null,"Total Loss Factor - Secondary Metered Customer > 5,000 kW",null,1.0145]
[null,"Total Loss Factor - Primary Metered Customer < 5,000 kW",null,1.0239]
[null,"Total Loss Factor - Primary Metered Customer > 5,000 kW",null,1.0044999999999999]

{"sheet":"CBR 1580 Sub-Account","index":22,"n_rows":53,"n_cols":19,"rows_kept":53,"cut":false,"hidden":true,"merged":[[16,7,16,8],[16,10,16,11],[16,12,16,13],[47,1,47,2],[47,3,47,6],[1,1,8,5],[10,1,10,6],[43,1,44,5],[41,1,41,4],[16,5,16,6]]}
["Back to Index"]
[null,"INCENTIVE REGULATION MODEL FOR 2018 FILERS"]
[]
[]
[]
[]
[]
[]
[]
[]
[null,"Input kW in columns G and I, if applicable"]
[null,"The purpose of this tab is to calculate the GA rate riders for all current Class B customers of the distributor."]
[]
[null,"Account 1580"]
[null,"Variance WMS – Sub-account CBR Class A",{"$f":"'3. Continuity Schedule'!CD24","v":0}]
[null,"Variance WMS – Sub-account CBR Class B",{"$f":"'3. Continuity Schedule'!CD25","v":0}]
[null,"Rate Class","Unit","Total Metered kWh","Total Metered kW","Total  Metered Class A \nConsumption in  2016  (partial \nand/or full year Class A customers)*",null,"Total Metered Consumption \nfor New Class A customer(s)\n in the period prior to becoming\n Class A (i.e. Jan 1 - Jun 30, 2016) ",null,"Total CBDR for the new Class A\n customers for the period \nthey were  Class B \n(i.e. Jan 1-Jun 30, 2016)","Total Metered \nWMP consumption",null,"Metered Consumption \nfor Current Class B Customers\n (Total consumption LESS WMP, \nClass A and new Class A's \nformer Class B consumption)",null,"CBR Balance Allocation","CBR Rate Rider"]
[null,null,null,"kWh","kW","kWh","kW","kWh","kW","$","kWh","kW","kWh","kW",{"$f":"C16-J32","v":{"$error":"#DIV/0!"}}]
[null,{"$f":"'4. Billing Det. for Def-Var'!B17","v":"RESIDENTIAL SERVICE CLASSIFICATION"},{"$f":"'4. Billing Det. for Def-Var'!C17","v":"kWh"},{"$f":"'4. Billing Det. for Def-Var'!D17","v":0},{"$f":"'4. Billing Det. for Def-Var'!E17","v":0},{"$f":"'6. GA Calculation'!E17","v":0},null,{"$f":"'6. GA Calculation'!G17","v":0},null,{"$f":"H19/(D$32-F$32-K$21)*$C$16","v":{"$error":"#DIV/0!"}},{"$f":"'4. Billing Det. for Def-Var'!H17","v":0},{"$f":"'4. Billing Det. for Def-Var'!I17","v":0},{"$f":"D19-F19-H19-K19","v":0},{"$f":"E19-G19-I19-L19","v":0},{"$f":"$O$18*(M19/M$32)","v":{"$error":"#DIV/0!"}},{"$f":"IFERROR(IF(N19=0,O19/M19,O19/N19),\"\")","v":""},null,{"$f":"O19-Q19","v":{"$error":"#DIV/0!"}},"does not result in a rdier (move to Account 1595 for dispostion?)"]
[null,{"$f":"'4. Billing Det. for Def-Var'!B18","v":"GENERAL SERVICE LESS THAN 50 kW SERVICE CLASSIFICATION"},{"$f":"'4. Billing Det. for Def-Var'!C18","v":"kWh"},{"$f":"'4. Billing Det. for Def-Var'!D18","v":0},{"$f":"'4. Billing Det. for Def-Var'!E18","v":0},{"$f":"'6. GA Calculation'!E18","v":0},null,{"$f":"'6. GA Calculation'!G18","v":0},null,{"$f":"H20/(D$32-F$32-K$21)*$C$16","v":{"$error":"#DIV/0!"}},{"$f":"'4. Billing Det. for Def-Var'!H18","v":0},{"$f":"'4. Billing Det. for Def-Var'!I18","v":0},{"$f":"D20-F20-H20-K20","v":0},{"$f":"E20-G20-I20-L20","v":0},{"$f":"$O$18*(M20/M$32)","v":{"$error":"#DIV/0!"}},{"$f":"IFERROR(IF(N20=0,O20/M20,O20/N20),\"\")","v":""},null,{"$f":"O20-Q20","v":{"$error":"#DIV/0!"}},"does not result in a rdier (move to Account 1595 for dispostion?)"]
[null,{"$f":"'4. Billing Det. for Def-Var'!B19","v":"GENERAL SERVICE 50 to 4,999 kW SERVICE CLASSIFICATION"},{"$f":"'4. Billing Det. for Def-Var'!C19","v":"kW"},{"$f":"'4. Billing Det. for Def-Var'!D19","v":0},{"$f":"'4. Billing Det. for Def-Var'!E19","v":0},{"$f":"'6. GA Calculation'!E19","v":0},null,{"$f":"'6. GA Calculation'!G19","v":0},null,{"$f":"H21/(D$32-F$32-K$21)*$C$16","v":{"$error":"#DIV/0!"}},{"$f":"'4. Billing Det. for Def-Var'!H19","v":0},{"$f":"'4. Billing Det. for Def-Var'!I19","v":0},0,0,{"$error":"#DIV/0!"},{"$f":"IFERROR(IF(N21=0,O21/M21,O21/N21),\"\")","v":""},{"$f":"P21*N21","v":{"$error":"#VALUE!"}},{"$error":"#DIV/0!"}]
[null,{"$f":"'4. Billing Det. for Def-Var'!B20","v":"LARGE USE SERVICE CLASSIFICATION"},{"$f":"'4. Billing Det. for Def-Var'!C20","v":"kW"},{"$f":"'4. Billing Det. for Def-Var'!D20","v":0},{"$f":"'4. Billing Det. for Def-Var'!E20","v":0},{"$f":"'6. GA Calculation'!E20","v":0},null,{"$f":"'6. GA Calculation'!G20","v":0},null,{"$f":"H22/(D$32-F$32-K$21)*$C$16","v":{"$error":"#DIV/0!"}},{"$f":"'4. Billing Det. for Def-Var'!H20","v":0},{"$f":"'4. Billing Det. for Def-Var'!I20","v":0},0,0,{"$error":"#DIV/0!"},"",{"$f":"P22*N22","v":{"$error":"#VALUE!"}},{"$error":"#DIV/0!"}]
[null,{"$f":"'4. Billing Det. for Def-Var'!B21","v":"UNMETERED SCATTERED LOAD SERVICE CLASSIFICATION"},{"$f":"'4. Billing Det. for Def-Var'!C21","v":"kW"},{"$f":"'4. Billing Det. for Def-Var'!D21","v":0},{"$f":"'4. Billing Det. for Def-Var'!E21","v":0},{"$f":"'6. GA Calculation'!E21","v":0},null,{"$f":"'6. GA Calculation'!G21","v":0},null,{"$error":"#DIV/0!"},{"$f":"'4. Billing Det. for Def-Var'!H21","v":0},{"$f":"'4. Billing Det. for Def-Var'!I21","v":0},0,0,{"$error":"#DIV/0!"},"",{"$error":"#VALUE!"},{"$error":"#DIV/0!"}]
[null,{"$f":"'4. Billing Det. for Def-Var'!B22","v":"SENTINEL LIGHTING SERVICE CLASSIFICATION"},{"$f":"'4. Billing Det. for Def-Var'!C22","v":"kW"},{"$f":"'4. Billing Det. for Def-Var'!D22","v":0},{"$f":"'4. Billing Det. for Def-Var'!E22","v":0},{"$f":"'6. GA Calculation'!E22","v":0},null,{"$f":"'6. GA Calculation'!G22","v":0},null,{"$error":"#DIV/0!"},{"$f":"'4. Billing Det. for Def-Var'!H22","v":0},{"$f":"'4. Billing Det. for Def-Var'!I22","v":0},0,0,{"$error":"#DIV/0!"},"",null,{"$error":"#DIV/0!"}]
[null,{"$f":"'4. Billing Det. for Def-Var'!B23","v":"STREET LIGHTING SERVICE CLASSIFICATION"},{"$f":"'4. Billing Det. for Def-Var'!C23","v":"kWh"},{"$f":"'4. Billing Det. for Def-Var'!D23","v":0},{"$f":"'4. Billing Det. for Def-Var'!E23","v":0},{"$f":"'6. GA Calculation'!E23","v":0},null,{"$f":"'6. GA Calculation'!G23","v":0},null,{"$error":"#DIV/0!"},{"$f":"'4. Billing Det. for Def-Var'!H23","v":0},{"$f":"'4. Billing Det. for Def-Var'!I23","v":0},0,0,{"$error":"#DIV/0!"},{"$f":"IFERROR(IF(N25=0,O25/M25,O25/N25),\"\")","v":""},null,{"$error":"#DIV/0!"},{"$f":"S19","v":"does not result in a rdier (move to Account 1595 for dispostion?)"}]
[null,{"$f":"'4. Billing Det. for Def-Var'!B24","v":0},{"$f":"'4. Billing Det. for Def-Var'!C24","v":0},{"$f":"'4. Billing Det. for Def-Var'!D24","v":0},{"$f":"'4. Billing Det. for Def-Var'!E24","v":0},{"$f":"'6. GA Calculation'!E24","v":0},null,{"$f":"'6. GA Calculation'!G24","v":0},null,{"$error":"#DIV/0!"},{"$f":"'4. Billing Det. for Def-Var'!H24","v":0},{"$f":"'4. Billing Det. for Def-Var'!I24","v":0},0,0,{"$error":"#DIV/0!"},"",{"$error":"#VALUE!"},{"$error":"#DIV/0!"}]
[null,{"$f":"'4. Billing Det. for Def-Var'!B25","v":0},{"$f":"'4. Billing Det. for Def-Var'!C25","v":0},{"$f":"'4. Billing Det. for Def-Var'!D25","v":0},{"$f":"'4. Billing Det. for Def-Var'!E25","v":0},{"$f":"'6. GA Calculation'!E25","v":0},null,{"$f":"'6. GA Calculation'!G25","v":0},null,{"$error":"#DIV/0!"},{"$f":"'4. Billing Det. for Def-Var'!H25","v":0},{"$f":"'4. Billing Det. for Def-Var'!I25","v":0},0,0,{"$error":"#DIV/0!"},"",null,{"$error":"#DIV/0!"},{"$f":"S19","v":"does not result in a rdier (move to Account 1595 for dispostion?)"}]
[null,{"$f":"'4. Billing Det. for Def-Var'!B26","v":0},{"$f":"'4. Billing Det. for Def-Var'!C26","v":0},{"$f":"'4. Billing Det. for Def-Var'!D26","v":0},{"$f":"'4. Billing Det. for Def-Var'!E26","v":0},{"$f":"'6. GA Calculation'!E26","v":0},null,{"$f":"'6. GA Calculation'!G26","v":0},null,{"$error":"#DIV/0!"},{"$f":"'4. Billing Det. for Def-Var'!H26","v":0},{"$f":"'4. Billing Det. for Def-Var'!I26","v":0},0,0,{"$error":"#DIV/0!"},"",null,{"$error":"#DIV/0!"},{"$f":"S19","v":"does not result in a rdier (move to Account 1595 for dispostion?)"}]
[null,{"$f":"'4. Billing Det. for Def-Var'!B27","v":0},{"$f":"'4. Billing Det. for Def-Var'!C27","v":0},{"$f":"'4. Billing Det. for Def-Var'!D27","v":0},{"$f":"'4. Billing Det. for Def-Var'!E27","v":0},{"$f":"'6. GA Calculation'!E27","v":0},null,{"$f":"'6. GA Calculation'!G27","v":0},null,{"$error":"#DIV/0!"},{"$f":"'4. Billing Det. for Def-Var'!H27","v":0},{"$f":"'4. Billing Det. for Def-Var'!I27","v":0},0,0,{"$error":"#DIV/0!"},""]
[null,null,null,null,null,null,null,null,null,null,null,null,null,null,null,""]
[]
[null,"Total",null,{"$f":"SUM(D19:D31)","v":0},{"$f":"SUM(E19:E31)","v":0},0,0,0,0,{"$f":"SUM(J20:J26)","v":{"$error":"#DIV/0!"}},{"$f":"SUM(K19:K31)","v":0},{"$f":"SUM(L19:L31)","v":0},0,0,{"$f":"SUM(O19:O31)","v":{"$error":"#DIV/0!"}},null,{"$f":"SUM(Q19:Q31)","v":{"$error":"#VALUE!"}},null,"Total to be recovered"]
[null,null,null,null,null,null,null,null,null,null,null,null,null,"Total Account 1580 Variance WMS – Sub-account CBR Class B balance",{"$f":"O32+J32","v":{"$error":"#DIV/0!"}},null,null,{"$f":"SUM(R19:R30)","v":{"$error":"#DIV/0!"}},"Variance (Account 1595?)"]
[null,null,null,null,null,null,null,null,null,null,null,null,null,null,{"$f":"O33-C16","v":{"$error":"#DIV/0!"}}]
[]
[null,null,null,"Total Class B kWh in 2016"]
[null,null,null,{"$f":"D32-F32-K21","v":0}]
[null,null,null,"Former Class B kWh in 2016","% of Former B kWh","CBR balance to Former B"]
[null,null,null,{"$f":"H32","v":0},{"$f":"D39/D37","v":{"$error":"#DIV/0!"}},{"$f":"E39*C16","v":{"$error":"#DIV/0!"}}]
[]
[]
[null,"Allocation of CBR Balances to Former Class B Customers"]
[]
[null,"This table allocates the CBR balance to former Class B customers who contributed to the current CBR balance but are now Class A customers. \nhe tables below calculate specific amounts for each customer who made the change. Consistent with both decisions for 2016 rates and EDDVAR, distributors are generally expected to settle the amount through 12 equal adjustments to bills. A one-time settlement is acceptable if the affected customer has expressed a clear preference for this approach. (see Filing Requirements section 3.2.5.2)"]
[]
[]
[]
[null,"# of Former Class B customer(s)"]
[null,"Class B (half of 2016) kWh",null,"Total Adj. kWh Class B before switch to Class A","% of kWh","Customer specific CBR allocation for the period prior to becoming Class A","Monthly Equal Payments"]
[null,null,null,null,null,{"$f":"J32","v":{"$error":"#DIV/0!"}}]
[null,"Customer 1",null,{"$f":"'6A. GA Allocation_Class A'!D32","v":0},{"$f":"IFERROR(D51/D$53,\"\")","v":""},{"$f":"IFERROR($F$50*E51,\"\")","v":""},{"$f":"IFERROR(F51/12,\"\")","v":""}]
[null,"Customer 2",null,{"$f":"'6A. GA Allocation_Class A'!D33","v":0},{"$f":"IFERROR(D52/D$53,\"\")","v":""},{"$f":"IFERROR($F$50*E52,\"\")","v":""},{"$f":"IFERROR(F52/12,\"\")","v":""}]
[null,"TOTAL",null,{"$f":"SUM(D51:D52)","v":0},{"$f":"SUM(E51:E52)","v":0},{"$f":"SUM(F51:F52)","v":0}]

{"sheet":"Horizon Utilities Rate Zone","index":23,"n_rows":423,"n_cols":3,"rows_kept":423,"cut":false,"hidden":false,"merged":[[366,0,366,1],[389,0,389,1],[397,0,397,3],[398,0,398,3],[417,0,417,3],[394,0,394,3],[395,0,395,3],[396,0,396,3],[393,0,393,3],[322,0,322,3],[324,0,324,3],[326,0,326,3],[327,0,327,3],[328,0,328,3],[329,0,329,3],[343,0,343,3],[344,0,344,3],[345,0,345,3],[203,0,203,3],[292,0,292,3],[250,0,250,3],[252,0,252,3],[254,0,254,3],[255,0,255,3],[256,0,256,3],[257,0,257,3],[285,0,285,3],[221,0,221,2],[287,0,287,3],[289,0,289,3],[290,0,290,3],[291,0,291,3],[222,0,222,2],[167,0,167,2],[204,0,204,3],[205,0,205,3],[206,0,206,3],[217,0,217,2],[220,0,220,2],[169,0,169,2],[170,0,170,2],[199,0,199,3],[201,0,201,3],[168,0,168,2],[132,0,132,3],[90,0,90,3],[91,0,91,3],[92,0,92,3],[93,0,93,3],[125,0,125,3],[127,0,127,3],[48,0,48,3],[50,0,50,3],[129,0,129,3],[130,0,130,3],[131,0,131,3],[10,0,10,2],[11,0,11,3],[16,0,16,3],[17,0,17,3],[18,0,18,3],[1,0,1,2],[2,0,2,2],[3,0,3,2],[4,0,4,2],[163,0,163,2],[13,0,13,2],[54,0,54,3],[55,0,55,3],[86,0,86,3],[88,0,88,3],[52,0,52,3],[53,0,53,3],[15,0,15,3],[5,0,5,2],[6,0,6,2],[7,0,7,2]]}
["Back to Index"]
["Alectra Utilities Corporation"]
["Horizon Utilities Rate Zone"]
["TARIFF OF RATES AND CHARGES"]
["Effective Date January 1, 2019"]
["Implementation Date February 1, 2019"]
["This schedule supersedes and replaces all previously "]
["approved schedules of Rates, Charges and Loss Factors"]
[null,null,"EB-2018-0016"]
[]
["RESIDENTIAL SERVICE CLASSIFICATION"]
["This classification refers to all residential services including, without limitation, single family or single unit dwellings, multifamily dwellings, row-type dwellings and subdivision developments.  Energy is supplied in single phase, 3-wire, or three phase, 4 wire, having a nominal voltage of 120/240 volts.  There shall be only one delivery point to a dwelling.  Class B consumers are defined in accordance with O. Reg. 429/04.  Further servicing details are available in the distributor’s Conditions of Service."]
[]
["APPLICATION"]
[]
["The application of these rates and charges shall be in accordance with the Licence of the Distributor and any Code or Order of the Ontario Energy Board, and amendments thereto as approved by the Ontario Energy Board, which may be applicable to the administration of this schedule."]
["No rates and charges for the distribution of electricity and charges to meet the costs of any work or service done or furnished for the purpose of the distribution of electricity shall be made except as permitted by this schedule, unless required by the Distributor’s Licence or a Code or Order of the Ontario Energy Ontario Energy Board, and amendments thereto as approved by the Ontario Energy Board, or as specified herein."]
["Unless specifically noted, this schedule does not contain any charges for the electricity commodity, be it under the Regulated Price Plan, a contract with a retailer or the wholesale market price, as applicable. In addition, the charges in the MONTHLY RATES AND CHARGES - Regulatory Component of this schedule do not apply to a customer that is an embedded wholesale market participant."]
["It should be noted that this schedule does not list any charges, assessments, or credits that are required by law to be invoiced by a distributor and that are not subject to Ontario Energy Board approval, such as the Debt Retirement Charge, the Global Adjustment and the HST."]
[]
["MONTHLY RATES AND CHARGES – Delivery Component"]
[]
["Service Charge","$",26.7]
["Smart Metering Entity Charge - effective until December 31, 2022","$",0.56999999999999995]
["Rate Rider for Disposition of 2016 Earnings Sharing - effective until  April 30, 2019","$",-0.16]
["Rate Rider for Recovery of 2019 Foregone Revenue - effective February 1, 2019 until  December 31, 2019","$",0.05]
["Low Voltage Service Rate","$/kWh",6.0000000000000002E-5]
["Rate Rider for Disposition of Global Adjustment Account (2018) - effective until  April 30, 2019\n        Applicable only for Non-RPP Customers ","$/kWh",-2.8999999999999998E-3]
["Rate Rider for Disposition of Global Adjustment Account (2019) - effective February 1, 2019 until December 31, 2019\n        Applicable only for Non-RPP Customers","$/kWh",-2.1425650733436475E-4]
["Rate Rider for Disposition of Deferral/Variance Accounts (2018) - effective until April 30, 2019","$/kWh",-5.5745441166673779E-4]
["Rate Rider for Disposition of Deferral/Variance Accounts (2019) - effective February 1, 2019 until December 31, 2019","$/kWh",-2.0999999999999999E-3]
["Rate Rider for Disposition of Capacity Based Recovery Account (2018) - effective until April 30, 2019\n        Applicable Only for Class  B Customers","$/kWh",-4.8022178426240039E-5]
["Rate Rider for Disposition of Lost Revenue Adjustment Mechanism Variance Account (LRAMVA) (2018) - effective until April 30, 2019","$/kWh",3.4235840736918192E-4]
["Rate Rider for Disposition of Lost Revenue Adjustment Mechanism Variance Account (LRAMVA) (2019) - effective February 1, 2019 until December 31, 2019","$/kWh",2.9999999999999997E-4]
["Retail Transmission Rate - Network Service Rate","$/kWh",7.1999999999999998E-3]
["Retail Transmission Rate - Line and Transformation Connection Service Rate","$/kWh",6.6E-3]
[]
["MONTHLY RATES AND CHARGES – Regulatory Component"]
[]
["Wholesale Market Service Rate (WMS) - not including CBR","$/kWh",3.0000000000000001E-3]
["Capacity Based Recovery (CBR) - Applicable for Class B Customers ","$/kWh",4.0000000000000002E-4]
["Rural or Remote Electricity Rate Protection Charge (RRRP)","$/kWh",5.0000000000000001E-4]
["Standard Supply Service - Administrative Charge (if applicable)","$",0.25]
[]
[]
[]
["GENERAL SERVICE LESS THAN 50 kW SERVICE CLASSIFICATION"]
[]
["This classification refers to a non-residential account whose monthly average peak demand is less than, or is forecast to be less than, 50 kW.  Class B consumers are defined in accordance with O. Reg. 429/04.  Further servicing details are available in the distributor’s Conditions of Service."]
[]
["APPLICATION"]
[]
["The application of these rates and charges shall be in accordance with the Licence of the Distributor and any Code or Order of the Ontario Energy Board, and amendments thereto as approved by the Ontario Energy Board, which may be applicable to the administration of this schedule."]
["No rates and charges for the distribution of electricity and charges to meet the costs of any work or service done or furnished for the purpose of the distribution of electricity shall be made except as permitted by this schedule, unless required by the Distributor’s Licence or a Code or Order of the Ontario Energy Board, and amendments thereto as approved by the Ontario Energy Board, or as specified herein."]
["Unless specifically noted, this schedule does not contain any charges for the electricity commodity, be it under the Regulated Price Plan, a contract with a retailer or the wholesale market price, as applicable. In addition, the charges in the MONTHLY RATES AND CHARGES - Regulatory Component of this schedule do not apply to a customer that is an embedded wholesale market participant."]
["It should be noted that this schedule does not list any charges, assessments, or credits that are required by law to be invoiced by a distributor and that are not subject to Ontario Energy Board approval, such as the Debt Retirement Charge, the Global Adjustment and the HST."]
[]
["MONTHLY RATES AND CHARGES – Delivery Component"]
[]
["Service Charge","$",42.29]
["Smart Metering Entity Charge - effective until December 31, 2022","$",0.56999999999999995]
["Rate Rider for Disposition of 2016 Earnings Sharing - effective until  April 30, 2019","$",-0.25]
["Rate Rider for Recovery of 2019 Foregone Revenue - effective February 1, 2019 until  December 31, 2019","$",0.17]
["Distribution Volumetric Rate","$/kWh",1.09E-2]
["Low Voltage Service Rate","$/kWh",6.0000000000000002E-5]
["Rate Rider for Disposition of Global Adjustment Account (2018) - effective until  April 30, 2019\n        Applicable only for Non-RPP Customers ","$/kWh",-2.8999999999999998E-3]
["Rate Rider for Disposition of Global Adjustment Account (2019) - effective February 1, 2019 until  December 31, 2019\n        Applicable only for Non-RPP Customers","$/kWh",-2.1425650733436475E-4]
["Rate Rider for Disposition of Deferral/Variance Accounts (2018) - effective until April 30, 2019","$/kWh",-5.4706058984850081E-4]
["Rate Rider for Disposition of Deferral/Variance Accounts (2019) - effective February 1, 2019 until December 31, 2019","$/kWh",-2E-3]
["Rate Rider for Disposition of Capacity Based Recovery Account (2018) - effective until April 30, 2019\n        Applicable Only for Class  B Customers","$/kWh",-4.8022178426240046E-5]
["Rate Rider for Disposition of 2016 Earnings Sharing - effective until  April 30, 2019","$/kWh",-1E-4]
["Rate Rider for Disposition of Lost Revenue Adjustment Mechanism Variance Account (LRAMVA) (2018) - effective until April 30, 2019","$/kWh",5.0610849164547402E-4]
["Rate Rider for Disposition of Lost Revenue Adjustment Mechanism Variance Account (LRAMVA) (2019) - effective February 1, 2019 until December 31, 2019","$/kWh",5.9999999999999995E-4]
["Retail Transmission Rate - Network Service Rate","$/kWh",6.3E-3]
["Retail Transmission Rate - Line and Transformation Connection Service Rate","$/kWh",5.8999999999999999E-3]
[]
["MONTHLY RATES AND CHARGES – Regulatory Component"]
[]
["Wholesale Market Service Rate (WMS) - not including CBR","$/kWh",3.0000000000000001E-3]
["Capacity Based Recovery (CBR) - Applicable for Class B Customers ","$/kWh",4.0000000000000002E-4]
["Rural or Remote Electricity Rate Protection Charge (RRRP)","$/kWh",5.0000000000000001E-4]
["Standard Supply Service - Administrative Charge (if applicable)","$",0.25]
[]
[]
["GENERAL SERVICE 50 to 4,999 kW SERVICE CLASSIFICATION"]
[]
["This classification refers to a non-residential account whose monthly average peak demand is equal to or greater than, or is forecast to be equal to or greater than, 50 kW but less than 5,000 kW, both regular and interval metered.  Class A and Class B consumers are defined in accordance with O. Reg. 429/04.  Further servicing details are available in the distributor’s Conditions of Service."]
[]
["APPLICATION"]
[]
["The application of these rates and charges shall be in accordance with the Licence of the Distributor and any Code or Order of the Ontario Energy Board, and amendments thereto as approved by the Ontario Energy Board, which may be applicable to the administration of this schedule."]
["No rates and charges for the distribution of electricity and charges to meet the costs of any work or service done or furnished for the purpose of the distribution of electricity shall be made except as permitted by this schedule, unless required by the Distributor’s Licence or a Code or Order of the Ontario Energy Board, and amendments thereto as approved by the Ontario Energy Board, or as specified herein."]
["Unless specifically noted, this schedule does not contain any charges for the electricity commodity, be it under the Regulated Price Plan, a contract with a retailer or the wholesale market price, as applicable.  In addition, the charges in the MONTHLY RATES AND CHARGES – Regulatory Component of this schedule do not apply to a customer that is an embedded wholesale market participant."]
["It should be noted that this schedule does not list any charges, assessments or credits that are required by law to be invoiced by a distributor and that are not subject to Ontario Energy Board approval, such as the Debt Retirement Charge, the Global Adjustment and the HST."]
[]
[]
["MONTHLY RATES AND CHARGES – Delivery Component"]
[]
["Service Charge","$",389.4]
["Rate Rider for Disposition of 2016 Earnings Sharing - effective until  April 30, 2019","$",-2.27]
["Rate Rider for Recovery of 2019 Foregone Revenue - effective February 1, 2019 until  December 31, 2019","$",1.9]
["Distribution Volumetric Rate","$/kW",2.6150000000000002]
["Low Voltage Service Rate","$/kW",2.1690000000000001E-2]
["Rate Rider for Disposition of Global Adjustment Account (2018) - effective until  April 30, 2019\n        Applicable only for Non-RPP Customers Non-Wholesale Market Participants","$/kWh",-2.8999999999999998E-3]
["Rate Rider for Disposition of Global Adjustment Account (2019) - effective May 1, 2019 until  December 31, 2019\n        Applicable only for Non-RPP Customers Non-Wholesale Market Participants","$/kWh",-2.9999999999999997E-4]
["Rate Rider for Disposition of Deferral/Variance Accounts (2018) - effective until April 30, 2019","$/kW",0.10803942087013488]
["Rate Rider for Disposition of Deferral/Variance Accounts (2018) - effective until April 30, 2019\n         Applicable only for Non-Wholesale Market Participants","$/kW",-0.30862626888555439]
["Rate Rider for Disposition of Deferral/Variance Accounts (2019) - effective February 1, 2019 until December 31, 2019","$/kW",-0.74109999999999998]
["Rate Rider for Disposition of Capacity Based Recovery Account (2018) - effective until  April 30, 2019\n          Applicable Only for Class B Customers","$/kW",-1.7299155182803644E-2]
["Rate Rider for Disposition of 2016 Earnings Sharing - effective until  April 30, 2019","$/kW",-1.5299999999999999E-2]
["Rate Rider for Disposition of Lost Revenue Adjustment Mechanism Variance Account (LRAMVA) (2018) - effective until April 30, 2019","$/kW",5.7500000000000002E-2]
["Rate Rider for Disposition of Lost Revenue Adjustment Mechanism Variance Account (LRAMVA) (2019) - effective February 1, 2019 until December 31, 2019","$/kW",6.6E-3]
["Retail Transmission Rate - Network Service Rate","$/kW",2.5204]
["Retail Transmission Rate - Line and Transformation Connection Service Rate","$/kW",2.3873000000000002]
[]
["MONTHLY RATES AND CHARGES – Regulatory Component"]
[]
["Wholesale Market Service Rate (WMS) - not including CBR","$/kWh",3.0000000000000001E-3]
["Capacity Based Recovery (CBR) - Applicable for Class B Customers ","$/kWh",4.0000000000000002E-4]
["Rural or Remote Electricity Rate Protection Charge (RRRP)","$/kWh",5.0000000000000001E-4]
["Standard Supply Service - Administrative Charge (if applicable)","$",0.25]
[]
[]
["LARGE USE SERVICE CLASSIFICATION"]
[]
["This classification refers to an account whose monthly average peak demand is equal to or greater than, or is forecast to be equal to or greater than, 5,000 kW.  Class A and Class B consumers are defined in accordance with O. Reg. 429/04.  Further servicing details are available in the distributor’s Conditions of Service."]
[]
["APPLICATION"]
[]
["The application of these rates and charges shall be in accordance with the Licence of the Distributor and any Code or Order of the Ontario Energy Board, and amendments thereto as approved by the Ontario Energy Board, which may be applicable to the administration of this schedule."]
["No rates and charges for the distribution of electricity and charges to meet the costs of any work or service done or furnished for the purpose of the distribution of electricity shall be made except as permitted by this schedule, unless required by the Distributor’s Licence or a Code or Order of the Ontario Energy Board, and amendments thereto as approved by the Ontario Energy Board, or as specified herein."]
["Unless specifically noted, this schedule does not contain any charges for the electricity commodity, be it under the Regulated Price Plan, a contract with a retailer or the wholesale market price, as applicable.  In addition, the charges in the MONTHLY RATES AND CHARGES – Regulatory Component of this schedule do not apply to a customer that is an embedded wholesale market participant."]
["It should be noted that this schedule does not list any charges, assessments or credits that are required by law to be invoiced by a distributor and that are not subject to Ontario Energy Board approval, such as the Debt Retirement Charge, the Global Adjustment and the HST."]
[]
["MONTHLY RATES AND CHARGES – Delivery Component"]
[]
["Service Charge","$",24279.37]
["Rate Rider for Disposition of 2016 Earnings Sharing - effective until  April 30, 2019","$",-142.57]
["Rate Rider for Recovery of 2019 Foregone Revenue - effective February 1, 2019 until  December 31, 2019","$",73.3]
["Distribution Volumetric Rate","$/kW",1.4325000000000001]
["Low Voltage Service Rate","$/kW",2.4920000000000001E-2]
["Rate Rider for Disposition of Global Adjustment Account (2018) - effective until  April 30, 2019\n        Applicable only for Non-RPP Customers Non-Wholesale Market Participants","$/kWh",-2.8999999999999998E-3]
["Rate Rider for Disposition of Deferral/Variance Accounts (2018) - effective until April 30, 2019","$/kW",0.14180892035803405]
["Rate Rider for Disposition of Deferral/Variance Accounts (2018) - effective until April 30, 2019\n         Applicable only for Non-Wholesale Market Participants","$/kW",-0.45688189384518907]
["Rate Rider for Disposition of Deferral/Variance Accounts (2019) - effective February 1, 2019 until December 31, 2019","$/kW",8.7300000000000003E-2]
["Rate Rider for Disposition of Deferral/Variance Accounts (2019) - effective February 1, 2019 until December 31, 2019\n          Applicable only for Non-Wholesale Market Participants","$/kW",-1.2183999999999999]
["Rate Rider for Disposition of Capacity Based Recovery Account (2018) - effective until  April 30, 2019\n          Applicable Only for Class B Customers","$/kW",-2.6110678750415294E-2]
["Rate Rider for Disposition of 2016 Earnings Sharing - effective until  April 30, 2019","$/kW",-8.3999999999999995E-3]
["Rate Rider for Disposition of Lost Revenue Adjustment Mechanism Variance Account (LRAMVA) (2018) - effective until April 30, 2019","$/kW",0.23377358072180496]
["Rate Rider for Disposition of Lost Revenue Adjustment Mechanism Variance Account (LRAMVA) (2019) - effective February 1, 2019 until December 31, 2019","$/kW",2.0500000000000001E-2]
["Retail Transmission Rate - Network Service Rate","$/kW",2.8791000000000002]
["Retail Transmission Rate - Line and Transformation Connection Service Rate","$/kW",2.7433000000000001]
[]
["MONTHLY RATES AND CHARGES – Regulatory Component"]
[]
["Wholesale Market Service Rate (WMS) - not including CBR","$/kWh",3.0000000000000001E-3]
["Capacity Based Recovery (CBR) - Applicable for Class B Customers ","$/kWh",4.0000000000000002E-4]
["Rural or Remote Electricity Rate Protection Charge (RRRP)","$/kWh",5.0000000000000001E-4]
["Standard Supply Service - Administrative Charge (if applicable)","$",0.25]
[]
[]
["LARGE USE WITH DEDICATED ASSETS SERVICE CLASSIFICATION"]
[]
["This classification applies to an account where average monthly maximum demand used for billing purposes is equal to or greater than, or is forecast to be equal to or greater than, 5,000 kW and using dedicated assets.  Class A and Class B consumers are defined in accordance with O. Reg. 429/04.  Further servicing details are available in the distributor’s Conditions of Service."]
[]
["APPLICATION"]
[]
["The application of these rates and charges shall be in accordance with the Licence of the Distributor and any Code or Order of the Ontario Energy Board, and amendments thereto as approved by the Ontario Energy Board, which may be applicable to the administration of this schedule."]
["No rates and charges for the distribution of electricity and charges to meet the costs of any work or service done or furnished for the purpose of the distribution of electricity shall be made except as permitted by this schedule, unless required by the Distributor’s Licence or a Code or Order of the Ontario Energy Board, and amendments thereto as approved by the Ontario Energy Board, or as specified herein."]
["Unless specifically noted, this schedule does not contain any charges for the electricity commodity, be it under the Regulated Price Plan, a contract with a retailer or the wholesale market price, as applicable.  In addition, the charges in the MONTHLY RATES AND CHARGES – Regulatory Component of this schedule do not apply to a customer that is an embedded wholesale market participant."]
["It should be noted that this schedule does not list any charges, assessments or credits that are required by law to be invoiced by a distributor and that are not subject to Ontario Energy Board approval, such as the Debt Retirement Charge, the Global Adjustment and the HST."]
[]
["MONTHLY RATES AND CHARGES – Delivery Component"]
[]
["Service Charge","$",5755.85]
["Rate Rider for Disposition of 2016 Earnings Sharing - effective until  April 30, 2019","$",-33.549999999999997]
["Rate Rider for Recovery of 2019 Foregone Revenue - effective February 1, 2019 until  December 31, 2019","$",30.84]
["Distribution Volumetric Rate","$/kW",0.33960000000000001]
["Low Voltage Service Rate","$/kW",2.4920000000000001E-2]
["Rate Rider for Disposition of Deferral/Variance Accounts (2018) - effective until April 30, 2019","$/kW",0.1635188668956736]
["Rate Rider for Disposition of Deferral/Variance Accounts (2018) - effective until April 30, 2019\n         Applicable only for Non-Wholesale Market Participants","$/kW",-0.37612801064374535]
["Rate Rider for Disposition of Deferral/Variance Accounts (2019) - effective February 1, 2019 until December 31, 2019","$/kW",9.5699999999999993E-2]
["Rate Rider for Disposition of Deferral/Variance Accounts (2019) - effective February 1, 2019 until December 31, 2019\n          Applicable only for Non-Wholesale Market Participants","$/kW",-0.86399999999999999]
["Rate Rider for Disposition of 2016 Earnings Sharing - effective until  April 30, 2019","$/kW",-2E-3]
["Rate Rider for Disposition of Lost Revenue Adjustment Mechanism Variance Account (LRAMVA) (2018) - effective until April 30, 2019","$/kW",4.8796173553799956E-3]
["Rate Rider for Disposition of Lost Revenue Adjustment Mechanism Variance Account (LRAMVA) (2019) - effective February 1, 2019 until December 31, 2019","$/kW",6.4999999999999997E-3]
["Retail Transmission Rate - Network Service Rate","$/kW",2.8791000000000002]
["Retail Transmission Rate - Line and Transformation Connection Service Rate","$/kW",2.7433000000000001]
[]
["MONTHLY RATES AND CHARGES – Regulatory Component"]
[]
["Wholesale Market Service Rate (WMS) - not including CBR","$/kWh",3.0000000000000001E-3]
["Capacity Based Recovery (CBR) - Applicable for Class B Customers ","$/kWh",4.0000000000000002E-4]
["Rural or Remote Electricity Rate Protection Charge (RRRP)","$/kWh",5.0000000000000001E-4]
["Standard Supply Service - Administrative Charge (if applicable)","$",0.25]
[]
[]
["STANDBY POWER SERVICE CLASSIFICATION "]
[]
["This classification refers to an account that has Load Displacement Generation and requires the distributor to provide back-up service.  Further servicing details are available in the distributor’s Conditions of Service."]
[]
["APPLICATION"]
[]
["The application of these rates and charges shall be in accordance with the Licence of the Distributor and any Code or Order of the Ontario Energy Board, and amendments thereto as approved by the Ontario Energy Board, which may be applicable to the administration of this schedule."]
["No rates and charges for the distribution of electricity and charges to meet the costs of any work or service done or furnished for the purpose of the distribution of electricity shall be made except as permitted by this schedule, unless required by the Distributor’s Licence or a Code or Order of the Ontario Energy Board, and amendments thereto as approved by the Ontario Energy Board, or as specified herein."]
["Unless specifically noted, this schedule does not contain any charges for the electricity commodity, be it under the Regulated Price Plan, a contract with a retailer or the wholesale market price, as applicable."]
["It should be noted that this schedule does not list any charges, assessments or credits that are required by law to be invoiced by a distributor and that are not subject to Ontario Energy Board approval, such as the Debt Retirement Charge, the Global Adjustment and the HST."]
[]
["MONTHLY RATES AND CHARGES – Delivery Component - APPROVED ON AN INTERIM BASIS"]
[]
["GS>50 Standby Charge - for a month where standby power is not provided.  The charge is applied to the amount of reserved load transfer capacity contracted or the amount of monthly peak load displaced by a generating facility.","$/kW",2.6150000000000002]
["Large Use Standby Charge - for a month where standby power is not provided.  The charge is applied to the amount of reserved load transfer capacity contracted or the amount of monthly peak load displaced by a generating facility.","$/kW",1.4325000000000001]
["Large Use with Dedicated Assets Standby Charge - for a month where standby power is not provided.  The charge is applied to the amount of reserved load transfer capacity contracted or the amount of monthly peak load displaced by a generating facility.","$/kW",0.33960000000000001]
[]
[]
["UNMETERED SCATTERED LOAD SERVICE CLASSIFICATION"]
[]
["This classification applies to safety/security lighting with a Residential, General Service or Large Use customer.  This is typically exterior lighting, and often unmetered.  Consumption is estimated based on the equipment rating and estimated hours of use.  Class B consumers are defined in accordance with O. Reg. 429/04. Further servicing details are available in the distributor’s Conditions of Service."]
[]
["APPLICATION"]
["The application of these rates and charges shall be in accordance with the Licence of the Distributor and any Code or Order of the Ontario Energy Board, and amendments thereto as approved by the Ontario Energy Board, which may be applicable to the administration of this schedule."]
["No rates and charges for the distribution of electricity and charges to meet the costs of any work or service done or furnished for the purpose of the distribution of electricity shall be made except as permitted by this schedule, unless required by the Distributor’s Licence or a Code or Order of the Ontario Energy Board, and amendments thereto as approved by the Ontario Energy Board, or as specified herein."]
["Unless specifically noted, this schedule does not contain any charges for the electricity commodity, be it under the Regulated Price Plan, a contract with a retailer or the wholesale market price, as applicable.  In addition, the charges in the MONTHLY RATES AND CHARGES – Regulatory Component of this schedule do not apply to a customer that is an embedded wholesale market participant."]
[]
["MONTHLY RATES AND CHARGES – Delivery Component"]
[]
["Service Charge","$",8.6300000000000008]
["Rate Rider for Disposition of 2016 Earnings Sharing - effective until  April 30, 2019","$",-0.05]
["Rate Rider for Recovery of 2019 Foregone Revenue - effective February 1, 2019 until  December 31, 2019","$",0.03]
["Distribution Volumetric Rate","$/kWh",1.34E-2]
["Low Voltage Service Rate","$/kWh",6.0000000000000002E-5]
["Rate Rider for Disposition of Global Adjustment Account (2018) - effective until  April 30, 2019\n        Applicable only for Non-RPP Customers Non-Wholesale Market Participants","$/kWh",-2.8999999999999998E-3]
["Rate Rider for Disposition of Global Adjustment Account (2019) - effective February 1, 2019 until December 31, 2019\n        Applicable only for Non-RPP Customers Non-Wholesale Market Participants","$/kWh",-2.1425650733436475E-4]
["Rate Rider for Disposition of Deferral/Variance Accounts (2018) - effective until April 30, 2019","$/kWh",-5.4390720962791707E-4]
["Rate Rider for Disposition of Deferral/Variance Accounts (2019) - effective February 1, 2019 until December 31, 2019","$/kWh",-2E-3]
["Rate Rider for Disposition of Capacity Based Recovery Account (2018) - effective until  April 30, 2019\n          Applicable Only for Class B Customers","$/kWh",-4.8022178426240053E-5]
["Rate Rider for Disposition of 2016 Earnings Sharing - effective until  April 30, 2019","$/kWh",-1E-4]
["Retail Transmission Rate - Network Service Rate","$/kWh",6.4000000000000003E-3]
["Retail Transmission Rate - Line and Transformation Connection Service Rate","$/kWh",6.0000000000000001E-3]
[]
["MONTHLY RATES AND CHARGES – Regulatory Component"]
[]
["Wholesale Market Service Rate (WMS) - not including CBR","$/kWh",3.0000000000000001E-3]
["Capacity Based Recovery (CBR) - Applicable for Class B Customers ","$/kWh",4.0000000000000002E-4]
["Rural or Remote Electricity Rate Protection Charge (RRRP)","$/kWh",5.0000000000000001E-4]
["Standard Supply Service - Administrative Charge (if applicable)","$",0.25]
[]
[]
["SENTINEL LIGHTING SERVICE CLASSIFICATION"]
[]
["This classification refers to an unmetered lighting load supplied to a sentinel light.  Class B consumers are defined in accordance with O. Reg. 429/04.  Further servicing details are available in the distributor’s Conditions of Service."]
[]
["APPLICATION"]
[]
["The application of these rates and charges shall be in accordance with the Licence of the Distributor and any Code or Order of the Ontario Energy Board, and amendments thereto as approved by the Ontario Energy Board, which may be applicable to the administration of this schedule."]
["No rates and charges for the distribution of electricity and charges to meet the costs of any work or service done or furnished for the purpose of the distribution of electricity shall be made except as permitted by this schedule, unless required by the Distributor’s Licence or a Code or Order of the Ontario Energy Board, and amendments thereto as approved by the Ontario Energy Board, or as specified herein."]
["Unless specifically noted, this schedule does not contain any charges for the electricity commodity, be it under the Regulated Price Plan, a contract with a retailer or the wholesale market price, as applicable.  In addition, the charges in the MONTHLY RATES AND CHARGES – Regulatory Component of this schedule do not apply to a customer that is an embedded wholesale market participant."]
["It should be noted that this schedule does not list any charges, assessments or credits that are required by law to be invoiced by a distributor and that are not subject to Ontario Energy Board approval, such as the Debt Retirement Charge, the Global Adjustment and the HST."]
[]
["MONTHLY RATES AND CHARGES – Delivery Component"]
[]
["Service Charge (per Connection)","$",5.63]
["Rate Rider for Disposition of 2016 Earnings Sharing - effective until  April 30, 2019","$",-0.03]
["Rate Rider for Recovery of 2019 Foregone Revenue - effective February 1, 2019 until  December 31, 2019","$",0.02]
["Distribution Volumetric Rate","$/kW",15.441599999999999]
["Low Voltage Service Rate","$/kW",1.745E-2]
["Rate Rider for Disposition of Global Adjustment Account (2018) - effective until  April 30, 2019\n        Applicable only for Non-RPP Customers Non-Wholesale Market Participants","$/kWh",-2.8999999999999998E-3]
["Rate Rider for Disposition of Global Adjustment Account (2019) - effective February 1, 2019 until December 31, 2019\n        Applicable only for Non-RPP Customers Non-Wholesale Market Participants","$/kWh",-2.1425650733436475E-4]
["Rate Rider for Disposition of Deferral/Variance Accounts (2018) - effective until April 30, 2019","$/kW",-0.19677136515638091]
["Rate Rider for Disposition of Deferral/Variance Accounts (2019) - effective February 1, 2019 until December 31, 2019","$/kW",-0.94820000000000004]
["Rate Rider for Disposition of Capacity Based Recovery Account (2018) - effective until  April 30, 2019\n          Applicable Only for Class B Customers","$/kW",-1.7373164832984681E-2]
["Rate Rider for Disposition of 2016 Earnings Sharing - effective until  April 30, 2019","$/kW",-0.09]
["Retail Transmission Rate - Network Service Rate","$/kW",2.0943000000000001]
["Retail Transmission Rate - Line and Transformation Connection Service Rate","$/kW",1.9209000000000001]
[]
["MONTHLY RATES AND CHARGES – Regulatory Component"]
[]
["Wholesale Market Service Rate (WMS) - not including CBR","$/kWh",3.0000000000000001E-3]
["Capacity Based Recovery (CBR) - Applicable for Class B Customers ","$/kWh",4.0000000000000002E-4]
["Rural or Remote Electricity Rate Protection Charge (RRRP)","$/kWh",5.0000000000000001E-4]
["Standard Supply Service - Administrative Charge (if applicable)","$",0.25]
[]
[]
["STREET LIGHTING SERVICE CLASSIFICATION"]
[]
["This classification applies to an account for roadway lighting with a Municipality, Regional Municipality, Ministry of Transportation and private roadway lighting operation, controlled by photo cells.  The consumption for these customers will be based on the calculated connected load times the required lighting times established in the approved Ontario Energy Board street lighting load shape template.  Class B consumers are defined in accordance with O. Reg. 429/04.  Further servicing details are available in the distributor’s Conditions of Service."]
[]
["APPLICATION"]
[]
["The application of these rates and charges shall be in accordance with the Licence of the Distributor and any Code or Order of the Ontario Energy Board, and amendments thereto as approved by the Ontario Energy Board, which may be applicable to the administration of this schedule."]
["No rates and charges for the distribution of electricity and charges to meet the costs of any work or service done or furnished for the purpose of the distribution of electricity shall be made except as permitted by this schedule, unless required by the Distributor’s Licence or a Code or Order of the Ontario Energy Board, and amendments thereto as approved by the Ontario Energy Board, or as specified herein."]
["Unless specifically noted, this schedule does not contain any charges for the electricity commodity, be it under the Regulated Price Plan, a contract with a retailer or the wholesale market price, as applicable.  In addition, the charges in the MONTHLY RATES AND CHARGES – Regulatory Component of this schedule do not apply to a customer that is an embedded wholesale market participant."]
["It should be noted that this schedule does not list any charges, assessments or credits that are required by law to be invoiced by a distributor and that are not subject to Ontario Energy Board approval, such as the Debt Retirement Charge, the Global Adjustment and the HST."]
[]
["MONTHLY RATES AND CHARGES – Delivery Component"]
[]
["Service Charge (per  Connection)","$",1.95]
["Rate Rider for Disposition of 2016 Earnings Sharing - effective until  April 30, 2019","$",-0.01]
["Rate Rider for Recovery of 2019 Foregone Revenue - effective February 1, 2019 until  December 31, 2019","$",-0.01]
["Distribution Volumetric Rate","$/kW",5.1752000000000002]
["Low Voltage Service Rate","$/kW",1.702E-2]
["Rate Rider for Disposition of Global Adjustment Account (2018) - effective until  April 30, 2019\n        Applicable only for Non-RPP Customers Non-Wholesale Market Participants","$/kWh",-2.8999999999999998E-3]
["Rate Rider for Disposition of Global Adjustment Account (2019) - effective February 1, 2019 until December 31, 2019\n        Applicable only for Non-RPP Customers Non-Wholesale Market Participants","$/kWh",-2.1425650733436475E-4]
["Rate Rider for Disposition of Deferral/Variance Accounts (2018) - effective until April 30, 2019","$/kW",-0.19546788923692912]
["Rate Rider for Disposition of Deferral/Variance Accounts (2019) - effective February 1, 2019 until December 31, 2019","$/kW",-0.7288]
["Rate Rider for Disposition of Capacity Based Recovery Account (2018) - effective until  April 30, 2019\n          Applicable Only for Class B Customers","$/kW",-1.7258079480060168E-2]
["Rate Rider for Disposition of 2016 Earnings Sharing - effective until  April 30, 2019","$/kW",-3.4299999999999997E-2]
["Rate Rider for Disposition of Lost Revenue Adjustment Mechanism Variance Account (LRAMVA) (2018) - effective until April 30, 2019","$/kW",0.76136237725995137]
["Rate Rider for Disposition of Lost Revenue Adjustment Mechanism Variance Account (LRAMVA) (2019) - effective February 1, 2019 until December 31, 2019","$/kW",1.5974999999999999]
["Retail Transmission Rate - Network Service Rate","$/kW",1.984]
["Retail Transmission Rate - Line and Transformation Connection Service Rate","$/kW",1.8729]
[]
["MONTHLY RATES AND CHARGES – Regulatory Component"]
[]
["Wholesale Market Service Rate (WMS) - not including CBR","$/kWh",3.0000000000000001E-3]
["Capacity Based Recovery (CBR) - Applicable for Class B Customers ","$/kWh",4.0000000000000002E-4]
["Rural or Remote Electricity Rate Protection Charge (RRRP)","$/kWh",5.0000000000000001E-4]
["Standard Supply Service - Administrative Charge (if applicable)","$",0.25]
[]
[]
["MicroFIT SERVICE CLASSIFICATION"]
[]
["This classification applies to an electricity generation facility contracted under the Independent Electricity System Operator’s microFIT program and connected to the distributor’s distribution system.  Further servicing details are available in the distributor’s Conditions of Service."]
[]
["APPLICATION"]
[]
["The application of these rates and charges shall be in accordance with the Licence of the Distributor and any Code or Order of the Ontario Energy Board, and amendments thereto as approved by the Ontario Energy Board, which may be applicable to the administration of this schedule."]
["No rates and charges for the distribution of electricity and charges to meet the costs of any work or service done or furnished for the purpose of the distribution of electricity shall be made except as permitted by this schedule, unless required by the Distributor’s Licence or a Code or Order of the Ontario Energy Board, and amendments thereto as approved by the Ontario Energy Board, or as specified herein."]
["Unless specifically noted, this schedule does not contain any charges for the electricity commodity, be it under the Regulated Price Plan, a contract with a retailer or the wholesale market price, as applicable."]
["It should be noted that this schedule does not list any charges, assessments or credits that are required by law to be invoiced by a distributor and that are not subject to Ontario Energy Board approval, such as the Debt Retirement Charge, the Global Adjustment and the HST. "]
[]
["MONTHLY RATES AND CHARGES – Delivery Component "]
[]
["Service Charge","$",5.4]
[]
["ALLOWANCES"]
[]
["Transformer Allowance for Ownership - per kW of billing demand","$/kW",-0.73]
["Primary Metering Allowance for Transformer Losses - applied to measured demand & energy","%",-1]
[]
[]
["SPECIFIC SERVICE CHARGES"]
[]
["The application of these rates and charges shall be in accordance with the Licence of the Distributor and any Code or Order of the Ontario Energy Board, and amendments thereto as approved by the Ontario Energy Board, which may be applicable to the administration of this schedule."]
["No charges to meet the costs of any work or service done or furnished for the purpose of the distribution of electricity shall be made except as permitted by this schedule, unless required by the Distributor’s Licence or a Code or Order of the Ontario Energy Board, and amendments thereto as approved by the Ontario Energy Board, or as specified herein."]
["It should be noted that this schedule does not list any charges, assessments or credits that are required by law to be invoiced by a distributor and that are not subject to Ontario Energy Board approval, such as the Debt Retirement Charge, the Global Adjustment and the HST."]
[]
["Customer Administration","Customer Administration"]
[]
["     Arrears certificate","$",15]
["     Statement of Account","$",15]
["     Pulling of post dated cheques","$",15]
["     Duplicate invoices for previous  billing","$",15]
["     Request for other billing information","$",15]
["     Easement letter","$",15]
["     Income tax letter","$",15]
["     Notification charge","$",15]
["     Account history","$",15]
["     Returned cheque charge (plus bank charges)","$",15]
["     Charge to certify cheque","$",15]
["     Legal letter charge","$",15]
["     Account set up charge/change of occupancy charge (plus credit agency costs if applicable)","$",30]
["     Special meter reads","$",30]
["     Meter dispute charge plus Measurement Canada fees (if meter found correct)","$",30]
["     Credit card convenience charge","$",15]
["     Credit check (plus credit agency costs)","$",15]
[]
["Non-Payment of Account","Non-Payment of Account"]
[]
["     Late Payment – per month","%",1.5]
["     Late Payment – per annum","%",19.559999999999999]
["     Collection of account charge – no disconnection","$",30]
["     Collection of account charge – no disconnection - after regular hours","$",165]
["     Disconnect/Reconnect at meter – during regular hours","$",65]
["     Disconnect/Reconnect at meter – after regular hours","$",185]
["     Disconnect/Reconnect at pole – during regular hours","$",185]
["     Disconnect/Reconnect at pole – after regular hours","$",415]
["     Install/Remove load control device – during regular hours","$",65]
["     Install/Remove load control device – after regular hours","$",185]
[]
["Other","Other"]
[]
["     Service call - customer owned equipment","$",30]
["     Service call - after regular hours","$",165]
["     Temporary service - install and remove - overhead - no transformer","$",500]
["     Temporary service - install and remove - underground - no transformer","$",300]
["     Temporary service - install and remove - overhead - with transformer","$",1000]
["     Specific Charge for Access to the Power Poles - $/pole/year (with the exception of wireless attachments) - in effect from January 1, 2019","$",43.63]
["     Administrative Billing Charge","$",150]
[]
[]
["RETAIL SERVICE CHARGES (if applicable)"]
[]
["The application of these rates and charges shall be in accordance with the Licence of the Distributor and any Code or Order of the Ontario Energy Board, and amendments thereto as approved by the Ontario Energy Board, which may be applicable to the administration of this schedule."]
["No rates and charges for the distribution of electricity and charges to meet the costs of any work or service done or furnished for the purpose of the distribution of electricity shall be made except as permitted by this schedule, unless required by the Distributor’s Licence or a Code or Order of the Ontario Energy Board, and amendments thereto as approved by the Ontario Energy Board, or as specified herein."]
["Unless specifically noted, this schedule does not contain any charges for the electricity commodity, be it under the Regulated Price Plan, a contract with a retailer or the wholesale market price, as applicable."]
["It should be noted that this schedule does not list any charges, assessments or credits that are required by law to be invoiced by a distributor and that are not subject to Ontario Energy Board approval, such as the Global Adjustment and the HST."]
[]
["Retail Service Charges refer to services provided by a distributor to retailers or customers related to the supply of competitive electricity."]
[]
["One-time charge, per retailer, to establish the service agreement between the distributor and the retailer","$",100]
["Monthly Fixed Charge, per retailer","$",20]
["Monthly Variable Charge, per customer, per retailer","$/cust.",0.5]
["Distributor-consolidated billing monthly charge, per customer, per retailer","$/cust.",0.3]
["Retailer-consolidated billing monthly credit, per customer, per retailer","$/cust.",-0.3]
["Service Transaction Requests (STR) "]
["Request fee, per request, applied to the requesting party","$",0.25]
["Processing fee, per request, applied to the requesting party","$",0.5]
["Request for customer information as outlined in Section 10.6.3 and Chapter 11 of the Retail"]
["Settlement Code directly to retailers and customers, if not delivered electronically through the"]
["Electronic Business Transaction (EBT) system, applied to the requesting party "]
["Up to twice a year","$","no charge"]
["More than twice a year, per request (plus incremental delivery costs)","$",2]
[]
[]
["LOSS FACTORS"]
[]
["If the distributor is not capable of prorating changed loss factors jointly with distribution rates, the revised loss factors will be implemented upon the first subsequent billing for each billing cycle."]
[]
["Total Loss Factor – Secondary Metered Customer < 5,000 kW",null,1.0379]
["Total Loss Factor – Secondary Metered Customer > 5,000 kW",null,1.016]
["Total Loss Factor – Primary Metered Customer < 5,000 kW",null,1.0276000000000001]
["Total Loss Factor – Primary Metered Customer > 5,000 kW",null,1.006]

{"sheet":"Final Tariff Schedule","index":24,"n_rows":474,"n_cols":8,"rows_kept":474,"cut":false,"hidden":true,"merged":[[366,1,366,4],[368,1,368,4],[370,1,370,4],[372,1,372,4],[374,1,374,4],[327,1,327,4],[329,1,329,4],[331,1,331,4],[333,1,333,4],[364,1,364,4],[190,1,190,3],[239,1,239,4],[285,1,285,4],[287,1,287,4],[289,1,289,4],[249,1,249,3],[253,1,253,3],[255,1,255,3],[231,1,231,4],[233,1,233,4],[235,1,235,4],[237,1,237,4],[194,1,194,3],[229,1,229,4],[196,1,196,3],[198,1,198,3],[107,1,107,4],[153,1,153,4],[155,1,155,4],[157,1,157,4],[159,1,159,4],[115,1,115,4],[468,1,468,4],[444,1,444,4],[445,1,445,4],[446,1,446,4],[447,1,447,4],[448,1,448,4],[449,1,449,4],[443,1,443,4],[390,1,390,4],[392,1,392,4],[394,1,394,4],[415,1,415,2],[438,1,438,2],[441,1,441,4],[442,1,442,4],[293,1,293,4],[295,1,295,4],[323,1,323,4],[325,1,325,4],[257,1,257,3],[291,1,291,4],[200,1,200,3],[149,1,149,4],[151,1,151,4],[27,1,27,4],[29,1,29,4],[31,1,31,4],[63,1,63,4],[67,1,67,4],[69,1,69,4],[71,1,71,4],[73,1,73,4],[65,1,65,4],[105,1,105,4],[109,1,109,4],[111,1,111,4],[113,1,113,4],[1,1,8,3],[9,1,9,3],[10,1,10,3],[11,1,11,3],[12,1,12,3],[25,1,25,4],[13,1,13,3],[15,1,15,3],[16,1,16,3],[20,1,20,3],[23,1,23,3],[21,1,21,4]]}
["Back to Index"]
[null,"INCENTIVE REGULATION MODEL FOR 2019 FILERS"]
[]
[]
[]
[]
[]
[]
[]
[null,"Alectra Utilities Corpoation"]
[null,"Horizon Rate Zone"]
[null,"TARIFF OF RATES AND CHARGES"]
[null,"Effective Date January 1, 2019"]
[null,"Implementation Date January 1, 2019"]
[]
[null,"This schedule supersedes and replaces all previously "]
[null,"approved schedules of Rates, Charges and Loss Factors"]
[null,null,"EB-2018-0016"]
[]
[]
[null,"RESIDENTIAL SERVICE CLASSIFICATION"]
[null,"This classification refers to all residential services including, without limitation, single family or single unit dwellings, multifamily dwellings, row-type dwellings and subdivision developments.  Energy is supplied in single phase, 3-wire, or three phase, 4 wire, having a nominal voltage of 120/240 volts.  There shall be only one delivery point to a dwelling.  Class B consumers are defined in accordance with O. Reg. 429/04.  Further servicing details are available in the distributor’s Conditions of Service."]
[]
[null,"APPLICATION"]
[]
[null,"The application of these rates and charges shall be in accordance with the Licence of the Distributor and any Code or Order of the Ontario Energy Board, and amendments thereto as approved by the Ontario Energy Board, which may be applicable to the administration of this schedule."]
[]
[null,"No rates and charges for the distribution of electricity and charges to meet the costs of any work or service done or furnished for the purpose of the distribution of electricity shall be made except as permitted by this schedule, unless required by the Distributor’s Licence or a Code or Order of the Ontario Energy Ontario Energy Board, and amendments thereto as approved by the Ontario Energy Board, or as specified herein."]
[]
[null,"Unless specifically noted, this schedule does not contain any charges for the electricity commodity, be it under the Regulated Price Plan, a contract with a retailer or the wholesale market price, as applicable. In addition, the charges in the MONTHLY RATES AND CHARGES - Regulatory Component of this schedule do not apply to a customer that is an embedded wholesale market participant."]
[]
[null,"It should be noted that this schedule does not list any charges, assessments, or credits that are required by law to be invoiced by a distributor and that are not subject to Ontario Energy Board approval, such as the Debt Retirement Charge, the Global Adjustment and the HST."]
[]
[null,"MONTHLY RATES AND CHARGES – Delivery Component"]
[]
["R_F","Service Charge","$",{"$f":"VLOOKUP(A36,#REF!,9,FALSE)","v":{"$error":"#REF!"}},null,null,null,{"$f":"IF(D36=\"\",1,IF(D36=0,0,1))","v":{"$error":"#REF!"}}]
["R_SME","Smart Metering Entity Charge - effective until December 31, 2022","$",{"$f":"VLOOKUP(A37,#REF!,9,FALSE)","v":{"$error":"#REF!"}},null,null,null,{"$f":"IF(D37=\"\",1,IF(D37=0,0,1))","v":{"$error":"#REF!"}}]
["R_ESMF","Rate Rider for Disposition of 2016 Earnings Sharing - effective until  April 30, 2019","$",{"$f":"VLOOKUP(A38,#REF!,9,FALSE)","v":{"$error":"#REF!"}},null,null,null,{"$error":"#REF!"}]
["R_FGF","Rate Rider for Recovery of 2019 Foregone Revenue - effective February 1, 2019 until  December 31, 2019","$",{"$f":"VLOOKUP(A39,#REF!,9,FALSE)","v":{"$error":"#REF!"}},null,null,null,{"$error":"#REF!"}]
["R_V","Distribution Volumetric Rate","$/kWh",{"$f":"VLOOKUP(A40,#REF!,9,FALSE)","v":{"$error":"#REF!"}},null,null,null,{"$error":"#REF!"}]
["R_LV","Low Voltage Service Rate","$/kWh",{"$f":"VLOOKUP(A41,#REF!,9,FALSE)","v":{"$error":"#REF!"}},null,null,null,{"$error":"#REF!"}]
["R_GA18","Rate Rider for Disposition of Global Adjustment Account (2018) - effective until  April 30, 2019\n        Applicable only for Non-RPP Customers","$/kWh",{"$f":"VLOOKUP(A42,#REF!,9,FALSE)","v":{"$error":"#REF!"}},null,null,null,{"$error":"#REF!"}]
["R_GA19","Rate Rider for Disposition of Global Adjustment Account (2019) - effective until  December 31, 2019\n        Applicable only for Non-RPP Customers","$/kWh",{"$f":"VLOOKUP(A43,#REF!,9,FALSE)","v":{"$error":"#REF!"}},null,null,null,{"$error":"#REF!"}]
["R_DVA18","Rate Rider for Disposition of Deferral/Variance Accounts (2018) - effective until April 30, 2019","$/kWh",{"$f":"VLOOKUP(A44,#REF!,9,FALSE)","v":{"$error":"#REF!"}},null,null,null,{"$error":"#REF!"}]
["R_DVA19","Rate Rider for Disposition of Deferral/Variance Accounts (2019) - effective until December 31, 2019","$/kWh",{"$f":"VLOOKUP(A45,#REF!,9,FALSE)","v":{"$error":"#REF!"}},null,null,null,{"$error":"#REF!"}]
["R_CBR18","Rate Rider for Disposition of Capacity Based Recovery Account (2018) - effective until  April 30, 2019\n          Applicable Only for Class B Customers","$/kWh",{"$f":"VLOOKUP(A46,#REF!,9,FALSE)","v":{"$error":"#REF!"}},null,null,null,{"$error":"#REF!"}]
["R_CBR19","Rate Rider for Disposition of Capacity Based Recovery Account (2019) - effective until December 31, 2019\n        Applicable Only for Class B Customers","$/kWh",{"$f":"VLOOKUP(A47,#REF!,9,FALSE)","v":{"$error":"#REF!"}},null,null,null,{"$error":"#REF!"}]
["R_ESMV19","Rate Rider for Disposition of 2017 Earnings Sharing - effective until  December 31, 2019","$/kWh",{"$f":"VLOOKUP(A48,#REF!,9,FALSE)","v":{"$error":"#REF!"}},null,null,null,{"$error":"#REF!"}]
["R_LRVA18","Rate Rider for Disposition of Lost Revenue Adjustment Mechanism Variance Account (LRAMVA) (2018) - effective until April 30, 2019","$/kWh",{"$f":"VLOOKUP(A49,#REF!,9,FALSE)","v":{"$error":"#REF!"}},null,null,null,{"$error":"#REF!"}]
["R_LRVA19","Rate Rider for Disposition of Lost Revenue Adjustment Mechanism Variance Account (LRAMVA) (2019) - effective until December 31, 2019","$/kWh",{"$f":"VLOOKUP(A50,#REF!,9,FALSE)","v":{"$error":"#REF!"}},null,null,null,{"$error":"#REF!"}]
["R_TN","Retail Transmission Rate - Network Service Rate","$/kWh",{"$f":"VLOOKUP(A51,#REF!,9,FALSE)","v":{"$error":"#REF!"}},null,null,null,{"$error":"#REF!"}]
["R_TC","Retail Transmission Rate - Line and Transformation Connection Service Rate","$/kWh",{"$f":"VLOOKUP(A52,#REF!,9,FALSE)","v":{"$error":"#REF!"}},null,null,null,{"$error":"#REF!"}]
[null,null,null,null,null,null,null,1]
[null,"MONTHLY RATES AND CHARGES – Regulatory Component",null,null,null,null,null,1]
[null,null,null,null,null,null,null,1]
[null,"Wholesale Market Service Rate (WMS) - not including CBR","$/kWh",3.0000000000000001E-3,null,null,null,1]
[null,"Capacity Based Recovery (CBR) - Applicable for Class B Customers ","$/kWh",4.0000000000000002E-4,null,null,null,1]
[null,"Rural or Remote Electricity Rate Protection Charge (RRRP)","$/kWh",5.0000000000000001E-4,null,null,null,1]
[null,"Standard Supply Service - Administrative Charge (if applicable)","$",0.25,null,null,null,1]
[null,null,null,null,null,null,null,1]
[null,null,null,null,null,null,null,1]
[null,"GENERAL SERVICE LESS THAN 50 kW SERVICE CLASSIFICATION",null,null,null,null,null,1]
[null,null,null,null,null,null,null,1]
[null,"This classification refers to a non-residential account whose monthly average peak demand is less than, or is forecast to be less than, 50 kW.  Class B consumers are defined in accordance with O. Reg. 429/04.  Further servicing details are available in the distributor’s Conditions of Service.",null,null,null,null,null,1]
[null,null,null,null,null,null,null,1]
[null,"APPLICATION",null,null,null,null,null,1]
[null,null,null,null,null,null,null,1]
[null,"The application of these rates and charges shall be in accordance with the Licence of the Distributor and any Code or Order of the Ontario Energy Board, and amendments thereto as approved by the Ontario Energy Board, which may be applicable to the administration of this schedule.",null,null,null,null,null,1]
[null,null,null,null,null,null,null,1]
[null,"No rates and charges for the distribution of electricity and charges to meet the costs of any work or service done or furnished for the purpose of the distribution of electricity shall be made except as permitted by this schedule, unless required by the Distributor’s Licence or a Code or Order of the Ontario Energy Board, and amendments thereto as approved by the Ontario Energy Board, or as specified herein.",null,null,null,null,null,1]
[null,null,null,null,null,null,null,1]
[null,"Unless specifically noted, this schedule does not contain any charges for the electricity commodity, be it under the Regulated Price Plan, a contract with a retailer or the wholesale market price, as applicable. In addition, the charges in the MONTHLY RATES AND CHARGES - Regulatory Component of this schedule do not apply to a customer that is an embedded wholesale market participant.",null,null,null,null,null,1]
[null,null,null,null,null,null,null,1]
[null,"It should be noted that this schedule does not list any charges, assessments, or credits that are required by law to be invoiced by a distributor and that are not subject to Ontario Energy Board approval, such as the Debt Retirement Charge, the Global Adjustment and the HST.",null,null,null,null,null,1]
[null,null,null,null,null,null,null,1]
[null,"MONTHLY RATES AND CHARGES – Delivery Component",null,null,null,null,null,1]
[null,null,null,null,null,null,null,1]
["GSL_F","Service Charge","$",{"$f":"VLOOKUP(A78,#REF!,9,FALSE)","v":{"$error":"#REF!"}},null,null,null,{"$error":"#REF!"}]
["GSL_SME","Smart Metering Entity Charge - effective until December 31, 2022","$",{"$f":"VLOOKUP(A79,#REF!,9,FALSE)","v":{"$error":"#REF!"}},null,null,null,{"$error":"#REF!"}]
["GSL_ESMF","Rate Rider for Disposition of 2016 Earnings Sharing - effective until  April 30, 2019","$",{"$f":"VLOOKUP(A80,#REF!,9,FALSE)","v":{"$error":"#REF!"}},null,null,null,{"$error":"#REF!"}]
["GSL_FGF","Rate Rider for Recovery of 2019 Foregone Revenue - effective February 1, 2019 until  December 31, 2019","$",{"$f":"VLOOKUP(A81,#REF!,9,FALSE)","v":{"$error":"#REF!"}},null,null,null,{"$error":"#REF!"}]
["GSL_V","Distribution Volumetric Rate","$/kWh",{"$f":"VLOOKUP(A82,#REF!,9,FALSE)","v":{"$error":"#REF!"}},null,null,null,{"$error":"#REF!"}]
["GSL_LV","Low Voltage Service Rate","$/kWh",{"$f":"VLOOKUP(A83,#REF!,9,FALSE)","v":{"$error":"#REF!"}},null,null,null,{"$error":"#REF!"}]
["GSL_GA18","Rate Rider for Disposition of Global Adjustment Account (2018) - effective until  April 30, 2019\n        Applicable only for Non-RPP Customers","$/kWh",{"$f":"VLOOKUP(A84,#REF!,9,FALSE)","v":{"$error":"#REF!"}},null,null,null,{"$error":"#REF!"}]
["GSL_GA19","Rate Rider for Disposition of Global Adjustment Account (2019) - effective until  December 31, 2019\n        Applicable only for Non-RPP Customers","$/kWh",{"$f":"VLOOKUP(A85,#REF!,9,FALSE)","v":{"$error":"#REF!"}},null,null,null,{"$error":"#REF!"}]
["GSL_DVA18","Rate Rider for Disposition of Deferral/Variance Accounts (2018) - effective until April 30, 2019","$/kWh",{"$f":"VLOOKUP(A86,#REF!,9,FALSE)","v":{"$error":"#REF!"}},null,null,null,{"$error":"#REF!"}]
["GSL_DVA19","Rate Rider for Disposition of Deferral/Variance Accounts (2019) - effective until December 31, 2019","$/kWh",{"$f":"VLOOKUP(A87,#REF!,9,FALSE)","v":{"$error":"#REF!"}},null,null,null,{"$error":"#REF!"}]
["GSL_CBR18","Rate Rider for Disposition of Capacity Based Recovery Account (2018) - effective until  April 30, 2019\n          Applicable Only for Class B Customers","$/kWh",{"$f":"VLOOKUP(A88,#REF!,9,FALSE)","v":{"$error":"#REF!"}},null,null,null,{"$error":"#REF!"}]
["GSL_CBR19","Rate Rider for Disposition of Capacity Based Recovery Account (2019) - effective until December 31, 2019\n        Applicable Only for Class B Customers","$/kWh",{"$f":"VLOOKUP(A89,#REF!,9,FALSE)","v":{"$error":"#REF!"}},null,null,null,{"$error":"#REF!"}]
["GSL_ESMV","Rate Rider for Disposition of 2016 Earnings Sharing - effective until  April 30, 2019","$/kWh",{"$f":"VLOOKUP(A90,#REF!,9,FALSE)","v":{"$error":"#REF!"}},null,null,null,{"$error":"#REF!"}]
["GSl_ESMV19","Rate Rider for Disposition of 2017 Earnings Sharing - effective until  December 31, 2019","$/kWh",{"$f":"VLOOKUP(A91,#REF!,9,FALSE)","v":{"$error":"#REF!"}},null,null,null,{"$error":"#REF!"}]
["GSL_LRVA18","Rate Rider for Disposition of Lost Revenue Adjustment Mechanism Variance Account (LRAMVA) (2018) - effective until April 30, 2019","$/kWh",{"$f":"VLOOKUP(A92,#REF!,9,FALSE)","v":{"$error":"#REF!"}},null,null,null,{"$error":"#REF!"}]
["GSL_LRVA19","Rate Rider for Disposition of Lost Revenue Adjustment Mechanism Variance Account (LRAMVA) (2019) - effective until December 31, 2019","$/kWh",{"$f":"VLOOKUP(A93,#REF!,9,FALSE)","v":{"$error":"#REF!"}},null,null,null,{"$error":"#REF!"}]
["GSL_TN","Retail Transmission Rate - Network Service Rate","$/kWh",{"$f":"VLOOKUP(A94,#REF!,9,FALSE)","v":{"$error":"#REF!"}},null,null,null,{"$error":"#REF!"}]
["GSL_TC","Retail Transmission Rate - Line and Transformation Connection Service Rate","$/kWh",{"$f":"VLOOKUP(A95,#REF!,9,FALSE)","v":{"$error":"#REF!"}},null,null,null,{"$error":"#REF!"}]
[null,null,null,null,null,null,null,1]
[null,"MONTHLY RATES AND CHARGES – Regulatory Component",null,null,null,null,null,1]
[null,null,null,null,null,null,null,1]
[null,"Wholesale Market Service Rate (WMS) - not including CBR","$/kWh",3.0000000000000001E-3,null,null,null,{"$f":"IF(D99=\"\",1,IF(D99=0,0,1))","v":1}]
[null,"Capacity Based Recovery (CBR) - Applicable for Class B Customers ","$/kWh",4.0000000000000002E-4,null,null,null,1]
[null,"Rural or Remote Electricity Rate Protection Charge (RRRP)","$/kWh",5.0000000000000001E-4,null,null,null,1]
[null,"Standard Supply Service - Administrative Charge (if applicable)","$",0.25,null,null,null,1]
[null,null,null,null,null,null,null,1]
[null,"GENERAL SERVICE 50 to 4,999 kW SERVICE CLASSIFICATION",null,null,null,null,null,1]
[null,null,null,null,null,null,null,1]
[null,"This classification refers to a non-residential account whose monthly average peak demand is equal to or greater than, or is forecast to be equal to or greater than, 50 kW but less than 5,000 kW, both regular and interval metered.  Class A and Class B consumers are defined in accordance with O. Reg. 429/04.  Further servicing details are available in the distributor’s Conditions of Service.",null,null,null,null,null,1]
[null,null,null,null,null,null,null,1]
[null,"APPLICATION",null,null,null,null,null,1]
[null,null,null,null,null,null,null,1]
[null,"The application of these rates and charges shall be in accordance with the Licence of the Distributor and any Code or Order of the Ontario Energy Board, and amendments thereto as approved by the Ontario Energy Board, which may be applicable to the administration of this schedule.",null,null,null,null,null,1]
[null,null,null,null,null,null,null,1]
[null,"No rates and charges for the distribution of electricity and charges to meet the costs of any work or service done or furnished for the purpose of the distribution of electricity shall be made except as permitted by this schedule, unless required by the Distributor’s Licence or a Code or Order of the Ontario Energy Board, and amendments thereto as approved by the Ontario Energy Board, or as specified herein.",null,null,null,null,null,1]
[null,null,null,null,null,null,null,1]
[null,"Unless specifically noted, this schedule does not contain any charges for the electricity commodity, be it under the Regulated Price Plan, a contract with a retailer or the wholesale market price, as applicable.  In addition, the charges in the MONTHLY RATES AND CHARGES – Regulatory Component of this schedule do not apply to a customer that is an embedded wholesale market participant.",null,null,null,null,null,1]
[null,null,null,null,null,null,null,1]
[null,"It should be noted that this schedule does not list any charges, assessments or credits that are required by law to be invoiced by a distributor and that are not subject to Ontario Energy Board approval, such as the Debt Retirement Charge, the Global Adjustment and the HST.",null,null,null,null,null,1]
[null,null,null,null,null,null,null,1]
[null,null,null,null,null,null,null,1]
[null,"MONTHLY RATES AND CHARGES – Delivery Component",null,null,null,null,null,1]
[null,null,null,null,null,null,null,1]
["GSG_F","Service Charge","$",{"$f":"VLOOKUP(A121,#REF!,9,FALSE)","v":{"$error":"#REF!"}},null,null,null,{"$error":"#REF!"}]
["GSG_ESMF","Rate Rider for Disposition of 2016 Earnings Sharing - effective until  April 30, 2019","$",{"$f":"VLOOKUP(A122,#REF!,9,FALSE)","v":{"$error":"#REF!"}},null,null,null,{"$error":"#REF!"}]
["GSG_FGF","Rate Rider for Recovery of 2019 Foregone Revenue - effective February 1, 2019 until  December 31, 2019","$",{"$f":"VLOOKUP(A123,#REF!,9,FALSE)","v":{"$error":"#REF!"}},null,null,null,{"$error":"#REF!"}]
["GSG_V","Distribution Volumetric Rate","$/kW",{"$f":"VLOOKUP(A124,#REF!,9,FALSE)","v":{"$error":"#REF!"}},null,null,null,{"$error":"#REF!"}]
["GSG_LV","Low Voltage Service Rate","$/kW",{"$f":"VLOOKUP(A125,#REF!,9,FALSE)","v":{"$error":"#REF!"}},null,null,null,{"$error":"#REF!"}]
["GSG_GA18","Rate Rider for Disposition of Global Adjustment Account (2018) - effective until  April 30, 2019\n        Applicable only for Non-RPP Customers","$/kWh",{"$f":"VLOOKUP(A126,#REF!,9,FALSE)","v":{"$error":"#REF!"}},null,null,null,{"$error":"#REF!"}]
["GSG_GA19","Rate Rider for Disposition of Global Adjustment Account (2019) - effective until  December 31, 2019\n        Applicable only for Non-RPP Customers","$/kWh",{"$f":"VLOOKUP(A127,#REF!,9,FALSE)","v":{"$error":"#REF!"}},null,null,null,{"$error":"#REF!"}]
["GSG_DVA18","Rate Rider for Disposition of Deferral/Variance Accounts (2018) - effective until April 30, 2019","$/kW",{"$f":"VLOOKUP(A128,#REF!,9,FALSE)","v":{"$error":"#REF!"}},null,null,null,{"$error":"#REF!"}]
["GSG_RAL18_non","Rate Rider for Disposition of Deferral/Variance Accounts (2018) - effective until April 30, 2019\n         Applicable only for Non-Wholesale Market Participants","$/kW",{"$f":"VLOOKUP(A129,#REF!,9,FALSE)","v":{"$error":"#REF!"}},null,null,null,{"$error":"#REF!"}]
["GSG_DVA19","Rate Rider for Disposition of Deferral/Variance Accounts (2019) - effective until December 31, 2019","$/kW",{"$f":"VLOOKUP(A130,#REF!,9,FALSE)","v":{"$error":"#REF!"}},null,null,null,{"$error":"#REF!"}]
["GSG_DVA19_nonWMP","Rate Rider for Disposition of Deferral/Variance Accounts (2019) - effective until December 31, 2019\n          Applicable only for Non-Wholesale Market Participants","$/kW",{"$f":"VLOOKUP(A131,#REF!,9,FALSE)","v":{"$error":"#REF!"}},null,null,null,{"$error":"#REF!"}]
["GSG_CBR18","Rate Rider for Disposition of Capacity Based Recovery Account (2018) - effective until  April 30, 2019\n          Applicable Only for Class B Customers","$/kW",{"$f":"VLOOKUP(A132,#REF!,9,FALSE)","v":{"$error":"#REF!"}},null,null,null,{"$error":"#REF!"}]
["GSG_CBR19","Rate Rider for Disposition of Capacity Based Recovery Account (2019) - effective until December 31, 2019\n        Applicable Only for Class B Customers","$/kW",{"$f":"VLOOKUP(A133,#REF!,9,FALSE)","v":{"$error":"#REF!"}},null,null,null,{"$error":"#REF!"}]
["GSG_ESMV","Rate Rider for Disposition of 2016 Earnings Sharing - effective until  April 30, 2019","$/kW",{"$f":"VLOOKUP(A134,#REF!,9,FALSE)","v":{"$error":"#REF!"}},null,null,null,{"$error":"#REF!"}]
["GSG_ESMV19","Rate Rider for Disposition of 2017 Earnings Sharing - effective until  December 31, 2019","$/kW",{"$f":"VLOOKUP(A135,#REF!,9,FALSE)","v":{"$error":"#REF!"}},null,null,null,{"$error":"#REF!"}]
["GSG_LRVA18","Rate Rider for Disposition of Lost Revenue Adjustment Mechanism Variance Account (LRAMVA) (2018) - effective until April 30, 2019","$/kW",{"$f":"VLOOKUP(A136,#REF!,9,FALSE)","v":{"$error":"#REF!"}},null,null,null,{"$error":"#REF!"}]
["GSG_LRVA19","Rate Rider for Disposition of Lost Revenue Adjustment Mechanism Variance Account (LRAMVA) (2019) - effective until December 31, 2019","$/kW",{"$f":"VLOOKUP(A137,#REF!,9,FALSE)","v":{"$error":"#REF!"}},null,null,null,{"$error":"#REF!"}]
["GSG_TN","Retail Transmission Rate - Network Service Rate","$/kW",{"$f":"VLOOKUP(A138,#REF!,9,FALSE)","v":{"$error":"#REF!"}},null,null,null,{"$error":"#REF!"}]
["GSG_TC","Retail Transmission Rate - Line and Transformation Connection Service Rate","$/kW",{"$f":"VLOOKUP(A139,#REF!,9,FALSE)","v":{"$error":"#REF!"}},null,null,null,{"$error":"#REF!"}]
[null,null,null,null,null,null,null,1]
[null,"MONTHLY RATES AND CHARGES – Regulatory Component",null,null,null,null,null,1]
[null,null,null,null,null,null,null,1]
[null,"Wholesale Market Service Rate (WMS) - not including CBR","$/kWh",3.0000000000000001E-3,null,null,null,1]
[null,"Capacity Based Recovery (CBR) - Applicable for Class B Customers ","$/kWh",4.0000000000000002E-4,null,null,null,1]
[null,"Rural or Remote Electricity Rate Protection Charge (RRRP)","$/kWh",5.0000000000000001E-4,null,null,null,1]
[null,"Standard Supply Service - Administrative Charge (if applicable)","$",0.25,null,null,null,1]
[null,null,null,null,null,null,null,1]
[null,"LARGE USE SERVICE CLASSIFICATION",null,null,null,null,null,1]
[null,null,null,null,null,null,null,1]
[null,"This classification refers to an account whose monthly average peak demand is equal to or greater than, or is forecast to be equal to or greater than, 5,000 kW.  Class A and Class B consumers are defined in accordance with O. Reg. 429/04.  Further servicing details are available in the distributor’s Conditions of Service.",null,null,null,null,null,1]
[null,null,null,null,null,null,null,1]
[null,"APPLICATION",null,null,null,null,null,1]
[null,null,null,null,null,null,null,1]
[null,"The application of these rates and charges shall be in accordance with the Licence of the Distributor and any Code or Order of the Ontario Energy Board, and amendments thereto as approved by the Ontario Energy Board, which may be applicable to the administration of this schedule.",null,null,null,null,null,1]
[null,null,null,null,null,null,null,1]
[null,"No rates and charges for the distribution of electricity and charges to meet the costs of any work or service done or furnished for the purpose of the distribution of electricity shall be made except as permitted by this schedule, unless required by the Distributor’s Licence or a Code or Order of the Ontario Energy Board, and amendments thereto as approved by the Ontario Energy Board, or as specified herein.",null,null,null,null,null,1]
[null,null,null,null,null,null,null,1]
[null,"Unless specifically noted, this schedule does not contain any charges for the electricity commodity, be it under the Regulated Price Plan, a contract with a retailer or the wholesale market price, as applicable.  In addition, the charges in the MONTHLY RATES AND CHARGES – Regulatory Component of this schedule do not apply to a customer that is an embedded wholesale market participant.",null,null,null,null,null,1]
[null,null,null,null,null,null,null,1]
[null,"It should be noted that this schedule does not list any charges, assessments or credits that are required by law to be invoiced by a distributor and that are not subject to Ontario Energy Board approval, such as the Debt Retirement Charge, the Global Adjustment and the HST.",null,null,null,null,null,{"$f":"IF(D160=\"\",1,IF(D160=0,0,1))","v":1}]
[null,null,null,null,null,null,null,1]
[null,"MONTHLY RATES AND CHARGES – Delivery Component",null,null,null,null,null,1]
[null,null,null,null,null,null,null,1]
["LU_F","Service Charge","$",{"$f":"VLOOKUP(A164,#REF!,9,FALSE)","v":{"$error":"#REF!"}},null,null,null,{"$error":"#REF!"}]
["LU_ESMF","Rate Rider for Disposition of 2016 Earnings Sharing - effective until  April 30, 2019","$",{"$f":"VLOOKUP(A165,#REF!,9,FALSE)","v":{"$error":"#REF!"}},null,null,null,{"$error":"#REF!"}]
["LU_FGF","Rate Rider for Recovery of 2019 Foregone Revenue - effective February 1, 2019 until  December 31, 2019","$",{"$f":"VLOOKUP(A166,#REF!,9,FALSE)","v":{"$error":"#REF!"}},null,null,null,{"$error":"#REF!"}]
["LU_V","Distribution Volumetric Rate","$/kW",{"$f":"VLOOKUP(A167,#REF!,9,FALSE)","v":{"$error":"#REF!"}},null,null,null,{"$error":"#REF!"}]
["LU_LV","Low Voltage Service Rate","$/kW",{"$f":"VLOOKUP(A168,#REF!,9,FALSE)","v":{"$error":"#REF!"}},null,null,null,{"$error":"#REF!"}]
["LU_GA18","Rate Rider for Disposition of Global Adjustment Account (2018) - effective until  April 30, 2019\n        Applicable only for Non-RPP Customers","$/kWh",{"$f":"VLOOKUP(A169,#REF!,9,FALSE)","v":{"$error":"#REF!"}},null,null,null,{"$error":"#REF!"}]
["LU_DVA18","Rate Rider for Disposition of Deferral/Variance Accounts (2018) - effective until April 30, 2019","$/kW",{"$f":"VLOOKUP(A170,#REF!,9,FALSE)","v":{"$error":"#REF!"}},null,null,null,{"$error":"#REF!"}]
["LU_RAL18_non","Rate Rider for Disposition of Deferral/Variance Accounts (2018) - effective until April 30, 2019\n         Applicable only for Non-Wholesale Market Participants","$/kW",{"$f":"VLOOKUP(A171,#REF!,9,FALSE)","v":{"$error":"#REF!"}},null,null,null,{"$error":"#REF!"}]
["LU_DVA19","Rate Rider for Disposition of Deferral/Variance Accounts (2019) - effective until December 31, 2019","$/kW",{"$f":"VLOOKUP(A172,#REF!,9,FALSE)","v":{"$error":"#REF!"}},null,null,null,{"$error":"#REF!"}]
["LU_DVA19_nonWMP","Rate Rider for Disposition of Deferral/Variance Accounts (2019) - effective until December 31, 2019\n          Applicable only for Non-Wholesale Market Participants","$/kW",{"$f":"VLOOKUP(A173,#REF!,9,FALSE)","v":{"$error":"#REF!"}},null,null,null,{"$error":"#REF!"}]
["LU_CBR18","Rate Rider for Disposition of Capacity Based Recovery Account (2018) - effective until  April 30, 2019\n          Applicable Only for Class B Customers","$/kW",{"$f":"VLOOKUP(A174,#REF!,9,FALSE)","v":{"$error":"#REF!"}},null,null,null,{"$error":"#REF!"}]
["LU_CBR19","Rate Rider for Disposition of Capacity Based Recovery Account (2019) - effective until December 31, 2019\n        Applicable Only for Class B Customers","$/kW",{"$f":"VLOOKUP(A175,#REF!,9,FALSE)","v":{"$error":"#REF!"}},null,null,null,{"$error":"#REF!"}]
["LU_ESMV","Rate Rider for Disposition of 2016 Earnings Sharing - effective until  April 30, 2019","$/kW",{"$f":"VLOOKUP(A176,#REF!,9,FALSE)","v":{"$error":"#REF!"}},null,null,null,{"$error":"#REF!"}]
["LU_ESMV19","Rate Rider for Disposition of 2017 Earnings Sharing - effective until  December 31, 2019","$/kW",{"$f":"VLOOKUP(A177,#REF!,9,FALSE)","v":{"$error":"#REF!"}},null,null,null,{"$error":"#REF!"}]
["LU_LRVA18","Rate Rider for Disposition of Lost Revenue Adjustment Mechanism Variance Account (LRAMVA) (2018) - effective until April 30, 2019","$/kW",{"$f":"VLOOKUP(A178,#REF!,9,FALSE)","v":{"$error":"#REF!"}},null,null,null,{"$error":"#REF!"}]
["LU_LRVA19","Rate Rider for Disposition of Lost Revenue Adjustment Mechanism Variance Account (LRAMVA) (2019) - effective until December 31, 2019","$/kW",{"$f":"VLOOKUP(A179,#REF!,9,FALSE)","v":{"$error":"#REF!"}},null,null,null,{"$error":"#REF!"}]
["LU_TN","Retail Transmission Rate - Network Service Rate","$/kW",{"$f":"VLOOKUP(A180,#REF!,9,FALSE)","v":{"$error":"#REF!"}},null,null,null,{"$error":"#REF!"}]
["LU_TC","Retail Transmission Rate - Line and Transformation Connection Service Rate","$/kW",{"$f":"VLOOKUP(A181,#REF!,9,FALSE)","v":{"$error":"#REF!"}},null,null,null,{"$error":"#REF!"}]
[null,null,null,null,null,null,null,1]
[null,"MONTHLY RATES AND CHARGES – Regulatory Component",null,null,null,null,null,1]
[null,null,null,null,null,null,null,1]
[null,"Wholesale Market Service Rate (WMS) - not including CBR","$/kWh",3.0000000000000001E-3,null,null,null,1]
[null,"Capacity Based Recovery (CBR) - Applicable for Class B Customers ","$/kWh",4.0000000000000002E-4,null,null,null,1]
[null,"Rural or Remote Electricity Rate Protection Charge (RRRP)","$/kWh",5.0000000000000001E-4,null,null,null,1]
[null,"Standard Supply Service - Administrative Charge (if applicable)","$",0.25,null,null,null,1]
[null,"LARGE USE WITH DEDICATED ASSETS SERVICE CLASSIFICATION",null,null,null,null,null,1]
[null,null,null,null,null,null,null,1]
[null,"This classification applies to an account where average monthly maximum demand used for billing purposes is equal to or greater than, or is forecast to be equal to or greater than, 5,000 kW and using dedicated assets.  Class A and Class B consumers are defined in accordance with O. Reg. 429/04.  Further servicing details are available in the distributor’s Conditions of Service.",null,null,null,null,null,1]
[null,null,null,null,null,null,null,1]
[null,"APPLICATION",null,null,null,null,null,1]
[null,null,null,null,null,null,null,1]
[null,"The application of these rates and charges shall be in accordance with the Licence of the Distributor and any Code or Order of the Ontario Energy Board, and amendments thereto as approved by the Ontario Energy Board, which may be applicable to the administration of this schedule.",null,null,null,null,null,1]
[null,null,null,null,null,null,null,1]
[null,"No rates and charges for the distribution of electricity and charges to meet the costs of any work or service done or furnished for the purpose of the distribution of electricity shall be made except as permitted by this schedule, unless required by the Distributor’s Licence or a Code or Order of the Ontario Energy Board, and amendments thereto as approved by the Ontario Energy Board, or as specified herein.",null,null,null,null,null,1]
[null,null,null,null,null,null,null,1]
[null,"Unless specifically noted, this schedule does not contain any charges for the electricity commodity, be it under the Regulated Price Plan, a contract with a retailer or the wholesale market price, as applicable.  In addition, the charges in the MONTHLY RATES AND CHARGES – Regulatory Component of this schedule do not apply to a customer that is an embedded wholesale market participant.",null,null,null,null,null,1]
[null,null,null,null,null,null,null,1]
[null,"It should be noted that this schedule does not list any charges, assessments or credits that are required by law to be invoiced by a distributor and that are not subject to Ontario Energy Board approval, such as the Debt Retirement Charge, the Global Adjustment and the HST.",null,null,null,null,null,1]
[null,null,null,null,null,null,null,1]
[null,"MONTHLY RATES AND CHARGES – Delivery Component",null,null,null,null,null,1]
[null,null,null,null,null,null,null,1]
["LUDA_F","Service Charge","$",{"$f":"VLOOKUP(A205,#REF!,9,FALSE)","v":{"$error":"#REF!"}},null,null,null,{"$error":"#REF!"}]
["LUDA_ESMF","Rate Rider for Disposition of 2016 Earnings Sharing - effective until  April 30, 2019","$",{"$f":"VLOOKUP(A206,#REF!,9,FALSE)","v":{"$error":"#REF!"}},null,null,null,{"$error":"#REF!"}]
["LUDA_FGF","Rate Rider for Recovery of 2019 Foregone Revenue - effective February 1, 2019 until  December 31, 2019","$",{"$f":"VLOOKUP(A207,#REF!,9,FALSE)","v":{"$error":"#REF!"}},null,null,null,{"$error":"#REF!"}]
["LUDA_V","Distribution Volumetric Rate","$/kW",{"$f":"VLOOKUP(A208,#REF!,9,FALSE)","v":{"$error":"#REF!"}},null,null,null,{"$error":"#REF!"}]
["LUDA_LV","Low Voltage Service Rate","$/kW",{"$f":"VLOOKUP(A209,#REF!,9,FALSE)","v":{"$error":"#REF!"}},null,null,null,{"$error":"#REF!"}]
["LUDA_DVA18","Rate Rider for Disposition of Deferral/Variance Accounts (2018) - effective until April 30, 2019","$/kW",{"$f":"VLOOKUP(A210,#REF!,9,FALSE)","v":{"$error":"#REF!"}},null,null,null,{"$error":"#REF!"}]
["LUDA_RAL18_non","Rate Rider for Disposition of Deferral/Variance Accounts (2018) - effective until April 30, 2019\n         Applicable only for Non-Wholesale Market Participants","$/kW",{"$f":"VLOOKUP(A211,#REF!,9,FALSE)","v":{"$error":"#REF!"}},null,null,null,{"$error":"#REF!"}]
["LUDA_DVA19","Rate Rider for Disposition of Deferral/Variance Accounts (2019) - effective until December 31, 2019","$/kW",{"$f":"VLOOKUP(A212,#REF!,9,FALSE)","v":{"$error":"#REF!"}},null,null,null,{"$error":"#REF!"}]
["LUDA_DVA19_nonWMP","Rate Rider for Disposition of Deferral/Variance Accounts (2019) - effective until December 31, 2019\n          Applicable only for Non-Wholesale Market Participants","$/kW",{"$f":"VLOOKUP(A213,#REF!,9,FALSE)","v":{"$error":"#REF!"}},null,null,null,{"$error":"#REF!"}]
["LUDA_CBR19","Rate Rider for Disposition of Capacity Based Recovery Account (2019) - effective until December 31, 2019\n        Applicable Only for Class B Customers","$/kW",{"$f":"VLOOKUP(A214,#REF!,9,FALSE)","v":{"$error":"#REF!"}},null,null,null,{"$error":"#REF!"}]
["LUDA_ESMV","Rate Rider for Disposition of 2016 Earnings Sharing - effective until  April 30, 2019","$/kW",{"$f":"VLOOKUP(A215,#REF!,9,FALSE)","v":{"$error":"#REF!"}},null,null,null,{"$error":"#REF!"}]
["LUDA_ESMV19","Rate Rider for Disposition of 2017 Earnings Sharing - effective until  December 31, 2019","$/kW",{"$f":"VLOOKUP(A216,#REF!,9,FALSE)","v":{"$error":"#REF!"}},null,null,null,{"$error":"#REF!"}]
["LUDA_LRVA18","Rate Rider for Disposition of Lost Revenue Adjustment Mechanism Variance Account (LRAMVA) (2018) - effective until April 30, 2019","$/kW",{"$f":"VLOOKUP(A217,#REF!,9,FALSE)","v":{"$error":"#REF!"}},null,null,null,{"$error":"#REF!"}]
["LUDA_LRVA19","Rate Rider for Disposition of Lost Revenue Adjustment Mechanism Variance Account (LRAMVA) (2019) - effective until December 31, 2019","$/kW",{"$f":"VLOOKUP(A218,#REF!,9,FALSE)","v":{"$error":"#REF!"}},null,null,null,{"$f":"IF(D218=\"\",1,IF(D218=0,0,1))","v":{"$error":"#REF!"}}]
["LUDA_TN","Retail Transmission Rate - Network Service Rate","$/kW",{"$f":"VLOOKUP(A219,#REF!,9,FALSE)","v":{"$error":"#REF!"}},null,null,null,{"$error":"#REF!"}]
["LUDA_TC","Retail Transmission Rate - Line and Transformation Connection Service Rate","$/kW",{"$f":"VLOOKUP(A220,#REF!,9,FALSE)","v":{"$error":"#REF!"}},null,null,null,{"$error":"#REF!"}]
[null,null,null,null,null,null,null,1]
[null,"MONTHLY RATES AND CHARGES – Regulatory Component",null,null,null,null,null,1]
[null,null,null,null,null,null,null,1]
[null,"Wholesale Market Service Rate (WMS) - not including CBR","$/kWh",3.0000000000000001E-3,null,null,null,1]
[null,"Capacity Based Recovery (CBR) - Applicable for Class B Customers ","$/kWh",4.0000000000000002E-4,null,null,null,1]
[null,"Rural or Remote Electricity Rate Protection Charge (RRRP)","$/kWh",5.0000000000000001E-4,null,null,null,1]
[null,"Standard Supply Service - Administrative Charge (if applicable)","$",0.25,null,null,null,1]
[null,null,null,null,null,null,null,1]
[null,"STANDBY POWER SERVICE CLASSIFICATION ",null,null,null,null,null,1]
[null,"This classification refers to an account that has Load Displacement Generation and requires the distributor to provide back-up service.  Further servicing details are available in the distributor’s Conditions of Service.",null,null,null,null,null,1]
[null,null,null,null,null,null,null,1]
[null,"APPLICATION",null,null,null,null,null,1]
[null,null,null,null,null,null,null,1]
[null,"The application of these rates and charges shall be in accordance with the Licence of the Distributor and any Code or Order of the Ontario Energy Board, and amendments thereto as approved by the Ontario Energy Board, which may be applicable to the administration of this schedule.",null,null,null,null,null,1]
[null,null,null,null,null,null,null,1]
[null,"No rates and charges for the distribution of electricity and charges to meet the costs of any work or service done or furnished for the purpose of the distribution of electricity shall be made except as permitted by this schedule, unless required by the Distributor’s Licence or a Code or Order of the Ontario Energy Board, and amendments thereto as approved by the Ontario Energy Board, or as specified herein.",null,null,null,null,null,1]
[null,null,null,null,null,null,null,1]
[null,"Unless specifically noted, this schedule does not contain any charges for the electricity commodity, be it under the Regulated Price Plan, a contract with a retailer or the wholesale market price, as applicable.",null,null,null,null,null,1]
[null,null,null,null,null,null,null,1]
[null,"It should be noted that this schedule does not list any charges, assessments or credits that are required by law to be invoiced by a distributor and that are not subject to Ontario Energy Board approval, such as the Debt Retirement Charge, the Global Adjustment and the HST.",null,null,null,null,null,1]
[null,null,null,null,null,null,null,1]
[null,"MONTHLY RATES AND CHARGES – Delivery Component - APPROVED ON AN INTERIM BASIS",null,null,null,null,null,1]
[null,null,null,null,null,null,null,1]
[null,"GS>50 Standby Charge - for a month where standby power is not provided.  The charge is applied to the amount of reserved load transfer capacity contracted or the amount of monthly peak load displaced by a generating facility.","$/kW",2.6139000000000001,null,null,null,1]
[null,"Large Use Standby Charge - for a month where standby power is not provided.  The charge is applied to the amount of reserved load transfer capacity contracted or the amount of monthly peak load displaced by a generating facility.","$/kW",1.4318,null,null,null,1]
[null,"Large Use with Dedicated Assets Standby Charge - for a month where standby power is not provided.  The charge is applied to the amount of reserved load transfer capacity contracted or the amount of monthly peak load displaced by a generating facility.","$/kW",0.33939999999999998,null,null,null,1]
[null,null,null,null,null,null,null,1]
[null,"UNMETERED SCATTERED LOAD SERVICE CLASSIFICATION",null,null,null,null,null,1]
[null,null,null,null,null,null,null,1]
[null,"This classification applies to safety/security lighting with a Residential, General Service or Large Use customer.  This is typically exterior lighting, and often unmetered.  Consumption is estimated based on the equipment rating and estimated hours of use.  Class B consumers are defined in accordance with O. Reg. 429/04. Further servicing details are available in the distributor’s Conditions of Service.",null,null,null,null,null,1]
[null,null,null,null,null,null,null,1]
[null,"APPLICATION",null,null,null,null,null,1]
[null,null,null,null,null,null,null,1]
[null,"The application of these rates and charges shall be in accordance with the Licence of the Distributor and any Code or Order of the Ontario Energy Board, and amendments thereto as approved by the Ontario Energy Board, which may be applicable to the administration of this schedule.",null,null,null,null,null,1]
[null,null,null,null,null,null,null,1]
[null,"No rates and charges for the distribution of electricity and charges to meet the costs of any work or service done or furnished for the purpose of the distribution of electricity shall be made except as permitted by this schedule, unless required by the Distributor’s Licence or a Code or Order of the Ontario Energy Board, and amendments thereto as approved by the Ontario Energy Board, or as specified herein.",null,null,null,null,null,1]
[null,null,null,null,null,null,null,1]
[null,"Unless specifically noted, this schedule does not contain any charges for the electricity commodity, be it under the Regulated Price Plan, a contract with a retailer or the wholesale market price, as applicable.  In addition, the charges in the MONTHLY RATES AND CHARGES – Regulatory Component of this schedule do not apply to a customer that is an embedded wholesale market participant.",null,null,null,null,null,1]
[null,null,null,null,null,null,null,1]
[null,"MONTHLY RATES AND CHARGES – Delivery Component",null,null,null,null,null,1]
[null,null,null,null,null,null,null,1]
["USL_F","Service Charge","$",{"$f":"VLOOKUP(A262,#REF!,9,FALSE)","v":{"$error":"#REF!"}},null,null,null,{"$error":"#REF!"}]
["USL_ESMF","Rate Rider for Disposition of 2016 Earnings Sharing - effective until  April 30, 2019","$",{"$f":"VLOOKUP(A263,#REF!,9,FALSE)","v":{"$error":"#REF!"}},null,null,null,{"$error":"#REF!"}]
["USL_FGF","Rate Rider for Recovery of 2019 Foregone Revenue - effective February 1, 2019 until  December 31, 2019","$",{"$f":"VLOOKUP(A264,#REF!,9,FALSE)","v":{"$error":"#REF!"}},null,null,null,{"$error":"#REF!"}]
["USL_V","Distribution Volumetric Rate","$/kWh",{"$f":"VLOOKUP(A265,#REF!,9,FALSE)","v":{"$error":"#REF!"}},null,null,null,{"$error":"#REF!"}]
["USL_LV","Low Voltage Service Rate","$/kWh",{"$f":"VLOOKUP(A266,#REF!,9,FALSE)","v":{"$error":"#REF!"}},null,null,null,{"$error":"#REF!"}]
["USL_GA18","Rate Rider for Disposition of Global Adjustment Account (2018) - effective until  April 30, 2019\n        Applicable only for Non-RPP Customers","$/kWh",{"$f":"VLOOKUP(A267,#REF!,9,FALSE)","v":{"$error":"#REF!"}},null,null,null,{"$error":"#REF!"}]
["USL_GA19","Rate Rider for Disposition of Global Adjustment Account (2019) - effective until  December 31, 2019\n        Applicable only for Non-RPP Customers","$/kWh",{"$f":"VLOOKUP(A268,#REF!,9,FALSE)","v":{"$error":"#REF!"}},null,null,null,{"$error":"#REF!"}]
["USL_DVA18","Rate Rider for Disposition of Deferral/Variance Accounts (2018) - effective until April 30, 2019","$/kWh",{"$f":"VLOOKUP(A269,#REF!,9,FALSE)","v":{"$error":"#REF!"}},null,null,null,{"$error":"#REF!"}]
["USL_DVA19","Rate Rider for Disposition of Deferral/Variance Accounts (2019) - effective until December 31, 2019","$/kWh",{"$f":"VLOOKUP(A270,#REF!,9,FALSE)","v":{"$error":"#REF!"}},null,null,null,{"$error":"#REF!"}]
["USL_CBR18","Rate Rider for Disposition of Capacity Based Recovery Account (2018) - effective until  April 30, 2019\n          Applicable Only for Class B Customers","$/kWh",{"$f":"VLOOKUP(A271,#REF!,9,FALSE)","v":{"$error":"#REF!"}},null,null,null,{"$error":"#REF!"}]
["USL_CBR19","Rate Rider for Disposition of Capacity Based Recovery Account (2019) - effective until December 31, 2019\n        Applicable Only for Class B Customers","$/kWh",{"$f":"VLOOKUP(A272,#REF!,9,FALSE)","v":{"$error":"#REF!"}},null,null,null,{"$error":"#REF!"}]
["USL_ESMV","Rate Rider for Disposition of 2016 Earnings Sharing - effective until  April 30, 2019","$/kWh",{"$f":"VLOOKUP(A273,#REF!,9,FALSE)","v":{"$error":"#REF!"}},null,null,null,{"$error":"#REF!"}]
["USL_ESMV19","Rate Rider for Disposition of 2017 Earnings Sharing - effective until  December 31, 2019","$/kWh",{"$f":"VLOOKUP(A274,#REF!,9,FALSE)","v":{"$error":"#REF!"}},null,null,null,{"$error":"#REF!"}]
["USL_TN","Retail Transmission Rate - Network Service Rate","$/kWh",{"$f":"VLOOKUP(A275,#REF!,9,FALSE)","v":{"$error":"#REF!"}},null,null,null,{"$error":"#REF!"}]
["USL_TC","Retail Transmission Rate - Line and Transformation Connection Service Rate","$/kWh",{"$f":"VLOOKUP(A276,#REF!,9,FALSE)","v":{"$error":"#REF!"}},null,null,null,{"$error":"#REF!"}]
[null,null,null,null,null,null,null,1]
[null,"MONTHLY RATES AND CHARGES – Regulatory Component",null,null,null,null,null,1]
[null,null,null,null,null,null,null,{"$f":"IF(D279=\"\",1,IF(D279=0,0,1))","v":1}]
[null,"Wholesale Market Service Rate (WMS) - not including CBR","$/kWh",3.0000000000000001E-3,null,null,null,1]
[null,"Capacity Based Recovery (CBR) - Applicable for Class B Customers ","$/kWh",4.0000000000000002E-4,null,null,null,1]
[null,"Rural or Remote Electricity Rate Protection Charge (RRRP)","$/kWh",5.0000000000000001E-4,null,null,null,1]
[null,"Standard Supply Service - Administrative Charge (if applicable)","$",0.25,null,null,null,1]
[null,null,null,null,null,null,null,1]
[null,"SENTINEL LIGHTING SERVICE CLASSIFICATION",null,null,null,null,null,1]
[null,"This classification refers to an unmetered lighting load supplied to a sentinel light.  Class B consumers are defined in accordance with O. Reg. 429/04.  Further servicing details are available in the distributor’s Conditions of Service.",null,null,null,null,null,1]
[null,null,null,null,null,null,null,1]
[null,"APPLICATION",null,null,null,null,null,1]
[null,null,null,null,null,null,null,1]
[null,"The application of these rates and charges shall be in accordance with the Licence of the Distributor and any Code or Order of the Ontario Energy Board, and amendments thereto as approved by the Ontario Energy Board, which may be applicable to the administration of this schedule.",null,null,null,null,null,1]
[null,null,null,null,null,null,null,1]
[null,"No rates and charges for the distribution of electricity and charges to meet the costs of any work or service done or furnished for the purpose of the distribution of electricity shall be made except as permitted by this schedule, unless required by the Distributor’s Licence or a Code or Order of the Ontario Energy Board, and amendments thereto as approved by the Ontario Energy Board, or as specified herein.",null,null,null,null,null,1]
[null,null,null,null,null,null,null,1]
[null,"Unless specifically noted, this schedule does not contain any charges for the electricity commodity, be it under the Regulated Price Plan, a contract with a retailer or the wholesale market price, as applicable.  In addition, the charges in the MONTHLY RATES AND CHARGES – Regulatory Component of this schedule do not apply to a customer that is an embedded wholesale market participant.",null,null,null,null,null,1]
[null,null,null,null,null,null,null,1]
[null,"It should be noted that this schedule does not list any charges, assessments or credits that are required by law to be invoiced by a distributor and that are not subject to Ontario Energy Board approval, such as the Debt Retirement Charge, the Global Adjustment and the HST.",null,null,null,null,null,1]
[null,null,null,null,null,null,null,1]
[null,"MONTHLY RATES AND CHARGES – Delivery Component",null,null,null,null,null,1]
[null,null,null,null,null,null,null,1]
["SEN_F","Service Charge (per Connection)","$",{"$f":"VLOOKUP(A300,#REF!,9,FALSE)","v":{"$error":"#REF!"}},null,null,null,{"$error":"#REF!"}]
["SEN_ESMF","Rate Rider for Disposition of 2016 Earnings Sharing - effective until  April 30, 2019","$",{"$f":"VLOOKUP(A301,#REF!,9,FALSE)","v":{"$error":"#REF!"}},null,null,null,{"$error":"#REF!"}]
["SEN_FGF","Rate Rider for Recovery of 2019 Foregone Revenue - effective February 1, 2019 until  December 31, 2019","$",{"$f":"VLOOKUP(A302,#REF!,9,FALSE)","v":{"$error":"#REF!"}},null,null,null,{"$error":"#REF!"}]
["SEN_V","Distribution Volumetric Rate","$/kW",{"$f":"VLOOKUP(A303,#REF!,9,FALSE)","v":{"$error":"#REF!"}},null,null,null,{"$error":"#REF!"}]
["SEN_LV","Low Voltage Service Rate","$/kW",{"$f":"VLOOKUP(A304,#REF!,9,FALSE)","v":{"$error":"#REF!"}},null,null,null,{"$error":"#REF!"}]
["SEN_GA18","Rate Rider for Disposition of Global Adjustment Account (2018) - effective until  April 30, 2019\n        Applicable only for Non-RPP Customers","$/kWh",{"$f":"VLOOKUP(A305,#REF!,9,FALSE)","v":{"$error":"#REF!"}},null,null,null,{"$error":"#REF!"}]
["SEN_GA19","Rate Rider for Disposition of Global Adjustment Account (2019) - effective until  December 31, 2019\n        Applicable only for Non-RPP Customers","$/kWh",{"$f":"VLOOKUP(A306,#REF!,9,FALSE)","v":{"$error":"#REF!"}},null,null,null,{"$error":"#REF!"}]
["SEN_DVA18","Rate Rider for Disposition of Deferral/Variance Accounts (2018) - effective until April 30, 2019","$/kW",{"$f":"VLOOKUP(A307,#REF!,9,FALSE)","v":{"$error":"#REF!"}},null,null,null,{"$error":"#REF!"}]
["SEN_DVA19","Rate Rider for Disposition of Deferral/Variance Accounts (2019) - effective until December 31, 2019","$/kW",{"$f":"VLOOKUP(A308,#REF!,9,FALSE)","v":{"$error":"#REF!"}},null,null,null,{"$error":"#REF!"}]
["SEN_CBR18","Rate Rider for Disposition of Capacity Based Recovery Account (2018) - effective until  April 30, 2019\n          Applicable Only for Class B Customers","$/kW",{"$f":"VLOOKUP(A309,#REF!,9,FALSE)","v":{"$error":"#REF!"}},null,null,null,{"$error":"#REF!"}]
["SEN_CBR19","Rate Rider for Disposition of Capacity Based Recovery Account (2019) - effective until December 31, 2019\n        Applicable Only for Class B Customers","$/kW",{"$f":"VLOOKUP(A310,#REF!,9,FALSE)","v":{"$error":"#REF!"}},null,null,null,{"$error":"#REF!"}]
["SEN_ESMV","Rate Rider for Disposition of 2016 Earnings Sharing - effective until  April 30, 2019","$/kW",{"$f":"VLOOKUP(A311,#REF!,9,FALSE)","v":{"$error":"#REF!"}},null,null,null,{"$error":"#REF!"}]
["SEN_ESMV19","Rate Rider for Disposition of 2017 Earnings Sharing - effective until  December 31, 2019","$/kW",{"$f":"VLOOKUP(A312,#REF!,9,FALSE)","v":{"$error":"#REF!"}},null,null,null,{"$error":"#REF!"}]
["SEN_TN","Retail Transmission Rate - Network Service Rate","$/kW",{"$f":"VLOOKUP(A313,#REF!,9,FALSE)","v":{"$error":"#REF!"}},null,null,null,{"$error":"#REF!"}]
["SEN_TC","Retail Transmission Rate - Line and Transformation Connection Service Rate","$/kW",{"$f":"VLOOKUP(A314,#REF!,9,FALSE)","v":{"$error":"#REF!"}},null,null,null,{"$error":"#REF!"}]
[null,null,null,null,null,null,null,1]
[null,"MONTHLY RATES AND CHARGES – Regulatory Component",null,null,null,null,null,1]
[null,null,null,null,null,null,null,1]
[null,"Wholesale Market Service Rate (WMS) - not including CBR","$/kWh",3.0000000000000001E-3,null,null,null,1]
[null,"Capacity Based Recovery (CBR) - Applicable for Class B Customers ","$/kWh",4.0000000000000002E-4,null,null,null,1]
[null,"Rural or Remote Electricity Rate Protection Charge (RRRP)","$/kWh",5.0000000000000001E-4,null,null,null,1]
[null,"Standard Supply Service - Administrative Charge (if applicable)","$",0.25,null,null,null,1]
[null,null,null,null,null,null,null,1]
[null,"STREET LIGHTING SERVICE CLASSIFICATION",null,null,null,null,null,1]
[null,"This classification applies to an account for roadway lighting with a Municipality, Regional Municipality, Ministry of Transportation and private roadway lighting operation, controlled by photo cells.  The consumption for these customers will be based on the calculated connected load times the required lighting times established in the approved Ontario Energy Board street lighting load shape template.  Class B consumers are defined in accordance with O. Reg. 429/04.  Further servicing details are available in the distributor’s Conditions of Service.",null,null,null,null,null,1]
[null,null,null,null,null,null,null,1]
[null,"APPLICATION",null,null,null,null,null,1]
[null,null,null,null,null,null,null,1]
[null,"The application of these rates and charges shall be in accordance with the Licence of the Distributor and any Code or Order of the Ontario Energy Board, and amendments thereto as approved by the Ontario Energy Board, which may be applicable to the administration of this schedule.",null,null,null,null,null,1]
[null,null,null,null,null,null,null,1]
[null,"No rates and charges for the distribution of electricity and charges to meet the costs of any work or service done or furnished for the purpose of the distribution of electricity shall be made except as permitted by this schedule, unless required by the Distributor’s Licence or a Code or Order of the Ontario Energy Board, and amendments thereto as approved by the Ontario Energy Board, or as specified herein.",null,null,null,null,null,1]
[null,null,null,null,null,null,null,1]
[null,"Unless specifically noted, this schedule does not contain any charges for the electricity commodity, be it under the Regulated Price Plan, a contract with a retailer or the wholesale market price, as applicable.  In addition, the charges in the MONTHLY RATES AND CHARGES – Regulatory Component of this schedule do not apply to a customer that is an embedded wholesale market participant.",null,null,null,null,null,1]
[null,null,null,null,null,null,null,1]
[null,"It should be noted that this schedule does not list any charges, assessments or credits that are required by law to be invoiced by a distributor and that are not subject to Ontario Energy Board approval, such as the Debt Retirement Charge, the Global Adjustment and the HST.",null,null,null,null,null,1]
[null,null,null,null,null,null,null,1]
[null,"MONTHLY RATES AND CHARGES – Delivery Component",null,null,null,null,null,1]
[null,null,null,null,null,null,null,1]
["SL_F","Service Charge (per  Connection)","$",{"$f":"VLOOKUP(A338,#REF!,9,FALSE)","v":{"$error":"#REF!"}},null,null,null,{"$error":"#REF!"}]
["SL_ESMF","Rate Rider for Disposition of 2016 Earnings Sharing - effective until  April 30, 2019","$",{"$f":"VLOOKUP(A339,#REF!,9,FALSE)","v":{"$error":"#REF!"}},null,null,null,{"$error":"#REF!"}]
["SL_FGF","Rate Rider for Recovery of 2019 Foregone Revenue - effective February 1, 2019 until  December 31, 2019","$",{"$f":"VLOOKUP(A340,#REF!,9,FALSE)","v":{"$error":"#REF!"}},null,null,null,{"$error":"#REF!"}]
["SL_V","Distribution Volumetric Rate","$/kW",{"$f":"VLOOKUP(A341,#REF!,9,FALSE)","v":{"$error":"#REF!"}},null,null,null,{"$f":"IF(D341=\"\",1,IF(D341=0,0,1))","v":{"$error":"#REF!"}}]
["SL_LV","Low Voltage Service Rate","$/kW",{"$f":"VLOOKUP(A342,#REF!,9,FALSE)","v":{"$error":"#REF!"}},null,null,null,{"$error":"#REF!"}]
["SL_GA18","Rate Rider for Disposition of Global Adjustment Account (2018) - effective until  April 30, 2019\n        Applicable only for Non-RPP Customers","$/kWh",{"$f":"VLOOKUP(A343,#REF!,9,FALSE)","v":{"$error":"#REF!"}},null,null,null,{"$error":"#REF!"}]
["SL_GA19","Rate Rider for Disposition of Global Adjustment Account (2019) - effective until  December 31, 2019\n        Applicable only for Non-RPP Customers","$/kWh",{"$f":"VLOOKUP(A344,#REF!,9,FALSE)","v":{"$error":"#REF!"}},null,null,null,{"$error":"#REF!"}]
["SL_DVA18","Rate Rider for Disposition of Deferral/Variance Accounts (2018) - effective until April 30, 2019","$/kW",{"$f":"VLOOKUP(A345,#REF!,9,FALSE)","v":{"$error":"#REF!"}},null,null,null,{"$error":"#REF!"}]
["SL_DVA19","Rate Rider for Disposition of Deferral/Variance Accounts (2019) - effective until December 31, 2019","$/kW",{"$f":"VLOOKUP(A346,#REF!,9,FALSE)","v":{"$error":"#REF!"}},null,null,null,{"$error":"#REF!"}]
["SL_CBR18","Rate Rider for Disposition of Capacity Based Recovery Account (2018) - effective until  April 30, 2019\n          Applicable Only for Class B Customers","$/kW",{"$f":"VLOOKUP(A347,#REF!,9,FALSE)","v":{"$error":"#REF!"}},null,null,null,{"$error":"#REF!"}]
["SL_CBR19","Rate Rider for Disposition of Capacity Based Recovery Account (2019) - effective until December 31, 2019\n        Applicable Only for Class B Customers","$/kW",{"$f":"VLOOKUP(A348,#REF!,9,FALSE)","v":{"$error":"#REF!"}},null,null,null,{"$error":"#REF!"}]
["SL_ESMV","Rate Rider for Disposition of 2016 Earnings Sharing - effective until  April 30, 2019","$/kW",{"$f":"VLOOKUP(A349,#REF!,9,FALSE)","v":{"$error":"#REF!"}},null,null,null,{"$error":"#REF!"}]
["SL_ESMV19","Rate Rider for Disposition of 2017 Earnings Sharing - effective until  December 31, 2019","$/kW",{"$f":"VLOOKUP(A350,#REF!,9,FALSE)","v":{"$error":"#REF!"}},null,null,null,{"$error":"#REF!"}]
["SL_LRVA18","Rate Rider for Disposition of Lost Revenue Adjustment Mechanism Variance Account (LRAMVA) (2018) - effective until April 30, 2019","$/kW",{"$f":"VLOOKUP(A351,#REF!,9,FALSE)","v":{"$error":"#REF!"}},null,null,null,{"$error":"#REF!"}]
["SL_LRVA19","Rate Rider for Disposition of Lost Revenue Adjustment Mechanism Variance Account (LRAMVA) (2019) - effective until December 31, 2019","$/kW",{"$f":"VLOOKUP(A352,#REF!,9,FALSE)","v":{"$error":"#REF!"}},null,null,null,{"$error":"#REF!"}]
["SL_TN","Retail Transmission Rate - Network Service Rate","$/kW",{"$f":"VLOOKUP(A353,#REF!,9,FALSE)","v":{"$error":"#REF!"}},null,null,null,{"$error":"#REF!"}]
["SL_TC","Retail Transmission Rate - Line and Transformation Connection Service Rate","$/kW",{"$f":"VLOOKUP(A354,#REF!,9,FALSE)","v":{"$error":"#REF!"}},null,null,null,{"$error":"#REF!"}]
[null,null,null,null,null,null,null,1]
[null,"MONTHLY RATES AND CHARGES – Regulatory Component",null,null,null,null,null,1]
[null,null,null,null,null,null,null,1]
[null,"Wholesale Market Service Rate (WMS) - not including CBR","$/kWh",3.0000000000000001E-3,null,null,null,1]
[null,"Capacity Based Recovery (CBR) - Applicable for Class B Customers ","$/kWh",4.0000000000000002E-4,null,null,null,1]
[null,"Rural or Remote Electricity Rate Protection Charge (RRRP)","$/kWh",5.0000000000000001E-4,null,null,null,1]
[null,"Standard Supply Service - Administrative Charge (if applicable)","$",0.25,null,null,null,1]
[null,null,null,null,null,null,null,1]
[null,"MicroFIT SERVICE CLASSIFICATION",null,null,null,null,null,1]
[null,null,null,null,null,null,null,1]
[null,"This classification applies to an electricity generation facility contracted under the Independent Electricity System Operator’s microFIT program and connected to the distributor’s distribution system.  Further servicing details are available in the distributor’s Conditions of Service.",null,null,null,null,null,1]
[null,null,null,null,null,null,null,1]
[null,"APPLICATION",null,null,null,null,null,1]
[null,null,null,null,null,null,null,1]
[null,"The application of these rates and charges shall be in accordance with the Licence of the Distributor and any Code or Order of the Ontario Energy Board, and amendments thereto as approved by the Ontario Energy Board, which may be applicable to the administration of this schedule.",null,null,null,null,null,1]
[null,null,null,null,null,null,null,1]
[null,"No rates and charges for the distribution of electricity and charges to meet the costs of any work or service done or furnished for the purpose of the distribution of electricity shall be made except as permitted by this schedule, unless required by the Distributor’s Licence or a Code or Order of the Ontario Energy Board, and amendments thereto as approved by the Ontario Energy Board, or as specified herein.",null,null,null,null,null,1]
[null,null,null,null,null,null,null,1]
[null,"Unless specifically noted, this schedule does not contain any charges for the electricity commodity, be it under the Regulated Price Plan, a contract with a retailer or the wholesale market price, as applicable.",null,null,null,null,null,1]
[null,null,null,null,null,null,null,1]
[null,"It should be noted that this schedule does not list any charges, assessments or credits that are required by law to be invoiced by a distributor and that are not subject to Ontario Energy Board approval, such as the Debt Retirement Charge, the Global Adjustment and the HST. ",null,null,null,null,null,1]
[null,null,null,null,null,null,null,1]
[null,"MONTHLY RATES AND CHARGES – Delivery Component ",null,null,null,null,null,1]
[null,null,null,null,null,null,null,1]
[null,"Service Charge","$",5.4,null,null,null,1]
[null,null,null,null,null,null,null,1]
[null,null,null,null,null,null,null,1]
[null,null,null,null,null,null,null,1]
[null,"ALLOWANCES","ALLOWANCES",null,null,null,null,1]
[null,null,null,null,null,null,null,1]
[null,"Transformer Allowance for Ownership - per kW of billing demand","$/kW",-0.73,null,null,null,1]
[null,"Primary Metering Allowance for Transformer Losses - applied to measured demand & energy","%",-1,null,null,null,1]
[null,null,null,null,null,null,null,1]
[null,null,null,null,null,null,null,1]
[null,"SPECIFIC SERVICE CHARGES",null,null,null,null,null,1]
[null,null,null,null,null,null,null,1]
[null,"The application of these rates and charges shall be in accordance with the Licence of the Distributor and any Code or Order of the Ontario Energy Board, and amendments thereto as approved by the Ontario Energy Board, which may be applicable to the administration of this schedule.",null,null,null,null,null,1]
[null,null,null,null,null,null,null,1]
[null,"No charges to meet the costs of any work or service done or furnished for the purpose of the distribution of electricity shall be made except as permitted by this schedule, unless required by the Distributor’s Licence or a Code or Order of the Ontario Energy Board, and amendments thereto as approved by the Ontario Energy Board, or as specified herein.",null,null,null,null,null,1]
[null,null,null,null,null,null,null,1]
[null,"It should be noted that this schedule does not list any charges, assessments or credits that are required by law to be invoiced by a distributor and that are not subject to Ontario Energy Board approval, such as the Debt Retirement Charge, the Global Adjustment and the HST.",null,null,null,null,null,1]
[null,null,null,null,null,null,null,1]
[null,"Customer Administration","Customer Administration",null,null,null,null,1]
[null,null,null,null,null,null,null,1]
[null,"     Arrears certificate","$",15,null,null,null,1]
[null,"     Statement of Account","$",15,null,null,null,1]
[null,"     Pulling of post dated cheques","$",15,null,null,null,1]
[null,"     Duplicate invoices for previous  billing","$",15,null,null,null,1]
[null,"     Request for other billing information","$",15,null,null,null,1]
[null,"     Easement letter","$",15,null,null,null,1]
[null,"     Income tax letter","$",15,null,null,null,{"$f":"IF(D405=\"\",1,IF(D405=0,0,1))","v":1}]
[null,"     Notification charge","$",15,null,null,null,1]
[null,"     Account history","$",15,null,null,null,1]
[null,"     Returned cheque charge (plus bank charges)","$",15,null,null,null,1]
[null,"     Charge to certify cheque","$",15,null,null,null,1]
[null,"     Legal letter charge","$",15,null,null,null,1]
[null,"     Account set up charge/change of occupancy charge (plus credit agency costs if applicable)","$",30,null,null,null,1]
[null,"     Special meter reads","$",30,null,null,null,1]
[null,"     Meter dispute charge plus Measurement Canada fees (if meter found correct)","$",30,null,null,null,1]
[null,"     Credit card convenience charge","$",15,null,null,null,1]
[null,"     Credit check (plus credit agency costs)","$",15,null,null,null,1]
[null,null,null,null,null,null,null,1]
[null,"Non-Payment of Account","Non-Payment of Account",null,null,null,null,1]
[null,null,null,null,null,null,null,1]
[null,"     Late Payment – per month","%",1.5,null,null,null,1]
[null,"     Late Payment – per annum","%",19.559999999999999,null,null,null,1]
[null,"     Collection of account charge – no disconnection","$",30,null,null,null,1]
[null,"     Collection of account charge – no disconnection - after regular hours","$",165,null,null,null,1]
[null,"     Disconnect/Reconnect at meter – during regular hours","$",65,null,null,null,1]
[null,"     Disconnect/Reconnect at meter – after regular hours","$",185,null,null,null,1]
[null,"     Disconnect/Reconnect at pole – during regular hours","$",185,null,null,null,1]
[null,"     Disconnect/Reconnect at pole – after regular hours","$",415,null,null,null,1]
[null,"     Install/Remove load control device – during regular hours","$",65,null,null,null,1]
[null,"     Install/Remove load control device – after regular hours","$",185,null,null,null,1]
[null,null,null,null,null,null,null,1]
[null,"Other","Other",null,null,null,null,1]
[null,null,null,null,null,null,null,1]
[null,"     Service call - customer owned equipment","$",30,null,null,null,1]
[null,"     Service call - after regular hours","$",165,null,null,null,1]
[null,"     Temporary service - install and remove - overhead - no transformer","$",500,null,null,null,1]
[null,"     Temporary service - install and remove - underground - no transformer","$",300,null,null,null,1]
[null,"     Temporary service - install and remove - overhead - with transformer","$",1000,null,null,null,1]
[null,"     Specific Charge for Access to the Power Poles - $/pole/year (with the exception of wireless attachments) - in effect from January 1, 2019","$",43.63,null,null,null,1]
[null,"     Administrative Billing Charge","$",150,null,null,null,1]
[null,null,null,null,null,null,null,1]
[null,"RETAIL SERVICE CHARGES (if applicable)",null,null,null,null,null,1]
[null,null,null,null,null,null,null,1]
[null,"The application of these rates and charges shall be in accordance with the Licence of the Distributor and any Code or Order of the Ontario Energy Board, and amendments thereto as approved by the Ontario Energy Board, which may be applicable to the administration of this schedule.",null,null,null,null,null,1]
[null,null,null,null,null,null,null,1]
[null,"No rates and charges for the distribution of electricity and charges to meet the costs of any work or service done or furnished for the purpose of the distribution of electricity shall be made except as permitted by this schedule, unless required by the Distributor’s Licence or a Code or Order of the Ontario Energy Board, and amendments thereto as approved by the Ontario Energy Board, or as specified herein.",null,null,null,null,null,1]
[null,null,null,null,null,null,null,1]
[null,"Unless specifically noted, this schedule does not contain any charges for the electricity commodity, be it under the Regulated Price Plan, a contract with a retailer or the wholesale market price, as applicable.",null,null,null,null,null,1]
[null,null,null,null,null,null,null,1]
[null,"It should be noted that this schedule does not list any charges, assessments or credits that are required by law to be invoiced by a distributor and that are not subject to Ontario Energy Board approval, such as the Global Adjustment and the HST.",null,null,null,null,null,1]
[null,null,null,null,null,null,null,1]
[null,"Retail Service Charges refer to services provided by a distributor to retailers or customers related to the supply of competitive electricity.",null,null,null,null,null,1]
[null,null,null,null,null,null,null,1]
[null,"One-time charge, per retailer, to establish the service agreement between the distributor and the retailer","$",100,null,null,null,1]
[null,"Monthly Fixed Charge, per retailer","$",20,null,null,null,1]
[null,"Monthly Variable Charge, per customer, per retailer","$/cust.",0.5,null,null,null,1]
[null,"Distributor-consolidated billing monthly charge, per customer, per retailer","$/cust.",0.3,null,null,null,1]
[null,"Retailer-consolidated billing monthly credit, per customer, per retailer","$/cust.",-0.3,null,null,null,1]
[null,"Service Transaction Requests (STR) ",null,null,null,null,null,1]
[null,"Request fee, per request, applied to the requesting party","$",0.25,null,null,null,1]
[null,"Processing fee, per request, applied to the requesting party","$",0.5,null,null,null,1]
[null,"Request for customer information as outlined in Section 10.6.3 and Chapter 11 of the Retail",null,null,null,null,null,1]
[null,"Settlement Code directly to retailers and customers, if not delivered electronically through the",null,null,null,null,null,1]
[null,"Electronic Business Transaction (EBT) system, applied to the requesting party ",null,null,null,null,null,1]
[null,"Up to twice a year","$","no charge",null,null,null,1]
[null,"More than twice a year, per request (plus incremental delivery costs)","$",2,null,null,null,1]
[null,null,null,null,null,null,null,1]
[null,null,null,null,null,null,null,1]
[null,"LOSS FACTORS","LOSS FACTORS",null,null,null,null,1]
[null,null,null,null,null,null,null,1]
[null,"If the distributor is not capable of prorating changed loss factors jointly with distribution rates, the revised loss factors will be implemented upon the first subsequent billing for each billing cycle.",null,null,null,null,null,{"$f":"IF(D469=\"\",1,IF(D469=0,0,1))","v":1}]
[null,null,null,null,null,null,null,1]
[null,"Total Loss Factor – Secondary Metered Customer < 5,000 kW",null,1.0379,null,null,null,1]
[null,"Total Loss Factor – Secondary Metered Customer > 5,000 kW",null,1.016,null,null,null,1]
[null,"Total Loss Factor – Primary Metered Customer < 5,000 kW",null,1.0276000000000001,null,null,null,1]
[null,"Total Loss Factor – Primary Metered Customer > 5,000 kW",null,1.006,null,null,null,1]